'DEPARTMENT_FAMILY,ENTITY,PAYMENT_DATE,EXPENSE_TYPE,EXPENSE_AREA,SUPPLIER,TRANSACTION_NUMBER,AMOUNT,DESCRIPTION
Ministry of Justice,HMCTS,02/06/2015,130001-Other Income,SK999-Enforcement,COLLECTICA LTD,3038933,"-132,225.72 ",Bailiffs Invoices that balances( VAT on fee collected )to 0.00 BA120 NON PO
Ministry of Justice,HMCTS,02/06/2015,130001-Other Income,SK999-Enforcement,COLLECTICA LTD,3038933,"-126,528.60 ",Bailiffs Invoices that balances ( VAT on fee collected ) to 0.00 FA120 NON PO
Ministry of Justice,HMCTS,30/06/2015,130001-Other Income,SK999-Enforcement,MARSTON GROUP LTD,3068326,"197,263.28 ",Bailiffs Invoices that balances  ( VAT on fee collected ) to 0.00 CA120 NON PO
Ministry of Justice,HMCTS,30/06/2015,130001-Other Income,SK999-Enforcement,MARSTON GROUP LTD,3068326,"-197,263.28 ",Bailiffs Invoices that balances( VAT on fee collected ) to 0.00 CA120 NON PO
Ministry of Justice,HMCTS,30/06/2015,130001-Other Income,SK999-Enforcement,MARSTON GROUP LTD,3068326,"39,452.66 ","VAT Only invoice, Accounted as 197,263.28 income and expenditure above, as per agreed proceedure"
Ministry of Justice,HMCTS,16/06/2015,211000-Judicial Salaries - Salaried,FC999-Centrally Managed Costs by F&G,JUDICIAL PENSIONS SCHEME,10151,"3,231,870.96 ",Payment to Paymaster for Lower Judiciary Pension payment
Ministry of Justice,HMCTS,16/06/2015,211000-Judicial Salaries - Salaried,FC999-Centrally Managed Costs by F&G,JUDICIAL PENSIONS SCHEME,10151,"4,004,645.52 ",Payment to Paymaster for Higher Judiciary Pension payment
Ministry of Justice,HMCTS,12/06/2015,221000-Property Rent and Rates,BZ999-London Region,LAMBERT SMITH HAMPTON GROUP LTD,3050967,"3,792.50 ",Rent invoice
Ministry of Justice,HMCTS,12/06/2015,221000-Property Rent and Rates,BZ999-London Region,MAPELEY STEPS CONTRACTOR LTD,3051006,"50,842.00 ",Rent invoice
Ministry of Justice,HMCTS,12/06/2015,221000-Property Rent and Rates,BZ999-London Region,SAVILLS (UK) LTD,3051880,"104,687.75 ",Rent invoice
Ministry of Justice,HMCTS,12/06/2015,221000-Property Rent and Rates,BZ999-London Region,SAVILLS (UK) LTD,3051880,"11,596.30 ",Rent invoice
Ministry of Justice,HMCTS,09/06/2015,221000-Property Rent and Rates,BZ999-London Region,DERWENT LONDON,3045519,"77,400.00 ",Rent invoice
Ministry of Justice,HMCTS,09/06/2015,221000-Property Rent and Rates,BZ999-London Region,DERWENT LONDON,3045519,"430,000.00 ",Rent invoice
Ministry of Justice,HMCTS,09/06/2015,221000-Property Rent and Rates,BZ999-London Region,DERWENT LONDON,3045519,0.01 ,Rent invoice
Ministry of Justice,HMCTS,12/06/2015,221000-Property Rent and Rates,BZ999-London Region,ORBIT PROPERTY MANAGEMENT,3051807,"182,449.38 ",Rent invoice
Ministry of Justice,HMCTS,12/06/2015,221000-Property Rent and Rates,BZ999-London Region,LAMBERT SMITH HAMPTON GROUP LTD,3050967,"18,962.50 ",Rent invoice
Ministry of Justice,HMCTS,09/06/2015,221000-Property Rent and Rates,BZ999-London Region,DERWENT LONDON,3045519,"43,000.00 ",Rent invoice
Ministry of Justice,HMCTS,12/06/2015,221000-Property Rent and Rates,BZ999-London Region,ORBIT PROPERTY MANAGEMENT,3051807,"36,489.88 ",Rent invoice
Ministry of Justice,HMCTS,12/06/2015,221000-Property Rent and Rates,BZ999-London Region,SAVILLS (UK) LTD,3051880,"57,981.50 ",Rent invoice
Ministry of Justice,HMCTS,09/06/2015,221000-Property Rent and Rates,BZ999-London Region,DERWENT LONDON,3045519,"-43,000.00 ",Rent invoice
Ministry of Justice,HMCTS,09/06/2015,221000-Property Rent and Rates,BZ999-London Region,DERWENT LONDON,3045519,"8,600.00 ",Rent invoice
Ministry of Justice,HMCTS,12/06/2015,221000-Property Rent and Rates,BZ999-London Region,SAVILLS (UK) LTD,3051880,"20,937.55 ",Rent invoice
Ministry of Justice,HMCTS,12/06/2015,221000-Property Rent and Rates,BZ999-London Region,LAMBERT SMITH HAMPTON GROUP LTD,3050968,"70,375.00 ",Rent invoice
Ministry of Justice,HMCTS,12/06/2015,221000-Property Rent and Rates,BZ999-London Region,LAMBERT SMITH HAMPTON GROUP LTD,3050968,"14,075.00 ",Rent invoice
Ministry of Justice,HMCTS,12/06/2015,221000-Property Rent and Rates,BZ999-London Region,MAPELEY STEPS CONTRACTOR LTD,3051006,"10,168.40 ",Rent invoice
Ministry of Justice,HMCTS,05/06/2015,221000-Property Rent and Rates,CZ999-South East Region,CAPITA PROPERTY & INFRASTRUCTURE LTD,3042844,"23,272.97 ",Rent invoice
Ministry of Justice,HMCTS,05/06/2015,221000-Property Rent and Rates,DZ999-South West Region,EDDISONS,3042913,"21,936.50 ",Rent invoice
Ministry of Justice,HMCTS,16/06/2015,221000-Property Rent and Rates,DZ999-South West Region,G V A GRIMLEY,3053521,"5,050.00 ",Rent invoice
Ministry of Justice,HMCTS,16/06/2015,221000-Property Rent and Rates,DZ999-South West Region,G V A GRIMLEY,3053521,"25,250.00 ",Rent invoice
Ministry of Justice,HMCTS,05/06/2015,221000-Property Rent and Rates,DZ999-South West Region,EDDISONS,3042913,"4,387.30 ",Rent invoice
Ministry of Justice,HMCTS,12/06/2015,221000-Property Rent and Rates,FZ999-Midlands Region,BRUNTWOOD,3050743,"86,966.13 ",Rent invoice
Ministry of Justice,HMCTS,12/06/2015,221000-Property Rent and Rates,FZ999-Midlands Region,LONDON & SCOTTISH PROPERTY MANAGEMENT LTD,3050989,"12,500.00 ",Rent invoice
Ministry of Justice,HMCTS,19/06/2015,221000-Property Rent and Rates,FZ999-Midlands Region,LONDON & SCOTTISH PROPERTY MANAGEMENT LTD,3058302,"28,725.00 ",Rent invoice
Ministry of Justice,HMCTS,12/06/2015,221000-Property Rent and Rates,FZ999-Midlands Region,BRUNTWOOD,3050743,"17,393.23 ",Rent invoice
Ministry of Justice,HMCTS,12/06/2015,221000-Property Rent and Rates,FZ999-Midlands Region,LONDON & SCOTTISH PROPERTY MANAGEMENT LTD,3050989,"62,500.00 ",Rent invoice
Ministry of Justice,HMCTS,19/06/2015,221000-Property Rent and Rates,FZ999-Midlands Region,LONDON & SCOTTISH PROPERTY MANAGEMENT LTD,3058302,"143,625.00 ",Rent invoice
Ministry of Justice,HMCTS,16/06/2015,221000-Property Rent and Rates,FZ999-Midlands Region,HELIX PROPERTIES,3053561,"4,366.12 ",Rent invoice
Ministry of Justice,HMCTS,16/06/2015,221000-Property Rent and Rates,FZ999-Midlands Region,HELIX PROPERTIES,3053561,"21,830.60 ",Rent invoice
Ministry of Justice,HMCTS,05/06/2015,221000-Property Rent and Rates,HZ999-North East Region,STANDARD LIFE INVESTMENTS,3044110,"7,840.75 ",Rent invoice
Ministry of Justice,HMCTS,12/06/2015,221000-Property Rent and Rates,HZ999-North East Region,LAND SECURITIES PROPERTIES LTD,3050970,"15,862.96 ",Rent invoice
Ministry of Justice,HMCTS,05/06/2015,221000-Property Rent and Rates,HZ999-North East Region,STANDARD LIFE INVESTMENTS,3044110,"39,203.75 ",Rent invoice
Ministry of Justice,HMCTS,09/06/2015,221000-Property Rent and Rates,HZ999-North East Region,CLSH MANAGEMENT LTD,3045457,"113,050.25 ",Rent invoice
Ministry of Justice,HMCTS,05/06/2015,221000-Property Rent and Rates,HZ999-North East Region,STANDARD LIFE INVESTMENTS,3044110,"35,537.50 ",Rent invoice
Ministry of Justice,HMCTS,05/06/2015,221000-Property Rent and Rates,HZ999-North East Region,STANDARD LIFE INVESTMENTS,3044110,"7,107.50 ",Rent invoice
Ministry of Justice,HMCTS,09/06/2015,221000-Property Rent and Rates,HZ999-North East Region,CLSH MANAGEMENT LTD,3045457,"22,610.05 ",Rent invoice
Ministry of Justice,HMCTS,12/06/2015,221000-Property Rent and Rates,HZ999-North East Region,LAND SECURITIES PROPERTIES LTD,3050970,"79,314.81 ",Rent invoice
Ministry of Justice,HMCTS,09/06/2015,222002-Other Property Costs,FZ999-Midlands Region,NOTTINGHAM CITY COUNCIL,3045876,"46,875.00 ",Workplace parking levy
Ministry of Justice,HMCTS,26/06/2015,222002-Other Property Costs,BZ999-London Region,DTZ DEBENHAM TIE LEUNG,3065723,"1,095,138.00 ",OGD Occupancy Costs
Ministry of Justice,HMCTS,05/06/2015,221000-Property Rent and Rates,CZ999-South East Region,CAPITA PROPERTY & INFRASTRUCTURE LTD,3042844,"5,195.35 ",Rates Invoice
Ministry of Justice,HMCTS,12/06/2015,222002-Other Property Costs,BZ999-London Region,LAMBERT SMITH HAMPTON GROUP LTD,3050968,"6,872.23 ",Service Charge invoice
Ministry of Justice,HMCTS,12/06/2015,222002-Other Property Costs,BZ999-London Region,LAMBERT SMITH HAMPTON GROUP LTD,3050967,"9,090.46 ",Service Charge invoice
Ministry of Justice,HMCTS,09/06/2015,222002-Other Property Costs,BZ999-London Region,DERWENT LONDON,3045519,"26,972.53 ",Service Charge invoice
Ministry of Justice,HMCTS,12/06/2015,222002-Other Property Costs,BZ999-London Region,LAMBERT SMITH HAMPTON GROUP LTD,3050967,"1,818.09 ",Service Charge invoice
Ministry of Justice,HMCTS,09/06/2015,222002-Other Property Costs,BZ999-London Region,DERWENT LONDON,3045519,"17,265.00 ",Service Charge invoice
Ministry of Justice,HMCTS,12/06/2015,222002-Other Property Costs,BZ999-London Region,ORBIT PROPERTY MANAGEMENT,3051807,"62,514.99 ",Service Charge invoice
Ministry of Justice,HMCTS,12/06/2015,222002-Other Property Costs,BZ999-London Region,LAMBERT SMITH HAMPTON GROUP LTD,3050968,"34,361.14 ",Service Charge invoice
Ministry of Justice,HMCTS,12/06/2015,222002-Other Property Costs,BZ999-London Region,ORBIT PROPERTY MANAGEMENT,3051807,"12,503.00 ",Service Charge invoice
Ministry of Justice,HMCTS,09/06/2015,222002-Other Property Costs,BZ999-London Region,DERWENT LONDON,3045519,"59,352.49 ",Service Charge invoice
Ministry of Justice,HMCTS,05/06/2015,222002-Other Property Costs,CZ999-South East Region,CAPITA PROPERTY & INFRASTRUCTURE LTD,3042844,191.57 ,Service Charge invoice
Ministry of Justice,HMCTS,05/06/2015,222002-Other Property Costs,DZ999-South West Region,EDDISONS,3042913,"2,102.55 ",Service Charge invoice
Ministry of Justice,HMCTS,05/06/2015,222002-Other Property Costs,DZ999-South West Region,EDDISONS,3042913,"10,512.75 ",Service Charge invoice
Ministry of Justice,HMCTS,16/06/2015,222002-Other Property Costs,DZ999-South West Region,G V A GRIMLEY,3053521,"10,860.00 ",Service Charge invoice
Ministry of Justice,HMCTS,16/06/2015,222002-Other Property Costs,DZ999-South West Region,G V A GRIMLEY,3053521,"2,172.00 ",Service Charge invoice
Ministry of Justice,HMCTS,12/06/2015,222002-Other Property Costs,FZ999-Midlands Region,LONDON & SCOTTISH PROPERTY MANAGEMENT LTD,3050989,711.05 ,Service Charge invoice
Ministry of Justice,HMCTS,12/06/2015,222002-Other Property Costs,FZ999-Midlands Region,BRUNTWOOD,3050743,"9,509.65 ",Service Charge invoice
Ministry of Justice,HMCTS,12/06/2015,222002-Other Property Costs,FZ999-Midlands Region,BRUNTWOOD,3050743,"47,548.25 ",Service Charge invoice
Ministry of Justice,HMCTS,12/06/2015,222002-Other Property Costs,FZ999-Midlands Region,LONDON & SCOTTISH PROPERTY MANAGEMENT LTD,3050989,"3,555.25 ",Service Charge invoice
Ministry of Justice,HMCTS,16/06/2015,222002-Other Property Costs,HZ999-North East Region,LAND SECURITIES PROPERTIES LTD,3053622,"4,766.52 ",Service Charge invoice
Ministry of Justice,HMCTS,05/06/2015,222002-Other Property Costs,HZ999-North East Region,JONES LANG LASALLE LTD,3043046,"21,817.50 ",Service Charge invoice
Ministry of Justice,HMCTS,05/06/2015,222002-Other Property Costs,HZ999-North East Region,JONES LANG LASALLE LTD,3043046,"4,363.50 ",Service Charge invoice
Ministry of Justice,HMCTS,05/06/2015,222002-Other Property Costs,HZ999-North East Region,JONES LANG LASALLE LTD,3043046,"24,137.50 ",Service Charge invoice
Ministry of Justice,HMCTS,16/06/2015,222002-Other Property Costs,HZ999-North East Region,LAND SECURITIES PROPERTIES LTD,3053622,"23,832.61 ",Service Charge invoice
Ministry of Justice,HMCTS,05/06/2015,222002-Other Property Costs,HZ999-North East Region,JONES LANG LASALLE LTD,3043046,"4,827.50 ",Service Charge invoice
Ministry of Justice,HMCTS,03/06/2015,222001-Maintenance,AG999-HQ - Estates,VALUATION OFFICE AGENCY,10126,"21,760.00 ",MOJ Estate - Valuation Office Agency - 102 Petty France Estate Valuations 2014/15
Ministry of Justice,HMCTS,03/06/2015,222001-Maintenance,AG999-HQ - Estates,VALUATION OFFICE AGENCY,10126,"4,352.00 ",MOJ Estate - Valuation Office Agency - 102 Petty France Estate Valuations 2014/15
Ministry of Justice,HMCTS,24/06/2015,222001-Maintenance,AG999-HQ - Estates,R & M WILLIAMS LTD,3064313,"43,688.20 ","CIS Labour - Bristol Judges Lodgings - R & M Williams Ltd - Various electrical, roof, bathroom & kitchen refurbishment works"
Ministry of Justice,HMCTS,24/06/2015,222001-Maintenance,AG999-HQ - Estates,R & M WILLIAMS LTD,3064313,"-52,037.14 ","CIS Labour - Bristol Judges Lodgings - R & M Williams Ltd - Various electrical, roof, bathroom & kitchen refurbishment works"
Ministry of Justice,HMCTS,24/06/2015,222001-Maintenance,AG999-HQ - Estates,R & M WILLIAMS LTD,3064313,"52,037.14 ","CIS Labour - Bristol Judges Lodgings - R & M Williams Ltd - Various electrical, roof, bathroom & kitchen refurbishment works"
Ministry of Justice,HMCTS,12/06/2015,222001-Maintenance,GZ999-North West Region,GALLIFORD TRY CONSTRUCTION (UK) LTD,3050854,"-595,619.46 ",CIS Labour - Liverpool QEII - Galliford Try - Liverpool MC Integration Revenue Costs
Ministry of Justice,HMCTS,12/06/2015,222001-Maintenance,GZ999-North West Region,GALLIFORD TRY CONSTRUCTION (UK) LTD,3050854,"68,706.56 ",CIS Labour - Liverpool QEII - Galliford Try - Liverpool MC Integration Revenue Costs
Ministry of Justice,HMCTS,12/06/2015,222001-Maintenance,GZ999-North West Region,GALLIFORD TRY CONSTRUCTION (UK) LTD,3050854,"595,619.46 ",CIS Labour - Liverpool QEII - Galliford Try - Liverpool MC Integration Revenue Costs
Ministry of Justice,HMCTS,12/06/2015,222001-Maintenance,GZ999-North West Region,GALLIFORD TRY CONSTRUCTION (UK) LTD,3050854,"283,686.13 ",CIS Labour - Liverpool QEII - Galliford Try - Liverpool MC Integration Revenue Costs
Ministry of Justice,HMCTS,17/06/2015,261000-Fuel and Utilities,GZ999-North West Region,UNITED UTILITIES WATER PLC,3057285,"36,097.89 ",North West regional consolidated A/C - water usage - United Utilities - 15/16
Ministry of Justice,HMCTS,19/06/2015,261000-Fuel and Utilities,AG999-HQ - Estates,BROADGATE ESTATES LTD,3058047,-422.71 ,Electricity charges
Ministry of Justice,HMCTS,19/06/2015,261000-Fuel and Utilities,AG999-HQ - Estates,BROADGATE ESTATES LTD,3058047,"4,220.71 ",Electricity charges
Ministry of Justice,HMCTS,19/06/2015,261000-Fuel and Utilities,AG999-HQ - Estates,BROADGATE ESTATES LTD,3058047,"-21,103.56 ",Electricity charges
Ministry of Justice,HMCTS,19/06/2015,261000-Fuel and Utilities,AG999-HQ - Estates,BROADGATE ESTATES LTD,3058047,422.71 ,Electricity charges
Ministry of Justice,HMCTS,19/06/2015,261000-Fuel and Utilities,AG999-HQ - Estates,BROADGATE ESTATES LTD,3058047,"21,103.56 ",Electricity charges
Ministry of Justice,HMCTS,19/06/2015,261000-Fuel and Utilities,AG999-HQ - Estates,BROADGATE ESTATES LTD,3058047,"-2,113.56 ",Electricity charges
Ministry of Justice,HMCTS,19/06/2015,261000-Fuel and Utilities,AG999-HQ - Estates,BROADGATE ESTATES LTD,3058047,"21,103.56 ",Electricity charges
Ministry of Justice,HMCTS,19/06/2015,261000-Fuel and Utilities,AG999-HQ - Estates,BROADGATE ESTATES LTD,3058047,"2,113.56 ",Electricity charges
Ministry of Justice,HMCTS,17/06/2015,261000-Fuel and Utilities,FZ999-Midlands Region,BRITISH GAS BUSINESS,3054945,587.74 ,BGB electricity for  HMCTS Midlands 2014/15.
Ministry of Justice,HMCTS,17/06/2015,261000-Fuel and Utilities,FZ999-Midlands Region,BRITISH GAS BUSINESS,3054945,"23,005.26 ",BGB electricity for  HMCTS Midlands 2014/15.
Ministry of Justice,HMCTS,17/06/2015,261000-Fuel and Utilities,FZ999-Midlands Region,BRITISH GAS BUSINESS,3054945,"4,601.05 ",BGB electricity for  HMCTS Midlands 2014/15.
Ministry of Justice,HMCTS,17/06/2015,261000-Fuel and Utilities,FZ999-Midlands Region,BRITISH GAS BUSINESS,3054945,29.39 ,BGB electricity for  HMCTS Midlands 2014/15.
Ministry of Justice,HMCTS,17/06/2015,261000-Fuel and Utilities,FZ999-Midlands Region,BRITISH GAS BUSINESS,3054945,-0.23 ,BGB electricity for  HMCTS Midlands 2014/15.
Ministry of Justice,HMCTS,16/06/2015,261000-Fuel and Utilities,GZ999-North West Region,EDF ENERGY LTD,3053491,"-5,805.85 ",Manchester CJC - Electricity - EDF - 15/16
Ministry of Justice,HMCTS,16/06/2015,261000-Fuel and Utilities,GZ999-North West Region,EDF ENERGY LTD,3053491,"29,029.26 ",Manchester CJC - Electricity - EDF - 15/16
Ministry of Justice,HMCTS,16/06/2015,261000-Fuel and Utilities,GZ999-North West Region,EDF ENERGY LTD,3053491,"-29,029.26 ",Manchester CJC - Electricity - EDF - 15/16
Ministry of Justice,HMCTS,16/06/2015,261000-Fuel and Utilities,GZ999-North West Region,EDF ENERGY LTD,3053491,"5,805.85 ",Manchester CJC - Electricity - EDF - 15/16
Ministry of Justice,HMCTS,16/06/2015,261000-Fuel and Utilities,GZ999-North West Region,EDF ENERGY LTD,3053491,"5,805.85 ",Manchester CJC - Electricity - EDF - 15/16
Ministry of Justice,HMCTS,16/06/2015,261000-Fuel and Utilities,GZ999-North West Region,EDF ENERGY LTD,3053491,0.01 ,Manchester CJC - Electricity - EDF - 15/16
Ministry of Justice,HMCTS,16/06/2015,261000-Fuel and Utilities,GZ999-North West Region,EDF ENERGY LTD,3053491,"29,029.26 ",Manchester CJC - Electricity - EDF - 15/16
Ministry of Justice,HMCTS,23/06/2015,261000-Fuel and Utilities,CZ999-South East Region,CORONA ENERGY RETAIL 2 LTD,3060756,28.80 ,SE Region Consolidated - Gas charges - 2015/16
Ministry of Justice,HMCTS,23/06/2015,261000-Fuel and Utilities,CZ999-South East Region,CORONA ENERGY RETAIL 2 LTD,3060756,575.96 ,SE Region Consolidated - Gas charges - 2015/16
Ministry of Justice,HMCTS,23/06/2015,261000-Fuel and Utilities,CZ999-South East Region,CORONA ENERGY RETAIL 2 LTD,3060756,"11,164.77 ",SE Region Consolidated - Gas charges - 2015/16
Ministry of Justice,HMCTS,23/06/2015,261000-Fuel and Utilities,CZ999-South East Region,CORONA ENERGY RETAIL 2 LTD,3060756,"55,823.85 ",SE Region Consolidated - Gas charges - 2015/16
Ministry of Justice,HMCTS,23/06/2015,261000-Fuel and Utilities,DZ999-South West Region,CORONA ENERGY RETAIL 2 LTD,3060755,"31,392.07 ", Monthly Consolidated Bill for various sites in the SW Region.
Ministry of Justice,HMCTS,23/06/2015,261000-Fuel and Utilities,DZ999-South West Region,CORONA ENERGY RETAIL 2 LTD,3060755,"6,278.41 ", Monthly Consolidated Bill for various sites in the SW Region.
Ministry of Justice,HMCTS,23/06/2015,261000-Fuel and Utilities,DZ999-South West Region,CORONA ENERGY RETAIL 2 LTD,3060755,28.65 , Monthly Consolidated Bill for various sites in the SW Region.
Ministry of Justice,HMCTS,23/06/2015,261000-Fuel and Utilities,DZ999-South West Region,CORONA ENERGY RETAIL 2 LTD,3060755,572.98 , Monthly Consolidated Bill for various sites in the SW Region.
Ministry of Justice,HMCTS,24/06/2015,261000-Fuel and Utilities,FZ999-Midlands Region,CORONA ENERGY RETAIL 2 LTD,3062524,527.69 ,Corona Energy gas HMCTS Midlands 2014/15.
Ministry of Justice,HMCTS,24/06/2015,261000-Fuel and Utilities,FZ999-Midlands Region,CORONA ENERGY RETAIL 2 LTD,3062524,26.38 ,Corona Energy gas HMCTS Midlands 2014/15.
Ministry of Justice,HMCTS,24/06/2015,261000-Fuel and Utilities,FZ999-Midlands Region,CORONA ENERGY RETAIL 2 LTD,3062524,"9,573.84 ",Corona Energy gas HMCTS Midlands 2014/15.
Ministry of Justice,HMCTS,24/06/2015,261000-Fuel and Utilities,FZ999-Midlands Region,CORONA ENERGY RETAIL 2 LTD,3062524,"47,869.21 ",Corona Energy gas HMCTS Midlands 2014/15.
Ministry of Justice,HMCTS,30/06/2015,261000-Fuel and Utilities,GZ999-North West Region,CORONA ENERGY RETAIL 2 LTD,3068147,11.87 ,NW Region Consolidated - Gas - Corona - April 14 - March 15
Ministry of Justice,HMCTS,30/06/2015,261000-Fuel and Utilities,GZ999-North West Region,CORONA ENERGY RETAIL 2 LTD,3068147,"18,392.51 ",NW Region Consolidated - Gas - Corona - April 14 - March 15
Ministry of Justice,HMCTS,30/06/2015,261000-Fuel and Utilities,GZ999-North West Region,CORONA ENERGY RETAIL 2 LTD,3068147,"65,252.59 ",NW Region Consolidated - Gas - Corona - April 14 - March 15
Ministry of Justice,HMCTS,30/06/2015,261000-Fuel and Utilities,GZ999-North West Region,CORONA ENERGY RETAIL 2 LTD,3068147,86.42 ,NW Region Consolidated - Gas - Corona - April 14 - March 15
Ministry of Justice,HMCTS,23/06/2015,261000-Fuel and Utilities,GZ999-North West Region,CORONA ENERGY RETAIL 2 LTD,3060756,"11,156.05 ",NW Region Consolidated - Gas - Corona - April 14 - March 15
Ministry of Justice,HMCTS,23/06/2015,261000-Fuel and Utilities,GZ999-North West Region,CORONA ENERGY RETAIL 2 LTD,3060756,244.47 ,NW Region Consolidated - Gas - Corona - April 14 - March 15
Ministry of Justice,HMCTS,30/06/2015,261000-Fuel and Utilities,GZ999-North West Region,CORONA ENERGY RETAIL 2 LTD,3068147,4.32 ,NW Region Consolidated - Gas - Corona - April 14 - March 15
Ministry of Justice,HMCTS,23/06/2015,261000-Fuel and Utilities,GZ999-North West Region,CORONA ENERGY RETAIL 2 LTD,3060756,"55,780.23 ",NW Region Consolidated - Gas - Corona - April 14 - March 15
Ministry of Justice,HMCTS,30/06/2015,261000-Fuel and Utilities,GZ999-North West Region,CORONA ENERGY RETAIL 2 LTD,3068147,237.32 ,NW Region Consolidated - Gas - Corona - April 14 - March 15
Ministry of Justice,HMCTS,30/06/2015,261000-Fuel and Utilities,GZ999-North West Region,CORONA ENERGY RETAIL 2 LTD,3068147,"91,962.55 ",NW Region Consolidated - Gas - Corona - April 14 - March 15
Ministry of Justice,HMCTS,30/06/2015,261000-Fuel and Utilities,GZ999-North West Region,CORONA ENERGY RETAIL 2 LTD,3068147,"13,050.52 ",NW Region Consolidated - Gas - Corona - April 14 - March 15
Ministry of Justice,HMCTS,23/06/2015,261000-Fuel and Utilities,GZ999-North West Region,CORONA ENERGY RETAIL 2 LTD,3060756,12.22 ,NW Region Consolidated - Gas - Corona - April 14 - March 15
Ministry of Justice,HMCTS,23/06/2015,261000-Fuel and Utilities,HZ999-North East Region,CORONA ENERGY RETAIL 2 LTD,3060756,500.92 ,North East Consolidated account - Gas - Corona 
Ministry of Justice,HMCTS,23/06/2015,261000-Fuel and Utilities,HZ999-North East Region,CORONA ENERGY RETAIL 2 LTD,3060756,"48,806.79 ",North East Consolidated account - Gas - Corona 
Ministry of Justice,HMCTS,23/06/2015,261000-Fuel and Utilities,HZ999-North East Region,CORONA ENERGY RETAIL 2 LTD,3060756,25.05 ,North East Consolidated account - Gas - Corona 
Ministry of Justice,HMCTS,23/06/2015,261000-Fuel and Utilities,HZ999-North East Region,CORONA ENERGY RETAIL 2 LTD,3060756,"9,761.36 ",North East Consolidated account - Gas - Corona 
Ministry of Justice,HMCTS,16/06/2015,222002-Other Property Costs,CZ999-South East Region,NEOPOST LTD,3053698,"44,947.89 ","South East Region - Bulk Contract as per schedule, Service agreement number 4900001013 - Neopost"
Ministry of Justice,HMCTS,12/06/2015,222002-Other Property Costs,HZ999-North East Region,NEOPOST LTD,3051057,"52,089.86 ","North East region - Bulk Contract as per schedule, Service agreement number 4900000131 - Neopost"
Ministry of Justice,HMCTS,11/06/2015,222002-Other Property Costs,AG999-HQ - Estates,DEPARTMENT FOR WORK & PENSIONS (DWP),10136,"733,094.56 ",OGD PRIME FUP costs
Ministry of Justice,HMCTS,25/06/2015,222002-Other Property Costs,AG999-HQ - Estates,DEPARTMENT FOR WORK & PENSIONS (DWP),10168,"733,094.56 ",OGD PRIME FUP costs
Ministry of Justice,HMCTS,25/06/2015,222002-Other Property Costs,AG999-HQ - Estates,DEPARTMENT FOR WORK & PENSIONS (DWP),10168,"21,861.48 ",OGD Utilities costs
Ministry of Justice,HMCTS,15/06/2015,222002-Other Property Costs,AG999-HQ - Estates,DEPARTMENT FOR WORK & PENSIONS (DWP),10145,"63,714.59 ",OGD PRIME Variable costs
Ministry of Justice,HMCTS,25/06/2015,222002-Other Property Costs,AG999-HQ - Estates,DEPARTMENT FOR WORK & PENSIONS (DWP),10168,"177,547.62 ",OGD RATES
Ministry of Justice,HMCTS,15/06/2015,222002-Other Property Costs,AG999-HQ - Estates,DEPARTMENT FOR WORK & PENSIONS (DWP),10143,"177,547.62 ",OGD RATES
Ministry of Justice,HMCTS,23/06/2015,222001-Maintenance,BZ999-London Region,EC HARRIS LLP,3060821,"48,666.67 ",CIS Labour - Estates London Region - EC HARRIS - Intelligent helpdesk function pilot.
Ministry of Justice,HMCTS,02/06/2015,222001-Maintenance,DZ999-South West Region,EC HARRIS LLP,3038996,"29,360.91 ","EPS Lot 3 Works Package B, South West Region - monthly fee 2014/15"
Ministry of Justice,HMCTS,30/06/2015,222003-CIS Labour TFM Estates,BZ999-London Region,MITIE JUSTICE LTD,3068353,"15,529.90 ",Catering
Ministry of Justice,HMCTS,30/06/2015,222003-CIS Labour TFM Estates,BZ999-London Region,MITIE JUSTICE LTD,3068353,"-15,529.90 ",Catering
Ministry of Justice,HMCTS,16/06/2015,222003-CIS Labour TFM Estates,CZ999-South East Region,MITIE JUSTICE LTD,3053676,"5,583.53 ",Catering - Lease Contracts
Ministry of Justice,HMCTS,16/06/2015,222003-CIS Labour TFM Estates,DZ999-South West Region,MITIE JUSTICE LTD,3053676,"2,392.41 ",Catering - Lease Contracts
Ministry of Justice,HMCTS,16/06/2015,222003-CIS Labour TFM Estates,EZ999-Wales Region,G4S FACILITIES MANAGEMENT (UK) LTD,3053522,557.02 ,Wales - G4S - Catering
Ministry of Justice,HMCTS,16/06/2015,222003-CIS Labour TFM Estates,FZ999-Midlands Region,G4S FACILITIES MANAGEMENT (UK) LTD,3053522,615.21 ,Catering
Ministry of Justice,HMCTS,16/06/2015,222003-CIS Labour TFM Estates,GZ999-North West Region,G4S FACILITIES MANAGEMENT (UK) LTD,3053522,152.77 ,Catering
Ministry of Justice,HMCTS,09/06/2015,222003-CIS Labour TFM Estates,GZ999-North West Region,G4S FACILITIES MANAGEMENT (UK) LTD,3045579,152.77 ,Catering
Ministry of Justice,HMCTS,09/06/2015,222003-CIS Labour TFM Estates,HZ999-North East Region,G4S FACILITIES MANAGEMENT (UK) LTD,3045579,216.31 ,Fixed Catering
Ministry of Justice,HMCTS,19/06/2015,222003-CIS Labour TFM Estates,HZ999-North East Region,G4S FACILITIES MANAGEMENT (UK) LTD,3058171,216.31 ,Fixed Catering
Ministry of Justice,HMCTS,30/06/2015,222003-CIS Labour TFM Estates,BZ999-London Region,MITIE JUSTICE LTD,3068353,"15,529.90 ",Catering; Lease
Ministry of Justice,HMCTS,30/06/2015,222003-CIS Labour TFM Estates,BZ999-London Region,MITIE JUSTICE LTD,3068353,"352,355.17 ",Cleaning
Ministry of Justice,HMCTS,16/06/2015,222003-CIS Labour TFM Estates,CZ999-South East Region,MITIE JUSTICE LTD,3053676,"188,297.30 ",Cleaning
Ministry of Justice,HMCTS,16/06/2015,222003-CIS Labour TFM Estates,DZ999-South West Region,MITIE JUSTICE LTD,3053676,"121,292.04 ",Cleaning
Ministry of Justice,HMCTS,16/06/2015,222003-CIS Labour TFM Estates,EZ999-Wales Region,G4S FACILITIES MANAGEMENT (UK) LTD,3053522,"68,497.04 ",Wales - G4S - Cleaning
Ministry of Justice,HMCTS,16/06/2015,222003-CIS Labour TFM Estates,FZ999-Midlands Region,G4S FACILITIES MANAGEMENT (UK) LTD,3053522,"182,055.01 ",Cleaning
Ministry of Justice,HMCTS,16/06/2015,222003-CIS Labour TFM Estates,FZ999-Midlands Region,G4S FACILITIES MANAGEMENT (UK) LTD,3053522,"2,334.11 ",Cleaning
Ministry of Justice,HMCTS,16/06/2015,222003-CIS Labour TFM Estates,GZ999-North West Region,G4S FACILITIES MANAGEMENT (UK) LTD,3053522,"179,537.13 ",Cleaning
Ministry of Justice,HMCTS,19/06/2015,222003-CIS Labour TFM Estates,GZ999-North West Region,G4S FACILITIES MANAGEMENT (UK) LTD,3058171,"3,555.16 ",Cleaning
Ministry of Justice,HMCTS,09/06/2015,222003-CIS Labour TFM Estates,GZ999-North West Region,G4S FACILITIES MANAGEMENT (UK) LTD,3045579,"179,537.13 ",Cleaning
Ministry of Justice,HMCTS,19/06/2015,222003-CIS Labour TFM Estates,HZ999-North East Region,G4S FACILITIES MANAGEMENT (UK) LTD,3058171,"4,707.22 ",Cleaning
Ministry of Justice,HMCTS,19/06/2015,222003-CIS Labour TFM Estates,HZ999-North East Region,G4S FACILITIES MANAGEMENT (UK) LTD,3058171,"167,733.73 ",Fixed Cleaning
Ministry of Justice,HMCTS,09/06/2015,222003-CIS Labour TFM Estates,HZ999-North East Region,G4S FACILITIES MANAGEMENT (UK) LTD,3045579,"167,733.73 ",Fixed Cleaning
Ministry of Justice,HMCTS,30/06/2015,222003-CIS Labour TFM Estates,BZ999-London Region,MITIE JUSTICE LTD,3068353,"51,677.06 ",Waste Disposal
Ministry of Justice,HMCTS,16/06/2015,222003-CIS Labour TFM Estates,CZ999-South East Region,MITIE JUSTICE LTD,3053676,"55,423.83 ",Waste Disposal
Ministry of Justice,HMCTS,23/06/2015,222003-CIS Labour TFM Estates,CZ999-South East Region,MITIE JUSTICE LTD,3061089,101.72 ,Waste Disposal
Ministry of Justice,HMCTS,16/06/2015,222003-CIS Labour TFM Estates,DZ999-South West Region,MITIE JUSTICE LTD,3053676,"26,168.34 ",Waste Disposal
Ministry of Justice,HMCTS,16/06/2015,222003-CIS Labour TFM Estates,EZ999-Wales Region,G4S FACILITIES MANAGEMENT (UK) LTD,3053522,"12,290.68 ",Wales - G4S - Waste Disposal
Ministry of Justice,HMCTS,16/06/2015,222003-CIS Labour TFM Estates,FZ999-Midlands Region,G4S FACILITIES MANAGEMENT (UK) LTD,3053522,"22,645.74 ",Waste Disposal
Ministry of Justice,HMCTS,16/06/2015,222003-CIS Labour TFM Estates,FZ999-Midlands Region,G4S FACILITIES MANAGEMENT (UK) LTD,3053522,"1,245.56 ",Waste disposal
Ministry of Justice,HMCTS,09/06/2015,222003-CIS Labour TFM Estates,GZ999-North West Region,G4S FACILITIES MANAGEMENT (UK) LTD,3045579,"19,729.58 ",Waste Disposal
Ministry of Justice,HMCTS,16/06/2015,222003-CIS Labour TFM Estates,GZ999-North West Region,G4S FACILITIES MANAGEMENT (UK) LTD,3053522,"19,729.58 ",Waste Disposal
Ministry of Justice,HMCTS,19/06/2015,222003-CIS Labour TFM Estates,GZ999-North West Region,G4S FACILITIES MANAGEMENT (UK) LTD,3058171,433.35 ,Waste
Ministry of Justice,HMCTS,19/06/2015,222003-CIS Labour TFM Estates,HZ999-North East Region,G4S FACILITIES MANAGEMENT (UK) LTD,3058171,"37,187.38 ",Fixed Waste Disposal
Ministry of Justice,HMCTS,19/06/2015,222003-CIS Labour TFM Estates,HZ999-North East Region,G4S FACILITIES MANAGEMENT (UK) LTD,3058171,390.14 ,Waste
Ministry of Justice,HMCTS,09/06/2015,222003-CIS Labour TFM Estates,HZ999-North East Region,G4S FACILITIES MANAGEMENT (UK) LTD,3045579,"37,187.38 ",Fixed Waste Disposal
Ministry of Justice,HMCTS,30/06/2015,222003-CIS Labour TFM Estates,BZ999-London Region,MITIE JUSTICE LTD,3068353,"642,212.92 ",Security
Ministry of Justice,HMCTS,23/06/2015,222003-CIS Labour TFM Estates,CZ999-South East Region,MITIE JUSTICE LTD,3061089,"24,643.47 ",Security
Ministry of Justice,HMCTS,16/06/2015,222003-CIS Labour TFM Estates,CZ999-South East Region,MITIE JUSTICE LTD,3053676,"450,061.63 ",Security
Ministry of Justice,HMCTS,16/06/2015,222003-CIS Labour TFM Estates,DZ999-South West Region,MITIE JUSTICE LTD,3053676,"221,774.06 ",Security
Ministry of Justice,HMCTS,16/06/2015,222003-CIS Labour TFM Estates,EZ999-Wales Region,G4S FACILITIES MANAGEMENT (UK) LTD,3053522,"142,308.75 ",Wales - G4S - Security
Ministry of Justice,HMCTS,16/06/2015,222003-CIS Labour TFM Estates,FZ999-Midlands Region,G4S FACILITIES MANAGEMENT (UK) LTD,3053522,"33,455.05 ",Security
Ministry of Justice,HMCTS,16/06/2015,222003-CIS Labour TFM Estates,FZ999-Midlands Region,G4S FACILITIES MANAGEMENT (UK) LTD,3053522,"344,412.80 ",Security
Ministry of Justice,HMCTS,19/06/2015,222003-CIS Labour TFM Estates,GZ999-North West Region,G4S FACILITIES MANAGEMENT (UK) LTD,3058171,"39,693.91 ",Security
Ministry of Justice,HMCTS,19/06/2015,222003-CIS Labour TFM Estates,GZ999-North West Region,G4S FACILITIES MANAGEMENT (UK) LTD,3058171,"36,693.91 ",Security
Ministry of Justice,HMCTS,19/06/2015,222003-CIS Labour TFM Estates,GZ999-North West Region,G4S FACILITIES MANAGEMENT (UK) LTD,3058171,"-36,693.91 ",Security
Ministry of Justice,HMCTS,16/06/2015,222003-CIS Labour TFM Estates,GZ999-North West Region,G4S FACILITIES MANAGEMENT (UK) LTD,3053522,"288,207.50 ",Security
Ministry of Justice,HMCTS,09/06/2015,222003-CIS Labour TFM Estates,GZ999-North West Region,G4S FACILITIES MANAGEMENT (UK) LTD,3045579,"288,207.50 ",Security
Ministry of Justice,HMCTS,19/06/2015,222003-CIS Labour TFM Estates,HZ999-North East Region,G4S FACILITIES MANAGEMENT (UK) LTD,3058171,"18,454.50 ",Security
Ministry of Justice,HMCTS,09/06/2015,222003-CIS Labour TFM Estates,HZ999-North East Region,G4S FACILITIES MANAGEMENT (UK) LTD,3045579,"331,118.59 ",Fixed Security
Ministry of Justice,HMCTS,19/06/2015,222003-CIS Labour TFM Estates,HZ999-North East Region,G4S FACILITIES MANAGEMENT (UK) LTD,3058171,"331,118.59 ",Fixed Security
Ministry of Justice,HMCTS,30/06/2015,222003-CIS Labour TFM Estates,BZ999-London Region,MITIE JUSTICE LTD,3068353,"150,608.08 ",Management
Ministry of Justice,HMCTS,30/06/2015,222003-CIS Labour TFM Estates,BZ999-London Region,MITIE JUSTICE LTD,3068353,"150,608.08 ",Management
Ministry of Justice,HMCTS,30/06/2015,222003-CIS Labour TFM Estates,BZ999-London Region,MITIE JUSTICE LTD,3068353,"22,071.22 ",Management
Ministry of Justice,HMCTS,30/06/2015,222003-CIS Labour TFM Estates,BZ999-London Region,MITIE JUSTICE LTD,3068353,"-150,608.08 ",Management
Ministry of Justice,HMCTS,16/06/2015,222003-CIS Labour TFM Estates,CZ999-South East Region,MITIE JUSTICE LTD,3053676,"91,387.39 ",Management Costs
Ministry of Justice,HMCTS,16/06/2015,222003-CIS Labour TFM Estates,CZ999-South East Region,MITIE JUSTICE LTD,3053676,"14,479.56 ",Management Costs
Ministry of Justice,HMCTS,16/06/2015,222003-CIS Labour TFM Estates,DZ999-South West Region,MITIE JUSTICE LTD,3053676,"7,640.82 ",Management Costs
Ministry of Justice,HMCTS,16/06/2015,222003-CIS Labour TFM Estates,DZ999-South West Region,MITIE JUSTICE LTD,3053676,"68,651.47 ",Management Costs
Ministry of Justice,HMCTS,17/06/2015,222003-CIS Labour TFM Estates,EZ999-Wales Region,G4S FACILITIES MANAGEMENT (UK) LTD,3055315,"42,828.66 ",Wales - G4S - Management Costs
Ministry of Justice,HMCTS,16/06/2015,222003-CIS Labour TFM Estates,EZ999-Wales Region,G4S FACILITIES MANAGEMENT (UK) LTD,3053522,"13,382.49 ",Wales - G4S - Management
Ministry of Justice,HMCTS,16/06/2015,222003-CIS Labour TFM Estates,FZ999-Midlands Region,G4S FACILITIES MANAGEMENT (UK) LTD,3053522,"104,400.90 ",Management Costs
Ministry of Justice,HMCTS,16/06/2015,222003-CIS Labour TFM Estates,FZ999-Midlands Region,G4S FACILITIES MANAGEMENT (UK) LTD,3053522,"2,777.60 ",Management Costs
Ministry of Justice,HMCTS,16/06/2015,222003-CIS Labour TFM Estates,FZ999-Midlands Region,G4S FACILITIES MANAGEMENT (UK) LTD,3053522,"3,581.02 ",Management Costs
Ministry of Justice,HMCTS,16/06/2015,222003-CIS Labour TFM Estates,FZ999-Midlands Region,G4S FACILITIES MANAGEMENT (UK) LTD,3053522,"32,615.83 ",Management Costs
Ministry of Justice,HMCTS,09/06/2015,222003-CIS Labour TFM Estates,GZ999-North West Region,G4S FACILITIES MANAGEMENT (UK) LTD,3045579,"29,327.99 ",Management
Ministry of Justice,HMCTS,09/06/2015,222003-CIS Labour TFM Estates,GZ999-North West Region,G4S FACILITIES MANAGEMENT (UK) LTD,3045579,"100,919.56 ",Management Costs
Ministry of Justice,HMCTS,16/06/2015,222003-CIS Labour TFM Estates,GZ999-North West Region,G4S FACILITIES MANAGEMENT (UK) LTD,3053522,"29,327.99 ",Management
Ministry of Justice,HMCTS,19/06/2015,222003-CIS Labour TFM Estates,GZ999-North West Region,G4S FACILITIES MANAGEMENT (UK) LTD,3058171,"3,276.18 ",Management Costs
Ministry of Justice,HMCTS,16/06/2015,222003-CIS Labour TFM Estates,GZ999-North West Region,G4S FACILITIES MANAGEMENT (UK) LTD,3053522,"100,919.56 ",Management Costs
Ministry of Justice,HMCTS,26/06/2015,222003-CIS Labour TFM Estates,HZ999-North East Region,G4S FACILITIES MANAGEMENT (UK) LTD,3065755,"2,773.17 ",Management Costs
Ministry of Justice,HMCTS,26/06/2015,222003-CIS Labour TFM Estates,HZ999-North East Region,G4S FACILITIES MANAGEMENT (UK) LTD,3065755,"-2,773.17 ",Management Costs
Ministry of Justice,HMCTS,19/06/2015,222003-CIS Labour TFM Estates,HZ999-North East Region,G4S FACILITIES MANAGEMENT (UK) LTD,3058171,"1,766.39 ",Management Costs
Ministry of Justice,HMCTS,19/06/2015,222003-CIS Labour TFM Estates,HZ999-North East Region,G4S FACILITIES MANAGEMENT (UK) LTD,3058171,"32,321.55 ",Fixed Management Costs
Ministry of Justice,HMCTS,19/06/2015,222003-CIS Labour TFM Estates,HZ999-North East Region,G4S FACILITIES MANAGEMENT (UK) LTD,3058171,"107,319.55 ",Management costs
Ministry of Justice,HMCTS,09/06/2015,222003-CIS Labour TFM Estates,HZ999-North East Region,G4S FACILITIES MANAGEMENT (UK) LTD,3045579,"107,318.79 ",Management costs
Ministry of Justice,HMCTS,09/06/2015,222003-CIS Labour TFM Estates,HZ999-North East Region,G4S FACILITIES MANAGEMENT (UK) LTD,3045579,"32,321.55 ",Fixed Management Costs
Ministry of Justice,HMCTS,30/06/2015,222003-CIS Labour TFM Estates,BZ999-London Region,MITIE JUSTICE LTD,3068353,"14,229.34 ",Internal Moves
Ministry of Justice,HMCTS,23/06/2015,222003-CIS Labour TFM Estates,CZ999-South East Region,MITIE JUSTICE LTD,3061089,954.12 ,Internal Moves
Ministry of Justice,HMCTS,05/06/2015,222003-CIS Labour TFM Estates,BZ999-London Region,MITIE JUSTICE LTD,3043260,"52,751.32 ",CIS Labour - Snaresbrook Crown Court - MITIE JUSTICE - Removal of temporary cells (revenue maintenance works-PM-John McCalister)
Ministry of Justice,HMCTS,12/06/2015,222003-CIS Labour TFM Estates,BZ999-London Region,MITIE JUSTICE LTD,3051037,"33,584.55 ",CIS Labour - West London Magistrates - MITIE JUSTICE - Door fit & intermittent strips-revenue maintenance works-PM-John McCalister.
Ministry of Justice,HMCTS,12/06/2015,222003-CIS Labour TFM Estates,BZ999-London Region,MITIE JUSTICE LTD,3051037,"40,623.06 ",CIS Labour - Edmonton County Court - Mitie Justice - Hire of scaffolding.
Ministry of Justice,HMCTS,23/06/2015,222003-CIS Labour TFM Estates,BZ999-London Region,MITIE JUSTICE LTD,3061089,"23,820.97 ",CIS Labour-The Royal Courts of Justice- MITIE JUSTICE - Thomas More fa�ade works (revenue maintenance works-PM-John McCalister)
Ministry of Justice,HMCTS,30/06/2015,222003-CIS Labour TFM Estates,BZ999-London Region,MITIE JUSTICE LTD,3068353,"45,027.48 ",Internal Repair & Maintenance
Ministry of Justice,HMCTS,30/06/2015,222003-CIS Labour TFM Estates,BZ999-London Region,MITIE JUSTICE LTD,3068353,"-235,028.91 ",Internal Repair & Maintenance
Ministry of Justice,HMCTS,30/06/2015,222003-CIS Labour TFM Estates,BZ999-London Region,MITIE JUSTICE LTD,3068353,"235,028.91 ",Internal Repair & Maintenance
Ministry of Justice,HMCTS,30/06/2015,222003-CIS Labour TFM Estates,BZ999-London Region,MITIE JUSTICE LTD,3068353,"235,028.91 ",M & E Maintenance
Ministry of Justice,HMCTS,26/06/2015,222003-CIS Labour TFM Estates,BZ999-London Region,MITIE JUSTICE LTD,3065894,"26,894.45 ",CIS Labour - Southwark Crown Court MITIE JUSTICE Phase 1 refurbishment.
Ministry of Justice,HMCTS,16/06/2015,222003-CIS Labour TFM Estates,CZ999-South East Region,MITIE JUSTICE LTD,3053676,"158,968.35 ",M&E Repair & Maintenance
Ministry of Justice,HMCTS,16/06/2015,222003-CIS Labour TFM Estates,CZ999-South East Region,MITIE JUSTICE LTD,3053676,"29,729.14 ",Internal Repair & Maintenance
Ministry of Justice,HMCTS,17/06/2015,222003-CIS Labour TFM Estates,CZ999-South East Region,MITIE JUSTICE LTD,3055831,"29,110.99 ",Internal Repair & Maintenance
Ministry of Justice,HMCTS,09/06/2015,222003-CIS Labour TFM Estates,CZ999-South East Region,MITIE JUSTICE LTD,3045828,"41,665.09 ",CIS Labour Huntingdon Law Courts MITIE JUSTICE  Internal alterations
Ministry of Justice,HMCTS,17/06/2015,222003-CIS Labour TFM Estates,CZ999-South East Region,MITIE JUSTICE LTD,3055831,"64,749.66 ",M&E Repair & Maintenance
Ministry of Justice,HMCTS,23/06/2015,222003-CIS Labour TFM Estates,DZ999-South West Region,MITIE JUSTICE LTD,3061089,"65,960.15 ",M&E Repair & Maintenance
Ministry of Justice,HMCTS,05/06/2015,222003-CIS Labour TFM Estates,DZ999-South West Region,MITIE JUSTICE LTD,3043260,"35,731.07 ",CIS labour - Yeovil County - Mitie Justice -  Building and M & E works
Ministry of Justice,HMCTS,16/06/2015,222003-CIS Labour TFM Estates,DZ999-South West Region,MITIE JUSTICE LTD,3053676,"20,091.56 ",Internal Repair & Maintenance
Ministry of Justice,HMCTS,16/06/2015,222003-CIS Labour TFM Estates,DZ999-South West Region,MITIE JUSTICE LTD,3053676,"154,132.98 ",M&E Repair & Maintenance
Ministry of Justice,HMCTS,23/06/2015,222003-CIS Labour TFM Estates,DZ999-South West Region,MITIE JUSTICE LTD,3061089,"25,884.00 ",Internal Repair & Maintenance
Ministry of Justice,HMCTS,17/06/2015,222003-CIS Labour TFM Estates,EZ999-Wales Region,G4S FACILITIES MANAGEMENT (UK) LTD,3055315,"58,472.72 ",Wales - G4S - Mechanical & Electrical
Ministry of Justice,HMCTS,17/06/2015,222003-CIS Labour TFM Estates,EZ999-Wales Region,G4S FACILITIES MANAGEMENT (UK) LTD,3055315,"12,650.08 ",Wales - G4S - Internal Maintenance
Ministry of Justice,HMCTS,16/06/2015,222003-CIS Labour TFM Estates,FZ999-Midlands Region,G4S FACILITIES MANAGEMENT (UK) LTD,3053522,"27,386.39 ",Internal Repair & Maintenance
Ministry of Justice,HMCTS,16/06/2015,222003-CIS Labour TFM Estates,FZ999-Midlands Region,G4S FACILITIES MANAGEMENT (UK) LTD,3053522,"152,610.08 ",M&E Repair & Maintenance
Ministry of Justice,HMCTS,16/06/2015,222003-CIS Labour TFM Estates,FZ999-Midlands Region,G4S FACILITIES MANAGEMENT (UK) LTD,3053522,"45,186.18 ",M&E Repair & Maintenance
Ministry of Justice,HMCTS,16/06/2015,222003-CIS Labour TFM Estates,FZ999-Midlands Region,G4S FACILITIES MANAGEMENT (UK) LTD,3053522,"2,560.82 ",Internal Repair & Maintenance
Ministry of Justice,HMCTS,16/06/2015,222003-CIS Labour TFM Estates,GZ999-North West Region,G4S FACILITIES MANAGEMENT (UK) LTD,3053522,"145,315.56 ",Internal Maint Service & M&E
Ministry of Justice,HMCTS,09/06/2015,222003-CIS Labour TFM Estates,GZ999-North West Region,G4S FACILITIES MANAGEMENT (UK) LTD,3045579,"186,221.56 ",Internal Maint Service & M&E
Ministry of Justice,HMCTS,19/06/2015,222003-CIS Labour TFM Estates,HZ999-North East Region,G4S FACILITIES MANAGEMENT (UK) LTD,3058171,"174,113.10 ",Fixed Internal Maint Service and M&E
Ministry of Justice,HMCTS,26/06/2015,222003-CIS Labour TFM Estates,HZ999-North East Region,G4S FACILITIES MANAGEMENT (UK) LTD,3065755,"-36,975.55 ",Internal Maintenance and M&E
Ministry of Justice,HMCTS,26/06/2015,222003-CIS Labour TFM Estates,HZ999-North East Region,G4S FACILITIES MANAGEMENT (UK) LTD,3065755,"4,626.79 ",Internal Maintenance and M&E
Ministry of Justice,HMCTS,09/06/2015,222003-CIS Labour TFM Estates,HZ999-North East Region,G4S FACILITIES MANAGEMENT (UK) LTD,3045579,"166,753.12 ",Fixed Internal Maint Service and M&E
Ministry of Justice,HMCTS,26/06/2015,222003-CIS Labour TFM Estates,HZ999-North East Region,G4S FACILITIES MANAGEMENT (UK) LTD,3065755,"36,975.55 ",Internal Maintenance and M&E
Ministry of Justice,HMCTS,26/06/2015,222003-CIS Labour TFM Estates,HZ999-North East Region,G4S FACILITIES MANAGEMENT (UK) LTD,3065755,"-4,626.79 ",Internal Maintenance and M&E
Ministry of Justice,HMCTS,30/06/2015,222003-CIS Labour TFM Estates,BZ999-London Region,MITIE JUSTICE LTD,3068353,"-18,277.29 ",Grounds Maintenance
Ministry of Justice,HMCTS,30/06/2015,222003-CIS Labour TFM Estates,BZ999-London Region,MITIE JUSTICE LTD,3068353,"18,277.29 ",Grounds Maintenance
Ministry of Justice,HMCTS,30/06/2015,222003-CIS Labour TFM Estates,BZ999-London Region,MITIE JUSTICE LTD,3068353,"18,277.29 ",Grounds Maintenance
Ministry of Justice,HMCTS,16/06/2015,222003-CIS Labour TFM Estates,CZ999-South East Region,MITIE JUSTICE LTD,3053676,"21,927.09 ",Grounds Maintenance
Ministry of Justice,HMCTS,17/06/2015,222003-CIS Labour TFM Estates,CZ999-South East Region,MITIE JUSTICE LTD,3055831,"2,138.95 ",Grounds Maintenance
Ministry of Justice,HMCTS,23/06/2015,222003-CIS Labour TFM Estates,DZ999-South West Region,MITIE JUSTICE LTD,3061089,"1,932.75 ",Grounds Maintenance
Ministry of Justice,HMCTS,16/06/2015,222003-CIS Labour TFM Estates,DZ999-South West Region,MITIE JUSTICE LTD,3053676,"10,187.38 ",Grounds Maintenance
Ministry of Justice,HMCTS,17/06/2015,222003-CIS Labour TFM Estates,EZ999-Wales Region,G4S FACILITIES MANAGEMENT (UK) LTD,3055315,"5,997.46 ",Wales - G4S - Grounds Maintenance
Ministry of Justice,HMCTS,16/06/2015,222003-CIS Labour TFM Estates,FZ999-Midlands Region,G4S FACILITIES MANAGEMENT (UK) LTD,3053522,"8,625.34 ",Grounds Maintenance
Ministry of Justice,HMCTS,09/06/2015,222003-CIS Labour TFM Estates,GZ999-North West Region,G4S FACILITIES MANAGEMENT (UK) LTD,3045579,"11,836.35 ",Grounds Maintenance
Ministry of Justice,HMCTS,16/06/2015,222003-CIS Labour TFM Estates,GZ999-North West Region,G4S FACILITIES MANAGEMENT (UK) LTD,3053522,"11,836.35 ",Grounds Maintenance
Ministry of Justice,HMCTS,09/06/2015,222003-CIS Labour TFM Estates,HZ999-North East Region,G4S FACILITIES MANAGEMENT (UK) LTD,3045579,"9,796.82 ",Grounds Maintenance
Ministry of Justice,HMCTS,26/06/2015,222003-CIS Labour TFM Estates,HZ999-North East Region,G4S FACILITIES MANAGEMENT (UK) LTD,3065755,"-32,348.76 ",Grounds Maintenance
Ministry of Justice,HMCTS,26/06/2015,222003-CIS Labour TFM Estates,HZ999-North East Region,G4S FACILITIES MANAGEMENT (UK) LTD,3065755,"-2,773.17 ",Grounds Maintenance
Ministry of Justice,HMCTS,26/06/2015,222003-CIS Labour TFM Estates,HZ999-North East Region,G4S FACILITIES MANAGEMENT (UK) LTD,3065755,"32,348.76 ",Grounds Maintenance
Ministry of Justice,HMCTS,19/06/2015,222003-CIS Labour TFM Estates,HZ999-North East Region,G4S FACILITIES MANAGEMENT (UK) LTD,3058171,"9,796.82 ",Grounds Maintenance
Ministry of Justice,HMCTS,26/06/2015,222003-CIS Labour TFM Estates,HZ999-North East Region,G4S FACILITIES MANAGEMENT (UK) LTD,3065755,"2,773.17 ",Grounds Maintenance
Ministry of Justice,HMCTS,30/06/2015,222003-CIS Labour TFM Estates,BZ999-London Region,MITIE JUSTICE LTD,3068353,"45,027.48 ",Other Maintenance
Ministry of Justice,HMCTS,30/06/2015,222003-CIS Labour TFM Estates,BZ999-London Region,MITIE JUSTICE LTD,3068353,"-45,027.48 ",Other Maintenance
Ministry of Justice,HMCTS,30/06/2015,222003-CIS Labour TFM Estates,BZ999-London Region,MITIE JUSTICE LTD,3068353,"3,986.55 ",Pest and Vermin
Ministry of Justice,HMCTS,16/06/2015,222003-CIS Labour TFM Estates,CZ999-South East Region,MITIE JUSTICE LTD,3053676,801.70 ,Pest Control
Ministry of Justice,HMCTS,16/06/2015,222003-CIS Labour TFM Estates,DZ999-South West Region,MITIE JUSTICE LTD,3053676,"2,187.39 ",Pest Control
Ministry of Justice,HMCTS,16/06/2015,222003-CIS Labour TFM Estates,EZ999-Wales Region,G4S FACILITIES MANAGEMENT (UK) LTD,3053522,860.29 ,Wales - G4S - Pest
Ministry of Justice,HMCTS,16/06/2015,222003-CIS Labour TFM Estates,FZ999-Midlands Region,G4S FACILITIES MANAGEMENT (UK) LTD,3053522,"1,455.12 ",Pest & Vermin
Ministry of Justice,HMCTS,09/06/2015,222003-CIS Labour TFM Estates,GZ999-North West Region,G4S FACILITIES MANAGEMENT (UK) LTD,3045579,806.63 ,Pest & Vermin
Ministry of Justice,HMCTS,16/06/2015,222003-CIS Labour TFM Estates,GZ999-North West Region,G4S FACILITIES MANAGEMENT (UK) LTD,3053522,806.63 ,Pest & Vermin
Ministry of Justice,HMCTS,19/06/2015,222003-CIS Labour TFM Estates,HZ999-North East Region,G4S FACILITIES MANAGEMENT (UK) LTD,3058171,190.33 ,Fixed Pest & Vermin
Ministry of Justice,HMCTS,09/06/2015,222003-CIS Labour TFM Estates,HZ999-North East Region,G4S FACILITIES MANAGEMENT (UK) LTD,3045579,190.33 ,Fixed Pest & Vermin
Ministry of Justice,HMCTS,23/06/2015,222003-CIS Labour TFM Estates,CZ999-South East Region,MITIE JUSTICE LTD,3061089,-954.12 ,Other Soft Services
Ministry of Justice,HMCTS,23/06/2015,222003-CIS Labour TFM Estates,CZ999-South East Region,MITIE JUSTICE LTD,3061089,954.12 ,Other Soft Services
Ministry of Justice,HMCTS,05/06/2015,262000-SCA Costs,FC999-Centrally Managed Costs by F&G,LIBERATA UK LTD,3043095,"-471,039.83 ",Liberata Middle Office: fixed and variable costs (6 months)
Ministry of Justice,HMCTS,05/06/2015,262000-SCA Costs,FC999-Centrally Managed Costs by F&G,LIBERATA UK LTD,3043095,"36,438.25 ",Liberata Middle Office: fixed and variable costs (6 months)
Ministry of Justice,HMCTS,05/06/2015,262000-SCA Costs,FC999-Centrally Managed Costs by F&G,LIBERATA UK LTD,3043095,"30,000.00 ",Liberata Middle Office: fixed and variable costs (6 months)
Ministry of Justice,HMCTS,05/06/2015,262000-SCA Costs,FC999-Centrally Managed Costs by F&G,LIBERATA UK LTD,3043095,"607,918.31 ",Liberata Middle Office: fixed and variable costs (6 months)
Ministry of Justice,HMCTS,05/06/2015,262000-SCA Costs,FC999-Centrally Managed Costs by F&G,LIBERATA UK LTD,3043095,"-607,918.31 ",Liberata Middle Office: fixed and variable costs (6 months)
Ministry of Justice,HMCTS,05/06/2015,262000-SCA Costs,FC999-Centrally Managed Costs by F&G,LIBERATA UK LTD,3043095,"471,039.83 ",Liberata Middle Office: fixed and variable costs (6 months)
Ministry of Justice,HMCTS,05/06/2015,262000-SCA Costs,FC999-Centrally Managed Costs by F&G,LIBERATA UK LTD,3043095,"-36,438.25 ",Liberata Middle Office: fixed and variable costs (6 months)
Ministry of Justice,HMCTS,12/06/2015,262000-SCA Costs,FC999-Centrally Managed Costs by F&G,LIBERATA UK LTD,3050983,"548,931.81 ",Liberata Middle Office: fixed and variable costs (6 months)
Ministry of Justice,HMCTS,05/06/2015,262000-SCA Costs,FC999-Centrally Managed Costs by F&G,LIBERATA UK LTD,3043095,"-30,000.00 ",Liberata Middle Office: fixed and variable costs (6 months)
Ministry of Justice,HMCTS,23/06/2015,262000-SCA Costs,BZ999-London Region,IRON MOUNTAIN (UK) LTD,3060948,"201,375.12 ",Long term records storage
Ministry of Justice,HMCTS,12/06/2015,262000-SCA Costs,CZ999-South East Region,MODERN COURTS (EAST ANGLIA) LTD,3051038,"441,759.99 ",Ipswich & Cambridge - Modern Courts (East Anglia) Ltd - Monthly 2015-16 Unitary Charges for East Anglia PFI
Ministry of Justice,HMCTS,24/06/2015,262000-SCA Costs,DZ999-South West Region,ENTERPRISE CIVIC BUILDINGS LIMITED,3062674,"280,460.98 ",Exeter - Enterprise Civic Buildings  Ltd (W1S 1TD) - Monthly 2014-15 Unitary Charges for Exeter PFI
Ministry of Justice,HMCTS,24/06/2015,262000-SCA Costs,DZ999-South West Region,ENTERPRISE CIVIC BUILDINGS LIMITED,3062674,"280,460.98 ",Exeter - Enterprise Civic Buildings  Ltd - Monthly 2015-16 Unitary Charges for Exeter PFI
Ministry of Justice,HMCTS,30/06/2015,262000-SCA Costs,DZ999-South West Region,SERVICES SUPPORT (AVON & SOMERSET) LTD,3069228,"703,452.39 ",Worle Area Office / Bristol - Services Support (Avon & Somerset) Ltd - Unitary Charges for Worle & Bristol PFI - Monthly 15-16
Ministry of Justice,HMCTS,24/06/2015,262000-SCA Costs,DZ999-South West Region,ENTERPRISE CIVIC BUILDINGS LIMITED,3062674,"-280,460.98 ",Exeter - Enterprise Civic Buildings  Ltd (W1S 1TD) - Monthly 2014-15 Unitary Charges for Exeter PFI
Ministry of Justice,HMCTS,09/06/2015,262000-SCA Costs,FZ999-Midlands Region,DERBYSHIRE COURTS LTD,3045518,"502,659.08 ",Derbyshire PFI - Derbyshire Court Ltd - Monthly 2015-16 Unitary Charges
Ministry of Justice,HMCTS,24/06/2015,262000-SCA Costs,FZ999-Midlands Region,H & W COURTS LIMITED,3062805,"530,564.39 ",Hereford & Worcester - H & W Courts Ltd - Monthly 2015-16 Unitary Charges for H&W PFI
Ministry of Justice,HMCTS,09/06/2015,262000-SCA Costs,FZ999-Midlands Region,DERBYSHIRE COURTS LTD,3045518,"521,632.13 ",Derbyshire PFI - Derbyshire Court Ltd - Monthly 2015-16 Unitary Charges
Ministry of Justice,HMCTS,09/06/2015,262000-SCA Costs,GZ999-North West Region,UK COURT SERVICES (MANCHESTER) LTD,3046967,"522,600.44 ",Manchester - UK Court Services LTD  - Unitary Charges for Manchester PFI Monthly 15-16
Ministry of Justice,HMCTS,02/06/2015,262000-SCA Costs,GZ999-North West Region,UK COURT SERVICES (MANCHESTER) LTD,3040035,"522,600.44 ",Manchester - UK Court Services LTD  - Unitary Charges for Manchester PFI Monthly 15-16
Ministry of Justice,HMCTS,30/06/2015,262000-SCA Costs,GZ999-North West Region,UK COURT SERVICES (MANCHESTER) LTD,3069283,"21,809.99 ",Manchester - UK Court Services LTD (WR12 7LJ) - Unitary Charges for Manchester PFI - Monthly
Ministry of Justice,HMCTS,23/06/2015,262000-SCA Costs,HZ999-North East Region,MODERN COURTS (HUMBERSIDE) LTD,3061090,"374,870.82 ","Beverley, Hull & Bridlington - Modern Courts (Humberside) Ltd (BR8 7AG) - Unitary Charges for Humberside PFI - Monthly"
Ministry of Justice,HMCTS,23/06/2015,262000-SCA Costs,HZ999-North East Region,PALECASTLE LTD,3062028,"104,999.77 ",Sheffield - Palecastle Ltd  - Unitary Charges for Sheffield PFI - Monthly 15-16
Ministry of Justice,HMCTS,26/06/2015,223001-Printing Postage and Office expenditure,HZ999-North East Region,NATIONAL OFFENDERS MANAGEMENT SERVICE (NOMS),10176,"58,936.34 ",HMCTS National consolidated printing costs
Ministry of Justice,HMCTS,09/06/2015,223001-Printing Postage and Office expenditure,HZ999-North East Region,ROYAL MAIL GROUP PLC,3046872,"-161,468.40 ",North East Consolidated  Account - Variable service contract
Ministry of Justice,HMCTS,09/06/2015,223001-Printing Postage and Office expenditure,HZ999-North East Region,ROYAL MAIL GROUP PLC,3046872,"161,468.40 ",North East Consolidated  Account - Variable service contract
Ministry of Justice,HMCTS,09/06/2015,223001-Printing Postage and Office expenditure,HZ999-North East Region,ROYAL MAIL GROUP PLC,3046872,"1,118.51 ",North East Consolidated  Account - Variable service contract
Ministry of Justice,HMCTS,09/06/2015,223001-Printing Postage and Office expenditure,HZ999-North East Region,ROYAL MAIL GROUP PLC,3046872,"160,349.89 ",North East Consolidated  Account - Variable service contract
Ministry of Justice,HMCTS,19/06/2015,265000-IT & Telecommunications,BZ999-London Region,BT PLC,3058057,"5,427.34 ",BF131 MMR
Ministry of Justice,HMCTS,19/06/2015,265000-IT & Telecommunications,BZ999-London Region,BT PLC,3058057,"27,136.71 ",London Region Consolidated - BT One Bill - 2014/15
Ministry of Justice,HMCTS,17/06/2015,223000-Other Expenditure,SK999-Enforcement,HOME OFFICE,10154,"129,087.02 ","Home Office MOU with HMCTS for the use of PNC, from October 2014 to March 2016"
Ministry of Justice,HMCTS,02/06/2015,223000-Other Expenditure,SK999-Enforcement,COLLECTICA LTD,3038933,"126,528.60 ",Bailiffs Invoices that balances( VAT on fee collected ) to 0.00 FA120 NON PO
Ministry of Justice,HMCTS,02/06/2015,223000-Other Expenditure,SK999-Enforcement,COLLECTICA LTD,3038933,"132,225.72 ",Bailiffs Invoices that balances  (VAT on fee collected ) to 0.00 BA120 NON PO
Ministry of Justice,HMCTS,30/06/2015,223000-Other Expenditure,FC999-Centrally Managed Costs by F&G,OXFORDSHIRE COUNTY COUNCIL,3069164,"5,689.44 ",HMCTS HQ HR Support - Pension Recharges - Oxfordshire Council Pension Fund FY 15/16
Ministry of Justice,HMCTS,16/06/2015,223000-Other Expenditure,FC999-Centrally Managed Costs by F&G,OXFORDSHIRE COUNTY COUNCIL,3054563,"-5,678.16 ",HMCS HQ HR Support - Pension Recharges - Oxfordshire Council Pension Fund
Ministry of Justice,HMCTS,16/06/2015,223000-Other Expenditure,FC999-Centrally Managed Costs by F&G,OXFORDSHIRE COUNTY COUNCIL,3054563,"28,390.79 ",HMCS HQ HR Support - Pension Recharges - Oxfordshire Council Pension Fund
Ministry of Justice,HMCTS,17/06/2015,223000-Other Expenditure,FC999-Centrally Managed Costs by F&G,TAMESIDE METROPOLITAN BOROUGH,3057208,"47,309.09 ",HMCS HQ HR Support - Fees Relating To The Magistrates Court Bulk Transfer - Greater Manchester Pension Fund (Tameside)
Ministry of Justice,HMCTS,16/06/2015,223000-Other Expenditure,FC999-Centrally Managed Costs by F&G,OXFORDSHIRE COUNTY COUNCIL,3054563,"28,390.79 ",HMCS HQ HR Support - Pension Recharges - Oxfordshire Council Pension Fund
Ministry of Justice,HMCTS,17/06/2015,223000-Other Expenditure,FC999-Centrally Managed Costs by F&G,TAMESIDE METROPOLITAN BOROUGH,3057208,"9,461.82 ",HMCS HQ HR Support - Fees Relating To The Magistrates Court Bulk Transfer - Greater Manchester Pension Fund (Tameside)
Ministry of Justice,HMCTS,17/06/2015,223000-Other Expenditure,FC999-Centrally Managed Costs by F&G,TAMESIDE METROPOLITAN BOROUGH,3057208,"47,309.09 ",HMCS HQ HR Support - Fees Relating To The Magistrates Court Bulk Transfer - Greater Manchester Pension Fund (Tameside)
Ministry of Justice,HMCTS,30/06/2015,223000-Other Expenditure,FC999-Centrally Managed Costs by F&G,OXFORDSHIRE COUNTY COUNCIL,3069164,"-5,689.44 ",HMCTS HQ HR Support - Pension Recharges - Oxfordshire Council Pension Fund FY 15/16
Ministry of Justice,HMCTS,17/06/2015,223000-Other Expenditure,FC999-Centrally Managed Costs by F&G,TAMESIDE METROPOLITAN BOROUGH,3057208,"-47,309.09 ",HMCS HQ HR Support - Fees Relating To The Magistrates Court Bulk Transfer - Greater Manchester Pension Fund (Tameside)
Ministry of Justice,HMCTS,17/06/2015,223000-Other Expenditure,FC999-Centrally Managed Costs by F&G,TAMESIDE METROPOLITAN BOROUGH,3057208,"-47,309.09 ",HMCS HQ HR Support - Fees Relating To The Magistrates Court Bulk Transfer - Greater Manchester Pension Fund (Tameside)
Ministry of Justice,HMCTS,16/06/2015,223000-Other Expenditure,FC999-Centrally Managed Costs by F&G,OXFORDSHIRE COUNTY COUNCIL,3054563,"5,678.16 ",HMCS HQ HR Support - Pension Recharges - Oxfordshire Council Pension Fund
Ministry of Justice,HMCTS,30/06/2015,223000-Other Expenditure,FC999-Centrally Managed Costs by F&G,OXFORDSHIRE COUNTY COUNCIL,3069164,"-28,447.21 ",HMCTS HQ HR Support - Pension Recharges - Oxfordshire Council Pension Fund FY 15/16
Ministry of Justice,HMCTS,16/06/2015,223000-Other Expenditure,FC999-Centrally Managed Costs by F&G,OXFORDSHIRE COUNTY COUNCIL,3054563,"-28,390.79 ",HMCS HQ HR Support - Pension Recharges - Oxfordshire Council Pension Fund
Ministry of Justice,HMCTS,30/06/2015,223000-Other Expenditure,FC999-Centrally Managed Costs by F&G,OXFORDSHIRE COUNTY COUNCIL,3069164,"28,447.21 ",HMCTS HQ HR Support - Pension Recharges - Oxfordshire Council Pension Fund FY 15/16
Ministry of Justice,HMCTS,17/06/2015,223000-Other Expenditure,FC999-Centrally Managed Costs by F&G,TAMESIDE METROPOLITAN BOROUGH,3057208,"-9,461.82 ",HMCS HQ HR Support - Fees Relating To The Magistrates Court Bulk Transfer - Greater Manchester Pension Fund (Tameside)
Ministry of Justice,HMCTS,30/06/2015,223000-Other Expenditure,FC999-Centrally Managed Costs by F&G,OXFORDSHIRE COUNTY COUNCIL,3069164,"28,447.21 ",HMCTS HQ HR Support - Pension Recharges - Oxfordshire Council Pension Fund FY 15/16
Ministry of Justice,HMCTS,17/06/2015,223000-Other Expenditure,FC999-Centrally Managed Costs by F&G,TAMESIDE METROPOLITAN BOROUGH,3057208,"47,309.09 ",HMCTS HQ HR Support - Pension Recharges - Greater Manchester Pension Fund (Tameside) FY 15/16
Ministry of Justice,HMCTS,30/06/2015,265000-IT & Telecommunications,AP999-HQ - Strategy & Change,ATOS IT SERVICES UK LTD,3068054,528.00 ,Relocation of 8 desktop client devices to a different building.
Ministry of Justice,HMCTS,30/06/2015,265000-IT & Telecommunications,AP999-HQ - Strategy & Change,ATOS IT SERVICES UK LTD,3068054,"2,056.30 ","22"" LCD Display"
Ministry of Justice,HMCTS,30/06/2015,265000-IT & Telecommunications,AP999-HQ - Strategy & Change,ATOS IT SERVICES UK LTD,3068054,"1,028.15 ","22"" LCD Display"
Ministry of Justice,HMCTS,30/06/2015,265000-IT & Telecommunications,AP999-HQ - Strategy & Change,ATOS IT SERVICES UK LTD,3068054,6.38 ,HP USB/PS2 Optical Scroll Mouse
Ministry of Justice,HMCTS,30/06/2015,265000-IT & Telecommunications,AP999-HQ - Strategy & Change,ATOS IT SERVICES UK LTD,3068054,"1,028.15 ","22"" LCD Display"
Ministry of Justice,HMCTS,30/06/2015,265000-IT & Telecommunications,AP999-HQ - Strategy & Change,ATOS IT SERVICES UK LTD,3068054,11.16 ,HP Standard USB Keyboard
Ministry of Justice,HMCTS,30/06/2015,265000-IT & Telecommunications,AP999-HQ - Strategy & Change,ATOS IT SERVICES UK LTD,3068054,"2,056.30 ","22"" LCD Display"
Ministry of Justice,HMCTS,30/06/2015,265000-IT & Telecommunications,AP999-HQ - Strategy & Change,ATOS IT SERVICES UK LTD,3068054,205.63 ,"22"" LCD Display"
Ministry of Justice,HMCTS,30/06/2015,265000-IT & Telecommunications,AP999-HQ - Strategy & Change,ATOS IT SERVICES UK LTD,3068054,"2,056.30 ","22"" LCD Display"
Ministry of Justice,HMCTS,30/06/2015,265000-IT & Telecommunications,AP999-HQ - Strategy & Change,ATOS IT SERVICES UK LTD,3068054,"3,317.00 ",6 to 20  Devices Multi Function device                  Xerox Workcenter 5745 - A3 Black and White printer with Colour scanner
Ministry of Justice,HMCTS,30/06/2015,265000-IT & Telecommunications,AP999-HQ - Strategy & Change,ATOS IT SERVICES UK LTD,3068054,616.89 ,"22"" LCD Display"
Ministry of Justice,HMCTS,30/06/2015,265000-IT & Telecommunications,BZ999-London Region,ATOS IT SERVICES UK LTD,3068054,16.14 ,VGA Monitor Extension Cable
Ministry of Justice,HMCTS,30/06/2015,265000-IT & Telecommunications,BZ999-London Region,ATOS IT SERVICES UK LTD,3068054,43.22 ,Andrea NC181VM USB headset
Ministry of Justice,HMCTS,30/06/2015,265000-IT & Telecommunications,BZ999-London Region,ATOS IT SERVICES UK LTD,3068054,58.00 ,"Avocent SwitchView 2-Port Desktop KVM (Keyboard, Video & Mouse) Switch"
Ministry of Justice,HMCTS,30/06/2015,265000-IT & Telecommunications,BZ999-London Region,ATOS IT SERVICES UK LTD,3068054,11.10 ,Ultra Flat Keyboard
Ministry of Justice,HMCTS,30/06/2015,265000-IT & Telecommunications,BZ999-London Region,ATOS IT SERVICES UK LTD,3068054,46.05 ,Logitech Trackman Cordless Ergonomic Mouse
Ministry of Justice,HMCTS,30/06/2015,265000-IT & Telecommunications,BZ999-London Region,ATOS IT SERVICES UK LTD,3068054,22.25 ,Andrea NC-181 headset
Ministry of Justice,HMCTS,30/06/2015,265000-IT & Telecommunications,BZ999-London Region,ATOS IT SERVICES UK LTD,3068054,10.92 ,Compact Keyboard
Ministry of Justice,HMCTS,30/06/2015,265000-IT & Telecommunications,BZ999-London Region,ATOS IT SERVICES UK LTD,3068054,15.39 ,Standard Keyboard
Ministry of Justice,HMCTS,30/06/2015,265000-IT & Telecommunications,BZ999-London Region,ATOS IT SERVICES UK LTD,3068054,183.30 ,Low-noise / soft touch keyboard
Ministry of Justice,HMCTS,30/06/2015,265000-IT & Telecommunications,CZ999-South East Region,ATOS IT SERVICES UK LTD,3068054,60.34 ,Relocation of a single desktop client device within the same building
Ministry of Justice,HMCTS,30/06/2015,265000-IT & Telecommunications,CZ999-South East Region,ATOS IT SERVICES UK LTD,3068054,83.96 ,Evoluent Vertical Mouse
Ministry of Justice,HMCTS,30/06/2015,265000-IT & Telecommunications,CZ999-South East Region,ATOS IT SERVICES UK LTD,3068054,18.33 ,Low-noise / soft touch keyboard
Ministry of Justice,HMCTS,30/06/2015,265000-IT & Telecommunications,CZ999-South East Region,ATOS IT SERVICES UK LTD,3068054,488.99 ,1 to 5 Devices Redeploy a Print Device
Ministry of Justice,HMCTS,30/06/2015,265000-IT & Telecommunications,CZ999-South East Region,ATOS IT SERVICES UK LTD,3068054,860.00 ,1 to 5 Devices Xerox A4 Black & White Laser Printer 3600EDN
Ministry of Justice,HMCTS,30/06/2015,265000-IT & Telecommunications,CZ999-South East Region,ATOS IT SERVICES UK LTD,3068054,15.00 ,DVI to VGA Cable Adapter
Ministry of Justice,HMCTS,30/06/2015,265000-IT & Telecommunications,CZ999-South East Region,ATOS IT SERVICES UK LTD,3068054,488.99 ,1 to 5 Devices National Relocation -Printer or MFD (Multi Function Device)
Ministry of Justice,HMCTS,30/06/2015,265000-IT & Telecommunications,DZ999-South West Region,ATOS IT SERVICES UK LTD,3068054,10.50 ,3m Cat6 network cable (purple)
Ministry of Justice,HMCTS,30/06/2015,265000-IT & Telecommunications,EZ999-Wales Region,ATOS IT SERVICES UK LTD,3068054,216.00 ,Relocation of 3 desktop client devices to a different building.
Ministry of Justice,HMCTS,30/06/2015,265000-IT & Telecommunications,EZ999-Wales Region,ATOS IT SERVICES UK LTD,3068054,10.00 ,3M USB Device Cable
Ministry of Justice,HMCTS,30/06/2015,265000-IT & Telecommunications,EZ999-Wales Region,ATOS IT SERVICES UK LTD,3068054,168.10 ,"19"" LCD Display"
Ministry of Justice,HMCTS,30/06/2015,265000-IT & Telecommunications,EZ999-Wales Region,ATOS IT SERVICES UK LTD,3068054,83.96 ,AirObic Mouse (also called Quill Mouse)
Ministry of Justice,HMCTS,30/06/2015,265000-IT & Telecommunications,FZ999-Midlands Region,ATOS IT SERVICES UK LTD,3068054,488.99 ,1 to 5 Devices National Relocation -Printer or MFD (Multi Function Device)
Ministry of Justice,HMCTS,30/06/2015,265000-IT & Telecommunications,FZ999-Midlands Region,ATOS IT SERVICES UK LTD,3068054,8.07 ,VGA Monitor Extension Cable
Ministry of Justice,HMCTS,30/06/2015,265000-IT & Telecommunications,FZ999-Midlands Region,ATOS IT SERVICES UK LTD,3068054,60.34 ,Desktop PC - HP DC8300
Ministry of Justice,HMCTS,30/06/2015,265000-IT & Telecommunications,FZ999-Midlands Region,ATOS IT SERVICES UK LTD,3068054,168.02 ,RollerMouse Pro2
Ministry of Justice,HMCTS,30/06/2015,265000-IT & Telecommunications,FZ999-Midlands Region,ATOS IT SERVICES UK LTD,3068054,488.99 ,1 to 5 Devices Redeploy a Print Device
Ministry of Justice,HMCTS,30/06/2015,265000-IT & Telecommunications,GZ999-North West Region,ATOS IT SERVICES UK LTD,3068054,43.22 ,NC181VM USB headset
Ministry of Justice,HMCTS,30/06/2015,265000-IT & Telecommunications,HZ999-North East Region,ATOS IT SERVICES UK LTD,3068054,282.62 ,"24"" LCD Display"
Ministry of Justice,HMCTS,30/06/2015,265000-IT & Telecommunications,HZ999-North East Region,ATOS IT SERVICES UK LTD,3068054,116.00 ,Relocation of a single desktop client device to a different building.
Ministry of Justice,HMCTS,30/06/2015,265000-IT & Telecommunications,HZ999-North East Region,ATOS IT SERVICES UK LTD,3068054,43.22 ,Andrea NC181VM USB headset
Ministry of Justice,HMCTS,30/06/2015,265000-IT & Telecommunications,HZ999-North East Region,ATOS IT SERVICES UK LTD,3068054,306.43 ,Thermal Transfer Barcode Label Printer
Ministry of Justice,HMCTS,30/06/2015,265000-IT & Telecommunications,SK999-Enforcement,ATOS IT SERVICES UK LTD,3068054,33.33 ,Large Print Keyboard-Part of consolidated Invoice for multiple tansactions
Ministry of Justice,HMCTS,30/06/2015,265000-IT & Telecommunications,SK999-Enforcement,ATOS IT SERVICES UK LTD,3068054,83.96 ,Evoluent Vertical Mouse-Part of consolidated Invoice for multiple tansactions
Ministry of Justice,HMCTS,30/06/2015,265000-IT & Telecommunications,SK999-Enforcement,ATOS IT SERVICES UK LTD,3068054,180.00 ,Relocation of 5 desktop client devices within the same building.-Part of consolidated Invoice for multiple tansactions
Ministry of Justice,HMCTS,30/06/2015,265000-IT & Telecommunications,SK999-Enforcement,ATOS IT SERVICES UK LTD,3068054,144.00 ,Relocation of 2 desktop client devices to a different building.Part of consolidated Invoice for multiple tansactions
Ministry of Justice,HMCTS,30/06/2015,265000-IT & Telecommunications,SK999-Enforcement,ATOS IT SERVICES UK LTD,3068054,488.99 ,1 to 5 Devices Redeploy a Print Device Part of consolidated Invoice for multiple tansactions
Ministry of Justice,HMCTS,30/06/2015,265000-IT & Telecommunications,SK999-Enforcement,ATOS IT SERVICES UK LTD,3068054,416.16 ,1 to 5 Devices Local Relocation (same Authority Premises) -  Printer or MFD-Part of consolidated Invoice for multiple tansactions
Ministry of Justice,HMCTS,30/06/2015,265000-IT & Telecommunications,SM999-National Business Centres,ATOS IT SERVICES UK LTD,3068054,488.99 ,1 to 5 Devices National Relocation -Printer or MFD (Multi Function Device) Part of consolidated Invoice for multiple tansactions
Ministry of Justice,HMCTS,30/06/2015,265000-IT & Telecommunications,SM999-National Business Centres,ATOS IT SERVICES UK LTD,3068054,92.44 ,Humanscale M2 Monitor Arm Part of consolidated Invoice for multiple tansactions
Ministry of Justice,HMCTS,30/06/2015,265000-IT & Telecommunications,SM999-National Business Centres,ATOS IT SERVICES UK LTD,3068054,18.33 ,Low-noise / soft touch keyboard Part of consolidated Invoice for multiple tansactions
Ministry of Justice,HMCTS,30/06/2015,265000-IT & Telecommunications,SM999-National Business Centres,ATOS IT SERVICES UK LTD,3068054,18.33 ,Low-noise / soft touch keyboard Part of consolidated Invoice for multiple tansactions
Ministry of Justice,HMCTS,30/06/2015,265000-IT & Telecommunications,SM999-National Business Centres,ATOS IT SERVICES UK LTD,3068054,488.99 ,1 to 5 Devices National Relocation -Printer or MFD (Multi Function Device) Part of consolidated Invoice for multiple tansactions
Ministry of Justice,HMCTS,30/06/2015,265000-IT & Telecommunications,SM999-National Business Centres,ATOS IT SERVICES UK LTD,3068054,282.62 ,"24"" LCD Display Part of consolidated Invoice for multiple tansactions"
Ministry of Justice,HMCTS,30/06/2015,265000-IT & Telecommunications,SM999-National Business Centres,ATOS IT SERVICES UK LTD,3068054,43.22 ,Andrea NC181VM USB headset Part of consolidated Invoice for multiple tansactions
Ministry of Justice,HMCTS,30/06/2015,265000-IT & Telecommunications,AP999-HQ - Strategy & Change,ATOS IT SERVICES UK LTD,3068054,164.00 ,"Standard Form Laptop - HP EliteBook 8470p (14"" screen)"
Ministry of Justice,HMCTS,30/06/2015,265000-IT & Telecommunications,AQ999-HQ - Finance & Governance,ATOS IT SERVICES UK LTD,3068054,164.00 ,"Standard Form Laptop - HP EliteBook 8470p (14"" screen)"
Ministry of Justice,HMCTS,30/06/2015,265000-IT & Telecommunications,BZ999-London Region,ATOS IT SERVICES UK LTD,3068054,164.00 ,HMCTS Judicial Laptop
Ministry of Justice,HMCTS,30/06/2015,265000-IT & Telecommunications,CZ999-South East Region,ATOS IT SERVICES UK LTD,3068054,164.00 ,Pool Laptop
Ministry of Justice,HMCTS,30/06/2015,265000-IT & Telecommunications,DZ999-South West Region,ATOS IT SERVICES UK LTD,3068054,113.16 ,"HP 230W Docking Station for 8440p, 8540p, 8460p, 8560p, 8470p and 8570p laptops"
Ministry of Justice,HMCTS,30/06/2015,265000-IT & Telecommunications,GZ999-North West Region,ATOS IT SERVICES UK LTD,3068054,76.90 ,"Docking Station for 2540p,2560p and 2570p laptop"
Ministry of Justice,HMCTS,30/06/2015,265000-IT & Telecommunications,GZ999-North West Region,ATOS IT SERVICES UK LTD,3068054,164.00 ,HMCTS Judicial Laptop
Ministry of Justice,HMCTS,30/06/2015,265000-IT & Telecommunications,HZ999-North East Region,ATOS IT SERVICES UK LTD,3068054,164.00 ,"Standard Form Laptop - HP EliteBook 8470p (14"" screen)"
Ministry of Justice,HMCTS,30/06/2015,265000-IT & Telecommunications,AS999-HQ - Human Resources,ATOS IT SERVICES UK LTD,3068054,25.78 ,New IPT Mobility account with voicemail account 1-10 Accounts
Ministry of Justice,HMCTS,30/06/2015,265000-IT & Telecommunications,AL999-HQ - CEO,ATOS IT SERVICES UK LTD,3068054,51.56 ,Pick Up Group - Amend -Part of consolidated Invoice for multiple tansactions
Ministry of Justice,HMCTS,30/06/2015,265000-IT & Telecommunications,AL999-HQ - CEO,ATOS IT SERVICES UK LTD,3068054,25.78 ,New IPT Mobility account with voicemail account 1-10 Accounts-Part of consolidated Invoice for multiple tansactions
Ministry of Justice,HMCTS,30/06/2015,265000-IT & Telecommunications,"AM999-HQ - Civil, Family & Tribunals",ATOS IT SERVICES UK LTD,3068054,99.88 ,Plantronics HW261 N Duo Headset 1-11 devices- Part of consolidated Invoice for multiple tansactions
Ministry of Justice,HMCTS,30/06/2015,265000-IT & Telecommunications,"AM999-HQ - Civil, Family & Tribunals",ATOS IT SERVICES UK LTD,3068054,25.78 ,New IPT Mobility account with voicemail account 1-10 Accounts-Part of consolidated Invoice for multiple tansactions
Ministry of Justice,HMCTS,30/06/2015,265000-IT & Telecommunications,AP999-HQ - Strategy & Change,ATOS IT SERVICES UK LTD,3068054,46.00 ,Provision and support of Secure Remote Access (RWSII) Capability
Ministry of Justice,HMCTS,30/06/2015,265000-IT & Telecommunications,AP999-HQ - Strategy & Change,ATOS IT SERVICES UK LTD,3068054,25.78 ,New IPT Mobility account with voicemail account 1-10 Accounts
Ministry of Justice,HMCTS,30/06/2015,265000-IT & Telecommunications,AP999-HQ - Strategy & Change,ATOS IT SERVICES UK LTD,3068054,103.12 ,Deletion of a Mobility user account 11-20 Accounts
Ministry of Justice,HMCTS,30/06/2015,265000-IT & Telecommunications,AP999-HQ - Strategy & Change,ATOS IT SERVICES UK LTD,3068054,25.00 ,5m Network Cable
Ministry of Justice,HMCTS,30/06/2015,265000-IT & Telecommunications,AP999-HQ - Strategy & Change,ATOS IT SERVICES UK LTD,3068054,25.78 ,New IPT Mobility account with voicemail account 1-10 Accounts
Ministry of Justice,HMCTS,30/06/2015,265000-IT & Telecommunications,AP999-HQ - Strategy & Change,ATOS IT SERVICES UK LTD,3068054,46.00 ,Provision and support of Secure Remote Access (RWSII) Capability
Ministry of Justice,HMCTS,30/06/2015,265000-IT & Telecommunications,AP999-HQ - Strategy & Change,ATOS IT SERVICES UK LTD,3068054,51.56 ,New IPT Mobility account with voicemail account 1-10 Accounts
Ministry of Justice,HMCTS,30/06/2015,265000-IT & Telecommunications,AP999-HQ - Strategy & Change,ATOS IT SERVICES UK LTD,3068054,257.80 ,Deletion of a Mobility user account 11-20 Accounts
Ministry of Justice,HMCTS,30/06/2015,265000-IT & Telecommunications,AP999-HQ - Strategy & Change,ATOS IT SERVICES UK LTD,3068054,309.00 ,Polycom Soundstation 2 Conference Phone 1-11 devices
Ministry of Justice,HMCTS,30/06/2015,265000-IT & Telecommunications,AP999-HQ - Strategy & Change,ATOS IT SERVICES UK LTD,3068054,35.00 ,3m Network Cable
Ministry of Justice,HMCTS,30/06/2015,265000-IT & Telecommunications,AP999-HQ - Strategy & Change,ATOS IT SERVICES UK LTD,3068054,618.00 ,Recovery of a redundant IPT handset from site 1-11 devices
Ministry of Justice,HMCTS,30/06/2015,265000-IT & Telecommunications,AP999-HQ - Strategy & Change,ATOS IT SERVICES UK LTD,3068054,25.78 ,New IPT Mobility account with voicemail account 1-10 Accounts
Ministry of Justice,HMCTS,30/06/2015,265000-IT & Telecommunications,AP999-HQ - Strategy & Change,ATOS IT SERVICES UK LTD,3068054,46.00 ,Provision and support of Secure Remote Access (RWSII) Capability
Ministry of Justice,HMCTS,30/06/2015,265000-IT & Telecommunications,AP999-HQ - Strategy & Change,ATOS IT SERVICES UK LTD,3068054,25.78 ,Fixed Handset Conversion to Mobility Handset & Mobility Account 1 - 11 devices
Ministry of Justice,HMCTS,30/06/2015,265000-IT & Telecommunications,AP999-HQ - Strategy & Change,ATOS IT SERVICES UK LTD,3068054,25.78 ,Mobility Account Changes 1-10 Accounts
Ministry of Justice,HMCTS,30/06/2015,265000-IT & Telecommunications,AQ999-HQ - Finance & Governance,ATOS IT SERVICES UK LTD,3068054,46.00 ,Provision and support of Secure Remote Access (RWSII) Capability
Ministry of Justice,HMCTS,30/06/2015,265000-IT & Telecommunications,AQ999-HQ - Finance & Governance,ATOS IT SERVICES UK LTD,3068054,6.28 ,"TechAir 13.3"" Neoprene Slip Case"
Ministry of Justice,HMCTS,30/06/2015,265000-IT & Telecommunications,AQ999-HQ - Finance & Governance,ATOS IT SERVICES UK LTD,3068054,25.78 ,Fixed IPT Phone Change 1-10 Devices
Ministry of Justice,HMCTS,30/06/2015,265000-IT & Telecommunications,AT899-HQ - ICT,ATOS IT SERVICES UK LTD,3068054,25.78 ,Pick Up Group - Amend -Part of consolidated Invoice for multiple tansactions
Ministry of Justice,HMCTS,30/06/2015,265000-IT & Telecommunications,AT899-HQ - ICT,ATOS IT SERVICES UK LTD,3068054,25.78 ,New IPT Mobility account without voicemail 1-10 Accounts -Part of consolidated Invoice for multiple tansactions
Ministry of Justice,HMCTS,30/06/2015,265000-IT & Telecommunications,BZ999-London Region,ATOS IT SERVICES UK LTD,3068054,25.78 ,Pick Up Group - Amend
Ministry of Justice,HMCTS,30/06/2015,265000-IT & Telecommunications,BZ999-London Region,ATOS IT SERVICES UK LTD,3068054,25.78 ,Fixed IPT Phone Change 1-10 Devices
Ministry of Justice,HMCTS,30/06/2015,265000-IT & Telecommunications,BZ999-London Region,ATOS IT SERVICES UK LTD,3068054,25.78 ,New IPT Handset 1 - 11 devices
Ministry of Justice,HMCTS,30/06/2015,265000-IT & Telecommunications,BZ999-London Region,ATOS IT SERVICES UK LTD,3068054,25.78 ,Mobility Account Changes 1-10 Accounts
Ministry of Justice,HMCTS,30/06/2015,265000-IT & Telecommunications,BZ999-London Region,ATOS IT SERVICES UK LTD,3068054,190.55 ,Plantronics CS510 Wireless Headset 1-11 devices
Ministry of Justice,HMCTS,30/06/2015,265000-IT & Telecommunications,BZ999-London Region,ATOS IT SERVICES UK LTD,3068054,25.78 ,Voicemail - Removal Of Voicemail 1-10 Accounts
Ministry of Justice,HMCTS,30/06/2015,265000-IT & Telecommunications,BZ999-London Region,ATOS IT SERVICES UK LTD,3068054,25.78 ,Pick Up Group - Amend
Ministry of Justice,HMCTS,30/06/2015,265000-IT & Telecommunications,BZ999-London Region,ATOS IT SERVICES UK LTD,3068054,25.78 ,New IPT Handset 1 - 11 devices
Ministry of Justice,HMCTS,30/06/2015,265000-IT & Telecommunications,BZ999-London Region,ATOS IT SERVICES UK LTD,3068054,25.78 ,Voicemail - New Voicemail Account 1-10 Accounts
Ministry of Justice,HMCTS,30/06/2015,265000-IT & Telecommunications,BZ999-London Region,ATOS IT SERVICES UK LTD,3068054,25.78 ,Hunt Group - Extension
Ministry of Justice,HMCTS,30/06/2015,265000-IT & Telecommunications,BZ999-London Region,ATOS IT SERVICES UK LTD,3068054,25.78 ,Hunt Group - Extension
Ministry of Justice,HMCTS,30/06/2015,265000-IT & Telecommunications,BZ999-London Region,ATOS IT SERVICES UK LTD,3068054,25.78 ,New IPT Handset 1 - 11 devices
Ministry of Justice,HMCTS,30/06/2015,265000-IT & Telecommunications,BZ999-London Region,ATOS IT SERVICES UK LTD,3068054,25.78 ,Pick Up Group - Amend
Ministry of Justice,HMCTS,30/06/2015,265000-IT & Telecommunications,BZ999-London Region,ATOS IT SERVICES UK LTD,3068054,22.28 ,Plantronics Headset Ear Cushions 1-11 devices
Ministry of Justice,HMCTS,30/06/2015,265000-IT & Telecommunications,BZ999-London Region,ATOS IT SERVICES UK LTD,3068054,25.78 ,Deletion of a Mobility user account 1-10 Accounts
Ministry of Justice,HMCTS,30/06/2015,265000-IT & Telecommunications,BZ999-London Region,ATOS IT SERVICES UK LTD,3068054,25.78 ,Mobility Account Changes 1-10 Accounts
Ministry of Justice,HMCTS,30/06/2015,265000-IT & Telecommunications,BZ999-London Region,ATOS IT SERVICES UK LTD,3068054,257.80 ,Deletion of a Mobility user account 11-20 Accounts
Ministry of Justice,HMCTS,30/06/2015,265000-IT & Telecommunications,BZ999-London Region,ATOS IT SERVICES UK LTD,3068054,25.78 ,Voicemail - Removal Of Voicemail 1-10 Accounts
Ministry of Justice,HMCTS,30/06/2015,265000-IT & Telecommunications,BZ999-London Region,ATOS IT SERVICES UK LTD,3068054,25.78 ,Pick Up Group - Amend
Ministry of Justice,HMCTS,30/06/2015,265000-IT & Telecommunications,BZ999-London Region,ATOS IT SERVICES UK LTD,3068054,25.78 ,New IPT Handset 1 - 11 devices
Ministry of Justice,HMCTS,30/06/2015,265000-IT & Telecommunications,BZ999-London Region,ATOS IT SERVICES UK LTD,3068054,25.78 ,New IPT Mobility account with voicemail account 1-10 Accounts
Ministry of Justice,HMCTS,30/06/2015,265000-IT & Telecommunications,BZ999-London Region,ATOS IT SERVICES UK LTD,3068054,25.78 ,Hunt Group - Extension
Ministry of Justice,HMCTS,30/06/2015,265000-IT & Telecommunications,BZ999-London Region,ATOS IT SERVICES UK LTD,3068054,25.78 ,New IPT Handset 1 - 11 devices
Ministry of Justice,HMCTS,30/06/2015,265000-IT & Telecommunications,BZ999-London Region,ATOS IT SERVICES UK LTD,3068054,25.78 ,Mobility Account Changes 1-10 Accounts
Ministry of Justice,HMCTS,30/06/2015,265000-IT & Telecommunications,BZ999-London Region,ATOS IT SERVICES UK LTD,3068054,25.78 ,New IPT Handset 1 - 11 devices
Ministry of Justice,HMCTS,30/06/2015,265000-IT & Telecommunications,BZ999-London Region,ATOS IT SERVICES UK LTD,3068054,25.78 ,New IPT Handset 1 - 11 devices
Ministry of Justice,HMCTS,30/06/2015,265000-IT & Telecommunications,BZ999-London Region,ATOS IT SERVICES UK LTD,3068054,25.78 ,Mobility Account Changes 1-10 Accounts
Ministry of Justice,HMCTS,30/06/2015,265000-IT & Telecommunications,BZ999-London Region,ATOS IT SERVICES UK LTD,3068054,25.78 ,Voicemail - Removal Of Voicemail 1-10 Accounts
Ministry of Justice,HMCTS,30/06/2015,265000-IT & Telecommunications,BZ999-London Region,ATOS IT SERVICES UK LTD,3068054,25.78 ,New IPT Handset 1 - 11 devices
Ministry of Justice,HMCTS,30/06/2015,265000-IT & Telecommunications,BZ999-London Region,ATOS IT SERVICES UK LTD,3068054,25.78 ,Hunt Group - Extension
Ministry of Justice,HMCTS,30/06/2015,265000-IT & Telecommunications,BZ999-London Region,ATOS IT SERVICES UK LTD,3068054,257.80 ,Deletion of a Mobility user account 11-20 Accounts
Ministry of Justice,HMCTS,30/06/2015,265000-IT & Telecommunications,BZ999-London Region,ATOS IT SERVICES UK LTD,3068054,25.78 ,Mobility Account Changes 1-10 Accounts
Ministry of Justice,HMCTS,30/06/2015,265000-IT & Telecommunications,BZ999-London Region,ATOS IT SERVICES UK LTD,3068054,25.78 ,New IPT Mobility account with voicemail account 1-10 Accounts
Ministry of Justice,HMCTS,30/06/2015,265000-IT & Telecommunications,BZ999-London Region,ATOS IT SERVICES UK LTD,3068054,25.78 ,New IPT Handset 1 - 11 devices
Ministry of Justice,HMCTS,30/06/2015,265000-IT & Telecommunications,BZ999-London Region,ATOS IT SERVICES UK LTD,3068054,25.78 ,New IPT Handset 1 - 11 devices
Ministry of Justice,HMCTS,30/06/2015,265000-IT & Telecommunications,BZ999-London Region,ATOS IT SERVICES UK LTD,3068054,25.78 ,Fixed IPT Phone Transfer to a new user 1-10 Devices
Ministry of Justice,HMCTS,30/06/2015,265000-IT & Telecommunications,CZ999-South East Region,ATOS IT SERVICES UK LTD,3068054,25.78 ,New IPT Handset 1 - 11 devices
Ministry of Justice,HMCTS,30/06/2015,265000-IT & Telecommunications,CZ999-South East Region,ATOS IT SERVICES UK LTD,3068054,175.10 ,Plantronics CS540 Wireless Headset 1-11 devices
Ministry of Justice,HMCTS,30/06/2015,265000-IT & Telecommunications,CZ999-South East Region,ATOS IT SERVICES UK LTD,3068054,25.78 ,Change Dialing Permissions 1-10 Devices
Ministry of Justice,HMCTS,30/06/2015,265000-IT & Telecommunications,CZ999-South East Region,ATOS IT SERVICES UK LTD,3068054,46.00 ,Provision and support of Secure Remote Access (RWSII) Capability
Ministry of Justice,HMCTS,30/06/2015,265000-IT & Telecommunications,CZ999-South East Region,ATOS IT SERVICES UK LTD,3068054,370.80 ,Recovery of a redundant IPT handset from site 1-11 devices
Ministry of Justice,HMCTS,30/06/2015,265000-IT & Telecommunications,CZ999-South East Region,ATOS IT SERVICES UK LTD,3068054,25.78 ,New IPT Mobility account without voicemail 1-10 Accounts
Ministry of Justice,HMCTS,30/06/2015,265000-IT & Telecommunications,CZ999-South East Region,ATOS IT SERVICES UK LTD,3068054,51.56 ,Change Dialing Permissions 1-10 Devices
Ministry of Justice,HMCTS,30/06/2015,265000-IT & Telecommunications,CZ999-South East Region,ATOS IT SERVICES UK LTD,3068054,25.78 ,Hunt Group - Extension
Ministry of Justice,HMCTS,30/06/2015,265000-IT & Telecommunications,CZ999-South East Region,ATOS IT SERVICES UK LTD,3068054,25.78 ,Fixed IPT Phone Transfer to a new user 1-10 Devices
Ministry of Justice,HMCTS,30/06/2015,265000-IT & Telecommunications,CZ999-South East Region,ATOS IT SERVICES UK LTD,3068054,25.78 ,New IPT Handset 1 - 11 devices
Ministry of Justice,HMCTS,30/06/2015,265000-IT & Telecommunications,CZ999-South East Region,ATOS IT SERVICES UK LTD,3068054,25.78 ,Hunt Group - Extension
Ministry of Justice,HMCTS,30/06/2015,265000-IT & Telecommunications,CZ999-South East Region,ATOS IT SERVICES UK LTD,3068054,25.78 ,Fixed IPT Phone Transfer to a new user 1-10 Devices
Ministry of Justice,HMCTS,30/06/2015,265000-IT & Telecommunications,CZ999-South East Region,ATOS IT SERVICES UK LTD,3068054,257.50 ,Hunt Group - Complex Amendment
Ministry of Justice,HMCTS,30/06/2015,265000-IT & Telecommunications,DZ999-South West Region,ATOS IT SERVICES UK LTD,3068054,25.78 ,New IPT Mobility account with voicemail account 1-10 Accounts
Ministry of Justice,HMCTS,30/06/2015,265000-IT & Telecommunications,DZ999-South West Region,ATOS IT SERVICES UK LTD,3068054,25.78 ,Fixed IPT Phone Transfer to a new user 1-10 Devices
Ministry of Justice,HMCTS,30/06/2015,265000-IT & Telecommunications,DZ999-South West Region,ATOS IT SERVICES UK LTD,3068054,25.78 ,Hunt Group - New Default Creation
Ministry of Justice,HMCTS,30/06/2015,265000-IT & Telecommunications,DZ999-South West Region,ATOS IT SERVICES UK LTD,3068054,25.78 ,New IPT Mobility account without voicemail 1-10 Accounts
Ministry of Justice,HMCTS,30/06/2015,265000-IT & Telecommunications,DZ999-South West Region,ATOS IT SERVICES UK LTD,3068054,51.56 ,Pick Up Group - New
Ministry of Justice,HMCTS,30/06/2015,265000-IT & Telecommunications,DZ999-South West Region,ATOS IT SERVICES UK LTD,3068054,25.78 ,Mobility Account Changes 1-10 Accounts
Ministry of Justice,HMCTS,30/06/2015,265000-IT & Telecommunications,DZ999-South West Region,ATOS IT SERVICES UK LTD,3068054,25.78 ,Mobility Handset Conversion to Fixed Handset with new user details 1- 11 devices
Ministry of Justice,HMCTS,30/06/2015,265000-IT & Telecommunications,DZ999-South West Region,ATOS IT SERVICES UK LTD,3068054,61.80 ,Recovery of a redundant IPT handset from site 1-11 devices
Ministry of Justice,HMCTS,30/06/2015,265000-IT & Telecommunications,DZ999-South West Region,ATOS IT SERVICES UK LTD,3068054,77.34 ,Analogue Extension Decommission 1 - 10
Ministry of Justice,HMCTS,30/06/2015,265000-IT & Telecommunications,DZ999-South West Region,ATOS IT SERVICES UK LTD,3068054,25.78 ,Voicemail - New Voicemail Account 1-10 Accounts
Ministry of Justice,HMCTS,30/06/2015,265000-IT & Telecommunications,DZ999-South West Region,ATOS IT SERVICES UK LTD,3068054,25.78 ,Hunt Group - Extension
Ministry of Justice,HMCTS,30/06/2015,265000-IT & Telecommunications,EZ999-Wales Region,ATOS IT SERVICES UK LTD,3068054,25.78 ,Pick Up Group - New
Ministry of Justice,HMCTS,30/06/2015,265000-IT & Telecommunications,EZ999-Wales Region,ATOS IT SERVICES UK LTD,3068054,25.78 ,Hunt Group - Extension
Ministry of Justice,HMCTS,30/06/2015,265000-IT & Telecommunications,EZ999-Wales Region,ATOS IT SERVICES UK LTD,3068054,67.31 ,HW251 A Mono Headset 1-11 devices
Ministry of Justice,HMCTS,30/06/2015,265000-IT & Telecommunications,FZ999-Midlands Region,ATOS IT SERVICES UK LTD,3068054,25.78 ,Voicemail - Removal Of Voicemail 1-10 Accounts
Ministry of Justice,HMCTS,30/06/2015,265000-IT & Telecommunications,FZ999-Midlands Region,ATOS IT SERVICES UK LTD,3068054,25.78 ,Fixed IPT Phone Transfer to a new user 1-10 Devices
Ministry of Justice,HMCTS,30/06/2015,265000-IT & Telecommunications,FZ999-Midlands Region,ATOS IT SERVICES UK LTD,3068054,98.47 ,Deletion of a Concierge user account 1-10 Accounts
Ministry of Justice,HMCTS,30/06/2015,265000-IT & Telecommunications,FZ999-Midlands Region,ATOS IT SERVICES UK LTD,3068054,25.78 ,Pick Up Group - Amend
Ministry of Justice,HMCTS,30/06/2015,265000-IT & Telecommunications,FZ999-Midlands Region,ATOS IT SERVICES UK LTD,3068054,98.47 ,Deletion of a Concierge user account 1-10 Accounts
Ministry of Justice,HMCTS,30/06/2015,265000-IT & Telecommunications,FZ999-Midlands Region,ATOS IT SERVICES UK LTD,3068054,115.36 ,New PSTN Line
Ministry of Justice,HMCTS,30/06/2015,265000-IT & Telecommunications,FZ999-Midlands Region,ATOS IT SERVICES UK LTD,3068054,92.70 ,Plantronics Vista Plus DM15 Acoustic Shock Adaptor 1-11 devices
Ministry of Justice,HMCTS,30/06/2015,265000-IT & Telecommunications,FZ999-Midlands Region,ATOS IT SERVICES UK LTD,3068054,51.56 ,Fixed Handset Conversion to Mobility Handset & Mobility Account 1 - 11 devices
Ministry of Justice,HMCTS,30/06/2015,265000-IT & Telecommunications,GZ999-North West Region,ATOS IT SERVICES UK LTD,3068054,46.00 ,Provision and support of Secure Remote Access (RWSII) Capability
Ministry of Justice,HMCTS,30/06/2015,265000-IT & Telecommunications,GZ999-North West Region,ATOS IT SERVICES UK LTD,3068054,175.10 ,Plantronics CS540 Wireless Headset 1-11 devices
Ministry of Justice,HMCTS,30/06/2015,265000-IT & Telecommunications,GZ999-North West Region,ATOS IT SERVICES UK LTD,3068054,25.78 ,Fixed IPT Phone Transfer to a new user 1-10 Devices
Ministry of Justice,HMCTS,30/06/2015,265000-IT & Telecommunications,GZ999-North West Region,ATOS IT SERVICES UK LTD,3068054,25.78 ,New IPT Handset 1 - 11 devices
Ministry of Justice,HMCTS,30/06/2015,265000-IT & Telecommunications,GZ999-North West Region,ATOS IT SERVICES UK LTD,3068054,25.78 ,Voicemail - Removal Of Voicemail 1-10 Accounts
Ministry of Justice,HMCTS,30/06/2015,265000-IT & Telecommunications,GZ999-North West Region,ATOS IT SERVICES UK LTD,3068054,25.78 ,Deletion of a Mobility user account 1-10 Accounts
Ministry of Justice,HMCTS,30/06/2015,265000-IT & Telecommunications,GZ999-North West Region,ATOS IT SERVICES UK LTD,3068054,123.60 ,Recovery of a redundant IPT handset from site 12-30 devices
Ministry of Justice,HMCTS,30/06/2015,265000-IT & Telecommunications,GZ999-North West Region,ATOS IT SERVICES UK LTD,3068054,25.78 ,Hunt Group - Deletion 1-10 Instances
Ministry of Justice,HMCTS,30/06/2015,265000-IT & Telecommunications,GZ999-North West Region,ATOS IT SERVICES UK LTD,3068054,83.46 ,Plantronics HW251 N Mono Headset 1-11 devices
Ministry of Justice,HMCTS,30/06/2015,265000-IT & Telecommunications,GZ999-North West Region,ATOS IT SERVICES UK LTD,3068054,46.00 ,Provision and support of Secure Remote Access (RWSII) Capability
Ministry of Justice,HMCTS,30/06/2015,265000-IT & Telecommunications,GZ999-North West Region,ATOS IT SERVICES UK LTD,3068054,5.00 ,5m Network Cable
Ministry of Justice,HMCTS,30/06/2015,265000-IT & Telecommunications,GZ999-North West Region,ATOS IT SERVICES UK LTD,3068054,25.78 ,Pick Up Group - New
Ministry of Justice,HMCTS,30/06/2015,265000-IT & Telecommunications,GZ999-North West Region,ATOS IT SERVICES UK LTD,3068054,46.00 ,Provision and support of Secure Remote Access (RWSII) Capability
Ministry of Justice,HMCTS,30/06/2015,265000-IT & Telecommunications,GZ999-North West Region,ATOS IT SERVICES UK LTD,3068054,92.00 ,Provision and support of Secure Remote Access (RWSII) Capability
Ministry of Justice,HMCTS,30/06/2015,265000-IT & Telecommunications,GZ999-North West Region,ATOS IT SERVICES UK LTD,3068054,25.78 ,Hunt Group - New Default Creation
Ministry of Justice,HMCTS,30/06/2015,265000-IT & Telecommunications,GZ999-North West Region,ATOS IT SERVICES UK LTD,3068054,25.78 ,Pick Up Group - Amend
Ministry of Justice,HMCTS,30/06/2015,265000-IT & Telecommunications,GZ999-North West Region,ATOS IT SERVICES UK LTD,3068054,67.31 ,Plantronics HW251 A Mono Headset 1-11 devices
Ministry of Justice,HMCTS,30/06/2015,265000-IT & Telecommunications,GZ999-North West Region,ATOS IT SERVICES UK LTD,3068054,618.00 ,Recovery of a redundant IPT handset from site 1-11 devices
Ministry of Justice,HMCTS,30/06/2015,265000-IT & Telecommunications,GZ999-North West Region,ATOS IT SERVICES UK LTD,3068054,46.00 ,Provision and support of Secure Remote Access (RWSII) Capability
Ministry of Justice,HMCTS,30/06/2015,265000-IT & Telecommunications,HZ999-North East Region,ATOS IT SERVICES UK LTD,3068054,51.56 ,Hunt Group - Extension
Ministry of Justice,HMCTS,30/06/2015,265000-IT & Telecommunications,HZ999-North East Region,ATOS IT SERVICES UK LTD,3068054,25.78 ,Pick Up Group - Amend
Ministry of Justice,HMCTS,30/06/2015,265000-IT & Telecommunications,HZ999-North East Region,ATOS IT SERVICES UK LTD,3068054,25.78 ,Hunt Group - Extension
Ministry of Justice,HMCTS,30/06/2015,265000-IT & Telecommunications,HZ999-North East Region,ATOS IT SERVICES UK LTD,3068054,46.00 ,Provision and support of Secure Remote Access (RWSII) Capability
Ministry of Justice,HMCTS,30/06/2015,265000-IT & Telecommunications,HZ999-North East Region,ATOS IT SERVICES UK LTD,3068054,25.78 ,Hunt Group - New Default Creation
Ministry of Justice,HMCTS,30/06/2015,265000-IT & Telecommunications,HZ999-North East Region,ATOS IT SERVICES UK LTD,3068054,25.78 ,Fixed IPT Phone Change 1-10 Devices
Ministry of Justice,HMCTS,30/06/2015,265000-IT & Telecommunications,HZ999-North East Region,ATOS IT SERVICES UK LTD,3068054,25.78 ,Analogue Extension Decommission 1 - 10
Ministry of Justice,HMCTS,30/06/2015,265000-IT & Telecommunications,HZ999-North East Region,ATOS IT SERVICES UK LTD,3068054,25.78 ,Hunt Group - Extension
Ministry of Justice,HMCTS,30/06/2015,265000-IT & Telecommunications,HZ999-North East Region,ATOS IT SERVICES UK LTD,3068054,25.78 ,Hunt Group - Deletion 1-10 Instances
Ministry of Justice,HMCTS,30/06/2015,265000-IT & Telecommunications,HZ999-North East Region,ATOS IT SERVICES UK LTD,3068054,25.78 ,Mobility Account Changes 1-10 Accounts
Ministry of Justice,HMCTS,30/06/2015,265000-IT & Telecommunications,SJ999-Scotland,ATOS IT SERVICES UK LTD,3068054,"1,699.00 ",Auto Attendant - Create NEW Auto Attendant Call Flow- Part of consolidated Invoice for multiple tansactions
Ministry of Justice,HMCTS,30/06/2015,265000-IT & Telecommunications,SK999-Enforcement,ATOS IT SERVICES UK LTD,3068054,46.00 ,Provision and support of Secure Remote Access (RWSII) Capability- Part of consolidated Invoice for multiple tansactions
Ministry of Justice,HMCTS,30/06/2015,265000-IT & Telecommunications,SK999-Enforcement,ATOS IT SERVICES UK LTD,3068054,175.10 ,Plantronics CS540 Wireless Headset 1-11 devices Part of consolidated Invoice for multiple tansactions
Ministry of Justice,HMCTS,30/06/2015,265000-IT & Telecommunications,SK999-Enforcement,ATOS IT SERVICES UK LTD,3068054,25.78 ,Fixed IPT Phone Change 1-10 Devices- Part of consolidated Invoice for multiple tansactions
Ministry of Justice,HMCTS,30/06/2015,265000-IT & Telecommunications,SM999-National Business Centres,ATOS IT SERVICES UK LTD,3068054,22.28 ,Plantronics Headset Ear Cushions 1-11 devices-Part of consolidated Invoice for multiple tansactions
Ministry of Justice,HMCTS,30/06/2015,265000-IT & Telecommunications,SM999-National Business Centres,ATOS IT SERVICES UK LTD,3068054,25.78 ,Voicemail - Provision of announcement only  on a Hunt Group 1-10 Instances Part of consolidated Invoice for multiple tansactions
Ministry of Justice,HMCTS,30/06/2015,265000-IT & Telecommunications,SM999-National Business Centres,ATOS IT SERVICES UK LTD,3068054,309.00 ,Recovery of a redundant IPT handset from site 1-11 devices Part of consolidated Invoice for multiple tansactions
Ministry of Justice,HMCTS,30/06/2015,265000-IT & Telecommunications,SM999-National Business Centres,ATOS IT SERVICES UK LTD,3068054,22.28 ,Plantronics Headset Ear Cushions 1-11 devices Part of consolidated Invoice for multiple tansactions
Ministry of Justice,HMCTS,30/06/2015,265000-IT & Telecommunications,SM999-National Business Centres,ATOS IT SERVICES UK LTD,3068054,21.63 ,Plantronics Supervisor Adapter (Y Cord)Changes 1 - 10-Part of consolidated Invoice for multiple tansactions
Ministry of Justice,HMCTS,17/06/2015,265000-IT & Telecommunications,AP999-HQ - Strategy & Change,MDS TECHNOLOGIES LTD,3055810,"37,820.86 ",MDS Monthly Support Charges (pcm)
Ministry of Justice,HMCTS,17/06/2015,265000-IT & Telecommunications,AP999-HQ - Strategy & Change,MDS TECHNOLOGIES LTD,3055810,"37,820.86 ",MDS Implementation Charges
Ministry of Justice,HMCTS,17/06/2015,265000-IT & Telecommunications,AP999-HQ - Strategy & Change,MDS TECHNOLOGIES LTD,3055810,"7,564.17 ",MDS Implementation Charges
Ministry of Justice,HMCTS,17/06/2015,265000-IT & Telecommunications,AP999-HQ - Strategy & Change,MDS TECHNOLOGIES LTD,3055810,"-37,820.86 ",MDS Implementation Charges
Ministry of Justice,HMCTS,17/06/2015,265000-IT & Telecommunications,AP999-HQ - Strategy & Change,MDS TECHNOLOGIES LTD,3055810,"-7,564.17 ",MDS Implementation Charges
Ministry of Justice,HMCTS,19/06/2015,265000-IT & Telecommunications,FC999-Centrally Managed Costs by F&G,LIBERATA UK LTD,3058296,"11,342.00 ",Cloud Hosting 15/16
Ministry of Justice,HMCTS,19/06/2015,265000-IT & Telecommunications,FC999-Centrally Managed Costs by F&G,LIBERATA UK LTD,3058296,"2,268.40 ",Cloud Hosting 15/16
Ministry of Justice,HMCTS,19/06/2015,265000-IT & Telecommunications,FC999-Centrally Managed Costs by F&G,LIBERATA UK LTD,3058296,"11,342.00 ",Cloud Hosting 15/16
Ministry of Justice,HMCTS,19/06/2015,265000-IT & Telecommunications,FC999-Centrally Managed Costs by F&G,LIBERATA UK LTD,3058296,"11,342.00 ",Cloud Hosting 15/16
Ministry of Justice,HMCTS,19/06/2015,265000-IT & Telecommunications,FC999-Centrally Managed Costs by F&G,LIBERATA UK LTD,3058296,"2,268.40 ",Cloud Hosting 15/16
Ministry of Justice,HMCTS,19/06/2015,265000-IT & Telecommunications,FC999-Centrally Managed Costs by F&G,LIBERATA UK LTD,3058296,"2,268.40 ",Cloud Hosting 15/16
Ministry of Justice,HMCTS,23/06/2015,265000-IT & Telecommunications,AP999-HQ - Strategy & Change,CGI IT UK LTD,3060715,"121,016.00 ",CGI FP CCN Tax Expansion Project - MVP Release 1
Ministry of Justice,HMCTS,09/06/2015,265000-IT & Telecommunications,AP999-HQ - Strategy & Change,CGI IT UK LTD,3045434,"51,662.00 ",L-R-4429-01 - Development of migration script completed
Ministry of Justice,HMCTS,23/06/2015,265000-IT & Telecommunications,AP999-HQ - Strategy & Change,CGI IT UK LTD,3060715,"48,406.00 ",CGI FP CCN Tax Expansion Project - MVP Release 1
Ministry of Justice,HMCTS,23/06/2015,265000-IT & Telecommunications,AP999-HQ - Strategy & Change,CGI IT UK LTD,3060715,"24,203.00 ",CGI FP CCN Tax Expansion Project - MVP Release 1
Ministry of Justice,HMCTS,23/06/2015,265000-IT & Telecommunications,AP999-HQ - Strategy & Change,CGI IT UK LTD,3060715,"72,610.00 ",CGI FP CCN Tax Expansion Project - MVP Release 1
Ministry of Justice,HMCTS,23/06/2015,265000-IT & Telecommunications,AP999-HQ - Strategy & Change,CGI IT UK LTD,3060715,"72,610.00 ",CGI FP CCN Tax Expansion Project - MVP Release 1
Ministry of Justice,HMCTS,16/06/2015,265000-IT & Telecommunications,AT899-HQ - ICT,CGI IT UK LTD,3053395,"46,307.00 ",L-R-4457-01 - Functional Specification Approval- Libra MAAT  Interface
Ministry of Justice,HMCTS,02/06/2015,265000-IT & Telecommunications,AT899-HQ - ICT,SOPRA STERIA LTD,3040003,"21,931.00 ","RFS 133013 - GAPS Archive Databases						"
Ministry of Justice,HMCTS,02/06/2015,265000-IT & Telecommunications,FC999-Centrally Managed Costs by F&G,HOME OFFICE IT,10124,"19,509.00 ",PentIP Managed Services - Development of RIA 429
Ministry of Justice,HMCTS,02/06/2015,265000-IT & Telecommunications,FC999-Centrally Managed Costs by F&G,HOME OFFICE IT,10124,"94,635.00 ",PentIP Managed Services - Development of RIA 366
Ministry of Justice,HMCTS,02/06/2015,265000-IT & Telecommunications,FC999-Centrally Managed Costs by F&G,HOME OFFICE IT,10124,"5,483.00 ",PentIP Managed Services - Development of RIA 429
Ministry of Justice,HMCTS,09/06/2015,265000-IT & Telecommunications,SM999-National Business Centres,CGI IT UK LTD,3045434,"27,604.00 ",L-R-4451-01 SUPS Minicom
Ministry of Justice,HMCTS,26/06/2015,265000-IT & Telecommunications,AT899-HQ - ICT,CGI IT UK LTD,3065662,"89,716.00 ","L-R-4392-03 - Libra Housekeeping						"
Ministry of Justice,HMCTS,02/06/2015,265000-IT & Telecommunications,AT899-HQ - ICT,CGI IT UK LTD,3038915,"21,979.00 ",Implementation Complete L-R-4299-01 
Ministry of Justice,HMCTS,02/06/2015,265000-IT & Telecommunications,AT899-HQ - ICT,CGI IT UK LTD,3038916,"36,631.00 ",Development Complete L-R-4299-01
Ministry of Justice,HMCTS,26/06/2015,265000-IT & Telecommunications,AT899-HQ - ICT,CGI IT UK LTD,3065662,"45,294.00 ",L-R-4391-03 - Xhibit Housekeeping
Ministry of Justice,HMCTS,02/06/2015,265000-IT & Telecommunications,AT899-HQ - ICT,CGI IT UK LTD,3038915,"43,958.00 ",Testing Complete L-R-4299-01 MA3 testing complete
Ministry of Justice,HMCTS,09/06/2015,265000-IT & Telecommunications,AT899-HQ - ICT,CGI IT UK LTD,3045434,"28,182.00 ",Quarterly Charge - 04/15 L-R- 3474-05
Ministry of Justice,HMCTS,09/06/2015,265000-IT & Telecommunications,AT899-HQ - ICT,CGI IT UK LTD,3045434,"5,636.40 ",AT103 CIS L-R- 3474-05
Ministry of Justice,HMCTS,19/06/2015,265000-IT & Telecommunications,FC999-Centrally Managed Costs by F&G,LIBERATA UK LTD,3058296,"2,147.47 ",Application Support 15/16
Ministry of Justice,HMCTS,19/06/2015,265000-IT & Telecommunications,FC999-Centrally Managed Costs by F&G,LIBERATA UK LTD,3058296,"10,737.34 ",Application Support 15/16
Ministry of Justice,HMCTS,19/06/2015,265000-IT & Telecommunications,FC999-Centrally Managed Costs by F&G,LIBERATA UK LTD,3058296,"10,737.34 ",Application Support 15/16
Ministry of Justice,HMCTS,19/06/2015,265000-IT & Telecommunications,FC999-Centrally Managed Costs by F&G,LIBERATA UK LTD,3058296,"10,737.34 ",Application Support 15/16
Ministry of Justice,HMCTS,19/06/2015,265000-IT & Telecommunications,FC999-Centrally Managed Costs by F&G,LIBERATA UK LTD,3058296,"2,147.47 ",Application Support 15/16
Ministry of Justice,HMCTS,19/06/2015,265000-IT & Telecommunications,FC999-Centrally Managed Costs by F&G,LIBERATA UK LTD,3058296,"2,147.47 ",Application Support 15/16
Ministry of Justice,HMCTS,30/06/2015,265000-IT & Telecommunications,AP999-HQ - Strategy & Change,ATOS IT SERVICES UK LTD,3068054,11.62 ,MS Project Professional
Ministry of Justice,HMCTS,30/06/2015,265000-IT & Telecommunications,AP999-HQ - Strategy & Change,ATOS IT SERVICES UK LTD,3068054,11.62 ,MS Project Professional
Ministry of Justice,HMCTS,19/06/2015,265000-IT & Telecommunications,AP999-HQ - Strategy & Change,TRUSTMARQUE SOLUTIONS LTD,3059617,"296,569.34 ","Subscription licences and support for CJS Common Platform Programme - Beginning May 2015 for three year period.  Licences are for products necessary to secure the platform Per Quote QU676515 20/04/2015.						"
Ministry of Justice,HMCTS,30/06/2015,265000-IT & Telecommunications,AP999-HQ - Strategy & Change,ATOS IT SERVICES UK LTD,3068054,11.62 ,MS Visio Professional
Ministry of Justice,HMCTS,30/06/2015,265000-IT & Telecommunications,SJ999-Scotland,ATOS IT SERVICES UK LTD,3068054,23.24 ,MS Project Professional- Part of consolidated Invoice for multiple tansactions
Ministry of Justice,HMCTS,30/06/2015,265000-IT & Telecommunications,SM999-National Business Centres,ATOS IT SERVICES UK LTD,3068054,587.22 ,ZoomText Magnifier/Reader -Part of consolidated Invoice for multiple tansactions
Ministry of Justice,HMCTS,30/06/2015,265000-IT & Telecommunications,AT899-HQ - ICT,VODAFONE LTD FORMERLY CABLE & WIRELESS UK,3069293,"26,318.13 ",Running costs for London Virtual Court.1 June 2014 end date 31 November 2014
Ministry of Justice,HMCTS,30/06/2015,265000-IT & Telecommunications,AT899-HQ - ICT,VODAFONE LTD FORMERLY CABLE & WIRELESS UK,3069293,"5,263.63 ",AT102 INV Running costs for London Virtual Court.1 June 2014 end date 31 November 201
Ministry of Justice,HMCTS,30/06/2015,265000-IT & Telecommunications,"AM999-HQ - Civil, Family & Tribunals",ATOS IT SERVICES UK LTD,3068054,11.62 ,MS Visio Std- Part of consolidated Invoice for multiple tansactions
Ministry of Justice,HMCTS,30/06/2015,265000-IT & Telecommunications,AN999-HQ - Crime,ATOS IT SERVICES UK LTD,3068054,82.78 ,BlackBerry (Vodafone) - Part of consolidated Invoice for multiple tansactions
Ministry of Justice,HMCTS,30/06/2015,265000-IT & Telecommunications,AP999-HQ - Strategy & Change,ATOS IT SERVICES UK LTD,3068054,82.78 ,BlackBerry (Vodafone)
Ministry of Justice,HMCTS,30/06/2015,265000-IT & Telecommunications,AP999-HQ - Strategy & Change,ATOS IT SERVICES UK LTD,3068054,11.62 ,MS Visio Std
Ministry of Justice,HMCTS,30/06/2015,265000-IT & Telecommunications,AP999-HQ - Strategy & Change,ATOS IT SERVICES UK LTD,3068054,82.78 ,BlackBerry (Vodafone)
Ministry of Justice,HMCTS,30/06/2015,265000-IT & Telecommunications,AP999-HQ - Strategy & Change,ATOS IT SERVICES UK LTD,3068054,78.26 ,Reassign BlackBerry device within Business Unit
Ministry of Justice,HMCTS,30/06/2015,265000-IT & Telecommunications,AP999-HQ - Strategy & Change,ATOS IT SERVICES UK LTD,3068054,"2,080.80 ",AVM Ad-Hoc Labour and Materials
Ministry of Justice,HMCTS,30/06/2015,265000-IT & Telecommunications,AP999-HQ - Strategy & Change,ATOS IT SERVICES UK LTD,3068054,58.47 ,Keep your mobile phone number when upgrading to BlackBerry
Ministry of Justice,HMCTS,30/06/2015,265000-IT & Telecommunications,AP999-HQ - Strategy & Change,ATOS IT SERVICES UK LTD,3068054,11.62 ,MS Project Standard
Ministry of Justice,HMCTS,30/06/2015,265000-IT & Telecommunications,AP999-HQ - Strategy & Change,ATOS IT SERVICES UK LTD,3068054,82.78 ,BlackBerry (Vodafone)
Ministry of Justice,HMCTS,30/06/2015,265000-IT & Telecommunications,AP999-HQ - Strategy & Change,ATOS IT SERVICES UK LTD,3068054,11.62 ,MS Project Standard
Ministry of Justice,HMCTS,30/06/2015,265000-IT & Telecommunications,AQ999-HQ - Finance & Governance,ATOS IT SERVICES UK LTD,3068054,66.86 ,Return BlackBerry device (no longer required)
Ministry of Justice,HMCTS,30/06/2015,265000-IT & Telecommunications,AQ999-HQ - Finance & Governance,ATOS IT SERVICES UK LTD,3068054,66.86 ,Return BlackBerry device (no longer required)
Ministry of Justice,HMCTS,09/06/2015,265000-IT & Telecommunications,BZ999-London Region,RTS COMMUNICATIONS,3046873,"5,632.08 ",Royal Courts of Justice - RTS COMMUNICATIONS - DAR Maintenance retainer Thomas More Building back-up to 31st March 2016
Ministry of Justice,HMCTS,30/06/2015,265000-IT & Telecommunications,BZ999-London Region,ATOS IT SERVICES UK LTD,3068054,381.33 ,Olympus Digital Voice Recorder  - DS-7000 - new device
Ministry of Justice,HMCTS,09/06/2015,265000-IT & Telecommunications,BZ999-London Region,RTS COMMUNICATIONS,3046873,"3,573.57 ",Royal Courts of Justice - RTS COMMUNICATIONS - Maintenance retainer Thomas More Building to 31st March 2016
Ministry of Justice,HMCTS,09/06/2015,265000-IT & Telecommunications,BZ999-London Region,RTS COMMUNICATIONS,3046873,"15,595.00 ",Royal Courts of Justice - RTS COMMUNICATIONS - DAR Maintenance retainer for Queens Building to 31st March 2016
Ministry of Justice,HMCTS,09/06/2015,265000-IT & Telecommunications,BZ999-London Region,RTS COMMUNICATIONS,3046873,"25,000.00 ","Royal Courts of Justice - RTS COMMUNICATIONS - Netlog and NL Server annual maintenance retainer to 31st March 2016						"
Ministry of Justice,HMCTS,30/06/2015,265000-IT & Telecommunications,BZ999-London Region,ATOS IT SERVICES UK LTD,3068054,11.17 ,MS Access
Ministry of Justice,HMCTS,30/06/2015,265000-IT & Telecommunications,BZ999-London Region,ATOS IT SERVICES UK LTD,3068054,111.45 ,Replace faulty or non-faulty out-of-contract BlackBerry device
Ministry of Justice,HMCTS,30/06/2015,265000-IT & Telecommunications,BZ999-London Region,ATOS IT SERVICES UK LTD,3068054,11.17 ,MS Access
Ministry of Justice,HMCTS,30/06/2015,265000-IT & Telecommunications,BZ999-London Region,ATOS IT SERVICES UK LTD,3068054,111.45 ,Replace faulty or non-faulty out-of-contract BlackBerry device
Ministry of Justice,HMCTS,30/06/2015,265000-IT & Telecommunications,BZ999-London Region,ATOS IT SERVICES UK LTD,3068054,265.63 ,Dragon Naturally Speaking Professional v10
Ministry of Justice,HMCTS,30/06/2015,265000-IT & Telecommunications,BZ999-London Region,ATOS IT SERVICES UK LTD,3068054,82.78 ,BlackBerry (Vodafone)
Ministry of Justice,HMCTS,30/06/2015,265000-IT & Telecommunications,BZ999-London Region,ATOS IT SERVICES UK LTD,3068054,11.17 ,MS Access
Ministry of Justice,HMCTS,30/06/2015,265000-IT & Telecommunications,BZ999-London Region,ATOS IT SERVICES UK LTD,3068054,265.63 ,Dragon Naturally Speaking Professional v10
Ministry of Justice,HMCTS,30/06/2015,265000-IT & Telecommunications,BZ999-London Region,ATOS IT SERVICES UK LTD,3068054,82.78 ,BlackBerry (Vodafone)
Ministry of Justice,HMCTS,30/06/2015,265000-IT & Telecommunications,CZ999-South East Region,ATOS IT SERVICES UK LTD,3068054,11.17 ,MS Access
Ministry of Justice,HMCTS,30/06/2015,265000-IT & Telecommunications,CZ999-South East Region,ATOS IT SERVICES UK LTD,3068054,66.86 ,Return BlackBerry device (no longer required)
Ministry of Justice,HMCTS,30/06/2015,265000-IT & Telecommunications,CZ999-South East Region,ATOS IT SERVICES UK LTD,3068054,25.23 ,Additional/spare mains charger for BlackBerry 8520
Ministry of Justice,HMCTS,30/06/2015,265000-IT & Telecommunications,CZ999-South East Region,ATOS IT SERVICES UK LTD,3068054,11.17 ,MS Access
Ministry of Justice,HMCTS,30/06/2015,265000-IT & Telecommunications,CZ999-South East Region,ATOS IT SERVICES UK LTD,3068054,46.22 ,Request Olympus dictation and transcription software for a user.  Does not include Olympus Digital Professional Dictation Solution - DS-7000
Ministry of Justice,HMCTS,30/06/2015,265000-IT & Telecommunications,CZ999-South East Region,ATOS IT SERVICES UK LTD,3068054,78.26 ,Reassign BlackBerry device within Business Unit
Ministry of Justice,HMCTS,30/06/2015,265000-IT & Telecommunications,CZ999-South East Region,ATOS IT SERVICES UK LTD,3068054,25.23 ,Spare battery for BlackBerry 9320
Ministry of Justice,HMCTS,30/06/2015,265000-IT & Telecommunications,CZ999-South East Region,ATOS IT SERVICES UK LTD,3068054,25.23 ,Additional/spare mains charger for BlackBerry 8520
Ministry of Justice,HMCTS,30/06/2015,265000-IT & Telecommunications,DZ999-South West Region,ATOS IT SERVICES UK LTD,3068054,82.78 ,BlackBerry (Vodafone)
Ministry of Justice,HMCTS,30/06/2015,265000-IT & Telecommunications,EZ999-Wales Region,ATOS IT SERVICES UK LTD,3068054,66.86 ,Return BlackBerry device (no longer required)
Ministry of Justice,HMCTS,30/06/2015,265000-IT & Telecommunications,FZ999-Midlands Region,ATOS IT SERVICES UK LTD,3068054,11.62 ,MS Visio Std
Ministry of Justice,HMCTS,30/06/2015,265000-IT & Telecommunications,GZ999-North West Region,ATOS IT SERVICES UK LTD,3068054,92.44 ,Request Olympus dictation and transcription software for a user.  Does not include Olympus Digital Professional Dictation Solution - DS-7000
Ministry of Justice,HMCTS,30/06/2015,265000-IT & Telecommunications,GZ999-North West Region,ATOS IT SERVICES UK LTD,3068054,265.63 ,Dragon Naturally Speaking Professional v10
Ministry of Justice,HMCTS,30/06/2015,265000-IT & Telecommunications,HZ999-North East Region,ATOS IT SERVICES UK LTD,3068054,58.47 ,Keep your mobile phone number when upgrading to BlackBerry
Ministry of Justice,HMCTS,30/06/2015,265000-IT & Telecommunications,HZ999-North East Region,ATOS IT SERVICES UK LTD,3068054,82.78 ,BlackBerry (Vodafone)
Ministry of Justice,HMCTS,30/06/2015,265000-IT & Telecommunications,HZ999-North East Region,ATOS IT SERVICES UK LTD,3068054,265.63 ,Dragon Naturally Speaking Professional v10
Ministry of Justice,HMCTS,30/06/2015,265000-IT & Telecommunications,SM999-National Business Centres,ATOS IT SERVICES UK LTD,3068054,82.78 ,BlackBerry (Vodafone)-Part of consolidated Invoice for multiple tansactions
Ministry of Justice,HMCTS,30/06/2015,265000-IT & Telecommunications,AS999-HQ - Human Resources,ATOS IT SERVICES UK LTD,3068054,111.45 ,Replace faulty or non-faulty out-of-contract BlackBerry device
Ministry of Justice,HMCTS,26/06/2015,223000-Other Expenditure,FC999-Centrally Managed Costs by F&G,GOVERNMENT LEGAL DEPARTMENT,10174,"40,155.99 ",223765-Legal Services - Non criminal TSOL
Ministry of Justice,HMCTS,26/06/2015,223000-Other Expenditure,FC999-Centrally Managed Costs by F&G,GOVERNMENT LEGAL DEPARTMENT,10174,"18,016.26 ",223766-Legal Services not advice - Criminal
Ministry of Justice,HMCTS,26/06/2015,223000-Other Expenditure,FC999-Centrally Managed Costs by F&G,GOVERNMENT LEGAL DEPARTMENT,10174,"3,603.26 ",223766-Legal Services not advice - Criminal
Ministry of Justice,HMCTS,26/06/2015,223000-Other Expenditure,FC999-Centrally Managed Costs by F&G,GOVERNMENT LEGAL DEPARTMENT,10174,"1,242.60 ",223766-Legal Services not advice - Criminal
Ministry of Justice,HMCTS,23/06/2015,226000-Court Costs,SL999-Centralised Frontline,MESSRS KINGSLEY NAPLEY LLP#DX 22,313752,"355,683.84 ",Legal fees to solicitors for  the repayment of fees paid by the acquitted defendants
Ministry of Justice,HMCTS,05/06/2015,226000-Court Costs,SL999-Centralised Frontline,MESSRS TUCKERS#DX 14451,3043250,"134,337.54 ",Legal fees to solicitors for  the repayment of fees paid by the acquitted defendants
Ministry of Justice,HMCTS,05/06/2015,226000-Court Costs,SL999-Centralised Frontline,MESSRS TUCKERS#DX 14451,3043250,"161,873.60 ",Legal fees to solicitors for  the repayment of fees paid by the acquitted defendants
Ministry of Justice,HMCTS,10/06/2015,226000-Court Costs,SL999-Centralised Frontline,MESSRS DLA PIPER LLP#DX 33866,308114,"312,332.41 ",Legal fees to solicitors for  the repayment of fees paid by the acquitted defendants
Ministry of Justice,HMCTS,19/06/2015,226000-Court Costs,SL999-Centralised Frontline,MESSRS GRANT SAW SOLICITORS LLP#DX 35202,313317,"72,326.65 ",Legal fees to solicitors for  the repayment of fees paid by the acquitted defendants
Ministry of Justice,HMCTS,10/06/2015,226000-Court Costs,SL999-Centralised Frontline,MESSRS SHAHZADS SOLICITORS#DX 32025,308190,"45,632.40 ",Legal fees to solicitors for  the repayment of fees paid by the acquitted defendants
Ministry of Justice,HMCTS,12/06/2015,311200-Criminal Legal Aid,BZ999-London Region,BARRISTER#GB37173735,310622,"5,415.00 ",Legal fees to solicitors for the repayment of costs to parties after gaining legal aid and represenation order
Ministry of Justice,HMCTS,12/06/2015,311200-Criminal Legal Aid,BZ999-London Region,BARRISTER#GB37173735,310622,"8,940.83 ",Legal fees to solicitors for the repayment of costs to parties after gaining legal aid and represenation order
Ministry of Justice,HMCTS,12/06/2015,311200-Criminal Legal Aid,BZ999-London Region,BARRISTER#GB37173735,310622,"6,960.00 ",Legal fees to solicitors for the repayment of costs to parties after gaining legal aid and represenation order
Ministry of Justice,HMCTS,12/06/2015,311200-Criminal Legal Aid,BZ999-London Region,BARRISTER#GB37173735,310622,"4,155.00 ",Legal fees to solicitors for the repayment of costs to parties after gaining legal aid and represenation order
Ministry of Justice,HMCTS,19/06/2015,311200-Criminal Legal Aid,SL999-Centralised Frontline,MESSRS FARLEYS#DX 13604,3058382,"40,075.87 ",Legal fees to solicitors for the repayment of costs to parties after gaining legal aid and represenation order
Ministry of Justice,HMCTS,10/06/2015,311200-Criminal Legal Aid,SL999-Centralised Frontline,MESSRS MURRIA#DX 23521,3048245,"29,666.08 ",Legal fees to solicitors for the repayment of costs to parties after gaining legal aid and represenation order
Ministry of Justice,HMCTS,10/06/2015,311200-Criminal Legal Aid,SL999-Centralised Frontline,MESSRS FRISBY & CO#DX 14564,3048229,"40,061.34 ",Legal fees to solicitors for the repayment of costs to parties after gaining legal aid and represenation order
Ministry of Justice,HMCTS,05/06/2015,311200-Criminal Legal Aid,SL999-Centralised Frontline,MESSRS VLS SOLICITORS#N17 0DH,3043251,"25,163.36 ",Legal fees to solicitors for the repayment of costs to parties after gaining legal aid and represenation order
Ministry of Justice,HMCTS,05/06/2015,311200-Criminal Legal Aid,SL999-Centralised Frontline,MR M LAWSON#DX 226,3043277,"96,600.00 ",Legal fees to solicitors for the repayment of costs to parties after gaining legal aid and represenation order
Ministry of Justice,HMCTS,23/06/2015,311200-Criminal Legal Aid,SL999-Centralised Frontline,MESSRS MORGAN ROSE#DX 280,313754,"94,003.33 ",Legal fees to solicitors for the repayment of costs to parties after gaining legal aid and represenation order
Ministry of Justice,HMCTS,23/06/2015,532000-Tangible GBV - Additions,DZ999-South West Region,MITIE JUSTICE LTD,3061089,"28,951.30 ",CIS labour - Bristol Civil Justice Centre - Mitie Justice - PPD Project Voltage Optimisation Works
Ministry of Justice,HMCTS,23/06/2015,532000-Tangible GBV - Additions,DZ999-South West Region,MITIE JUSTICE LTD,3061089,"5,790.26 ",CIS labour - Bristol Civil Justice Centre - Mitie Justice - PPD Project Voltage Optimisation Works
Ministry of Justice,HMCTS,02/06/2015,532000-Tangible GBV - Additions,BZ999-London Region,TURNER & TOWNSEND PROJECT MANAGEMENT LTD,3040031,"33,839.00 ",Taylor House - Turner & Townsend Proj Mgmt - Taylor House Refurbishment � HMRC project. BPRN 225/14/2905.
Ministry of Justice,HMCTS,30/06/2015,532000-Tangible GBV - Additions,BZ999-London Region,TURNER & TOWNSEND PROJECT MANAGEMENT LTD,3069282,"5,196.93 ",Taylor House - Turner & Townsend Proj Mgmt - Taylor House Refurbishment � HMRC project. BPRN 225/14/2905.
Ministry of Justice,HMCTS,02/06/2015,532000-Tangible GBV - Additions,BZ999-London Region,TURNER & TOWNSEND PROJECT MANAGEMENT LTD,3040031,"6,767.80 ",Taylor House - Turner & Townsend Proj Mgmt - Taylor House Refurbishment � HMRC project. BPRN 225/14/2905.
Ministry of Justice,HMCTS,30/06/2015,532000-Tangible GBV - Additions,BZ999-London Region,TURNER & TOWNSEND PROJECT MANAGEMENT LTD,3069282,"25,984.67 ",Taylor House - Turner & Townsend Proj Mgmt - Taylor House Refurbishment � HMRC project. BPRN 225/14/2905.
Ministry of Justice,HMCTS,05/06/2015,532000-Tangible GBV - Additions,BZ999-London Region,TURNER & TOWNSEND PROJECT MANAGEMENT LTD,3044146,"25,318.69 ",Camberwell Magistrates Court - TURNER & TOWNSEND - 15-16 project: replace aluminium powder single glaze windows throughout. BPRN 730/14/2877.
Ministry of Justice,HMCTS,05/06/2015,532000-Tangible GBV - Additions,BZ999-London Region,TURNER & TOWNSEND PROJECT MANAGEMENT LTD,3044146,"5,063.74 ",Camberwell Magistrates Court - TURNER & TOWNSEND - 15-16 project: replace aluminium powder single glaze windows throughout. BPRN 730/14/2877.
Ministry of Justice,HMCTS,09/06/2015,532000-Tangible GBV - Additions,DZ999-South West Region,HAMPSHIRE COUNTY COUNCIL,3045627,"1,094,411.78 ",Construction works for Winchester Law Courts
Ministry of Justice,HMCTS,30/06/2015,532000-Tangible GBV - Additions,BZ999-London Region,INTERSERVE CONSTRUCTION LTD,3068277,"-38,405.60 ","CIS Labour - Estates London Region - INTERSERVE CONSTRUCTION LTD - BPRN ref. 900/14/2889. 102 Petty France, refit reception and atrium."
Ministry of Justice,HMCTS,30/06/2015,532000-Tangible GBV - Additions,BZ999-London Region,SHEPHERD CONSTRUCTION LTD,3069320,"192,982.96 ",CIS Labour - London Estates - Shepherd Construction - London South Project 2014-2015 Commencement Agreement
Ministry of Justice,HMCTS,03/06/2015,532000-Tangible GBV - Additions,BZ999-London Region,SHEPHERD CONSTRUCTION LTD,3041893,"54,212.23 ",CIS Labour - London Estates - Shepherd Construction - London South Project 2014-2015 Commencement Agreement
Ministry of Justice,HMCTS,03/06/2015,532000-Tangible GBV - Additions,BZ999-London Region,SHEPHERD CONSTRUCTION LTD,3041893,"20,127.31 ",CIS Labour - London Estates - Shepherd Construction - London North Project 2014-2015 &#150; Commencement Agreement
Ministry of Justice,HMCTS,30/06/2015,532000-Tangible GBV - Additions,BZ999-London Region,INTERSERVE CONSTRUCTION LTD,3068277,"192,028.00 ","CIS Labour - Estates London Region - INTERSERVE CONSTRUCTION LTD - BPRN ref. 900/14/2889. 102 Petty France, refit reception and atrium."
Ministry of Justice,HMCTS,30/06/2015,532000-Tangible GBV - Additions,BZ999-London Region,INTERSERVE CONSTRUCTION LTD,3068277,"192,028.00 ","CIS Labour - 102 Petty France - Interserve -  BPRN ref. 900/14/2889. 102 Petty France, refit reception and atrium (2nd purchase order)"
Ministry of Justice,HMCTS,30/06/2015,532000-Tangible GBV - Additions,BZ999-London Region,SHEPHERD CONSTRUCTION LTD,3069320,-0.01 ,CIS Labour - London Estates - Shepherd Construction - London North Project 2014-2015 &#150; Commencement Agreement
Ministry of Justice,HMCTS,03/06/2015,532000-Tangible GBV - Additions,BZ999-London Region,SHEPHERD CONSTRUCTION LTD,3041893,"100,636.53 ",CIS Labour - London Estates - Shepherd Construction - London North Project 2014-2015 &#150; Commencement Agreement
Ministry of Justice,HMCTS,03/06/2015,532000-Tangible GBV - Additions,BZ999-London Region,SHEPHERD CONSTRUCTION LTD,3041893,"10,842.45 ",CIS Labour - London Estates - Shepherd Construction - London South Project 2014-2015 Commencement Agreement
Ministry of Justice,HMCTS,30/06/2015,532000-Tangible GBV - Additions,BZ999-London Region,INTERSERVE CONSTRUCTION LTD,3068277,"38,405.60 ","CIS Labour - 102 Petty France - Interserve -  BPRN ref. 900/14/2889. 102 Petty France, refit reception and atrium (2nd purchase order)"
Ministry of Justice,HMCTS,30/06/2015,532000-Tangible GBV - Additions,BZ999-London Region,SHEPHERD CONSTRUCTION LTD,3069320,"38,596.59 ",CIS Labour - London Estates - Shepherd Construction - London South Project 2014-2015 Commencement Agreement
Ministry of Justice,HMCTS,30/06/2015,532000-Tangible GBV - Additions,BZ999-London Region,INTERSERVE CONSTRUCTION LTD,3068277,"38,405.60 ","CIS Labour - 102 Petty France - Interserve -  BPRN ref. 900/14/2889. 102 Petty France, refit reception and atrium (2nd purchase order)"
Ministry of Justice,HMCTS,30/06/2015,532000-Tangible GBV - Additions,BZ999-London Region,MITIE JUSTICE LTD,3068353,"8,651.71 ",CIS Labour - Edmonton County Court - MITIE JUSTICE - PPD-replacement of fire alarm systems (SK)
Ministry of Justice,HMCTS,03/06/2015,532000-Tangible GBV - Additions,BZ999-London Region,SHEPHERD CONSTRUCTION LTD,3041893,-0.01 ,CIS Labour - London Estates - Shepherd Construction - London South Project 2014-2015 Commencement Agreement
Ministry of Justice,HMCTS,03/06/2015,532000-Tangible GBV - Additions,BZ999-London Region,SHEPHERD CONSTRUCTION LTD,3041893,-0.01 ,CIS Labour - London Estates - Shepherd Construction - London North Project 2014-2015 &#150; Commencement Agreement
Ministry of Justice,HMCTS,30/06/2015,532000-Tangible GBV - Additions,BZ999-London Region,SHEPHERD CONSTRUCTION LTD,3069320,"67,040.96 ",CIS Labour - London Estates - Shepherd Construction - London North Project 2014-2015 &#150; Commencement Agreement
Ministry of Justice,HMCTS,30/06/2015,532000-Tangible GBV - Additions,BZ999-London Region,SHEPHERD CONSTRUCTION LTD,3069320,"335,204.78 ",CIS Labour - London Estates - Shepherd Construction - London North Project 2014-2015 &#150; Commencement Agreement
Ministry of Justice,HMCTS,30/06/2015,532000-Tangible GBV - Additions,BZ999-London Region,MITIE JUSTICE LTD,3068353,"43,258.56 ",CIS Labour - Edmonton County Court - MITIE JUSTICE - PPD-replacement of fire alarm systems (SK)
Ministry of Justice,HMCTS,30/06/2015,532000-Tangible GBV - Additions,BZ999-London Region,INTERSERVE CONSTRUCTION LTD,3068277,"-192,028.00 ","CIS Labour - Estates London Region - INTERSERVE CONSTRUCTION LTD - BPRN ref. 900/14/2889. 102 Petty France, refit reception and atrium."
Ministry of Justice,HMCTS,09/06/2015,532000-Tangible GBV - Additions,CZ999-South East Region,VINCI CONSTRUCTION UK LTD,3046976,"101,450.80 ",CIS Labour - Bury St Edmunds - Vinci Construction - Integration of Bury St Edmunds Tribunal into County Court - PPA Fees (Constructor Services)
Ministry of Justice,HMCTS,09/06/2015,532000-Tangible GBV - Additions,CZ999-South East Region,VINCI CONSTRUCTION UK LTD,3046976,"507,254.00 ",CIS Labour - Bury St Edmunds - Vinci Construction - Integration of Bury St Edmunds Tribunal into County Court - PPA Fees (Constructor Services)
Ministry of Justice,HMCTS,09/06/2015,532000-Tangible GBV - Additions,CZ999-South East Region,VINCI CONSTRUCTION UK LTD,3046976,"125,847.00 ",CIS Labour - Bury St Edmunds - Vinci Construction - Integration of Bury St Edmunds Tribunal into County Court - PPA Fees (Constructor Services)
Ministry of Justice,HMCTS,30/06/2015,532000-Tangible GBV - Additions,CZ999-South East Region,PRINCEBUILD,3069192,"5,409.52 ",CIS Labour - Oxford Magistrates - Princebuild - Replace fire alarm system including detectors
Ministry of Justice,HMCTS,30/06/2015,532000-Tangible GBV - Additions,CZ999-South East Region,PRINCEBUILD,3069192,"27,047.60 ",CIS Labour - Oxford Magistrates - Princebuild - Replace fire alarm system including detectors
Ministry of Justice,HMCTS,09/06/2015,532000-Tangible GBV - Additions,CZ999-South East Region,VINCI CONSTRUCTION UK LTD,3046976,"25,169.40 ",CIS Labour - Bury St Edmunds - Vinci Construction - Integration of Bury St Edmunds Tribunal into County Court - PPA Fees (Constructor Services)
Ministry of Justice,HMCTS,16/06/2015,532000-Tangible GBV - Additions,DZ999-South West Region,MITIE JUSTICE LTD,3053676,"8,740.26 ",CIS Labour - Southampton Combined Court - MITIE JUSTICE - Install LED lighting
Ministry of Justice,HMCTS,16/06/2015,532000-Tangible GBV - Additions,DZ999-South West Region,MITIE JUSTICE LTD,3053676,"7,032.00 ",CIS Labour - Bristol Crown - MITIE JUSTICE LTD - Replacement of Distribution Boards
Ministry of Justice,HMCTS,09/06/2015,532000-Tangible GBV - Additions,DZ999-South West Region,ISG CONSTRUCTION LTD,3045694,"33,427.51 ",CIS LABOUR - Aldershot Magistates - ISG CONSTRUCTION -   PPD Project - Integrate the Tribunals and County Court into the Magistrates Court.
Ministry of Justice,HMCTS,24/06/2015,532000-Tangible GBV - Additions,DZ999-South West Region,ISG CONSTRUCTION LTD,3062944,"71,645.11 ",CIS Labour - Winchester Combined Court - ISG Construction - Survey & design works to develop the DPP to Winchester Combined Court & Judges' Lodgings (SAA)
Ministry of Justice,HMCTS,16/06/2015,532000-Tangible GBV - Additions,DZ999-South West Region,MITIE JUSTICE LTD,3053676,"35,159.99 ",CIS Labour - Bristol Crown - MITIE JUSTICE LTD - Replacement of Distribution Boards
Ministry of Justice,HMCTS,24/06/2015,532000-Tangible GBV - Additions,DZ999-South West Region,ISG CONSTRUCTION LTD,3062944,"19,285.03 ",CIS LABOUR - Aldershot Magistates - ISG CONSTRUCTION -   PPD Project - Integrate the Tribunals and County Court into the Magistrates Court.
Ministry of Justice,HMCTS,24/06/2015,532000-Tangible GBV - Additions,DZ999-South West Region,ISG CONSTRUCTION LTD,3062944,"14,329.02 ",CIS Labour - Winchester Combined Court - ISG Construction - Survey & design works to develop the DPP to Winchester Combined Court & Judges' Lodgings (SAA)
Ministry of Justice,HMCTS,09/06/2015,532000-Tangible GBV - Additions,DZ999-South West Region,ISG CONSTRUCTION LTD,3045694,"-3,227.51 ",CIS LABOUR - Aldershot Magistates - ISG CONSTRUCTION -   PPD Project - Integrate the Tribunals and County Court into the Magistrates Court.
Ministry of Justice,HMCTS,09/06/2015,532000-Tangible GBV - Additions,DZ999-South West Region,ISG CONSTRUCTION LTD,3045694,"16,137.53 ",CIS LABOUR - Aldershot Magistates - ISG CONSTRUCTION -   PPD Project - Integrate the Tribunals and County Court into the Magistrates Court.
Ministry of Justice,HMCTS,09/06/2015,532000-Tangible GBV - Additions,DZ999-South West Region,ISG CONSTRUCTION LTD,3045694,"35,720.15 ",CIS Labour - Winchester Combined Court - ISG Construction - Survey & design works to develop the DPP to Winchester Combined Court & Judges' Lodgings (SAA)
Ministry of Justice,HMCTS,16/06/2015,532000-Tangible GBV - Additions,DZ999-South West Region,MITIE JUSTICE LTD,3053676,"43,701.30 ",CIS Labour - Southampton Combined Court - MITIE JUSTICE - Install LED lighting
Ministry of Justice,HMCTS,09/06/2015,532000-Tangible GBV - Additions,DZ999-South West Region,ISG CONSTRUCTION LTD,3045694,"167,137.53 ",CIS LABOUR - Aldershot Magistates - ISG CONSTRUCTION -   PPD Project - Integrate the Tribunals and County Court into the Magistrates Court.
Ministry of Justice,HMCTS,09/06/2015,532000-Tangible GBV - Additions,DZ999-South West Region,ISG CONSTRUCTION LTD,3045694,"178,600.73 ",CIS Labour - Winchester Combined Court - ISG Construction - Survey & design works to develop the DPP to Winchester Combined Court & Judges' Lodgings (SAA)
Ministry of Justice,HMCTS,24/06/2015,532000-Tangible GBV - Additions,DZ999-South West Region,ISG CONSTRUCTION LTD,3062944,"96,425.17 ",CIS LABOUR - Aldershot Magistates - ISG CONSTRUCTION -   PPD Project - Integrate the Tribunals and County Court into the Magistrates Court.
Ministry of Justice,HMCTS,09/06/2015,532000-Tangible GBV - Additions,DZ999-South West Region,ISG CONSTRUCTION LTD,3045694,"-16,137.53 ",CIS LABOUR - Aldershot Magistates - ISG CONSTRUCTION -   PPD Project - Integrate the Tribunals and County Court into the Magistrates Court.
Ministry of Justice,HMCTS,09/06/2015,532000-Tangible GBV - Additions,DZ999-South West Region,ISG CONSTRUCTION LTD,3045694,"3,227.51 ",CIS LABOUR - Aldershot Magistates - ISG CONSTRUCTION -   PPD Project - Integrate the Tribunals and County Court into the Magistrates Court.
Ministry of Justice,HMCTS,02/06/2015,532000-Tangible GBV - Additions,EZ999-Wales Region,ISG CONSTRUCTION LTD,3039100,"34,159.89 ",CIS Labour - Swansea Crown St Helen's Road - ISG Construction - Backlog capital maintenance required to comply with landlord obligations
Ministry of Justice,HMCTS,02/06/2015,532000-Tangible GBV - Additions,EZ999-Wales Region,ISG CONSTRUCTION LTD,3039100,"34,159.89 ",CIS Labour - Swansea Crown St Helen's Road - ISG Construction - Backlog capital maintenance required to comply with landlord obligations
Ministry of Justice,HMCTS,02/06/2015,532000-Tangible GBV - Additions,EZ999-Wales Region,ISG CONSTRUCTION LTD,3039100,"-170,799.47 ",CIS Labour - Swansea Crown St Helen's Road - ISG Construction - Backlog capital maintenance required to comply with landlord obligations
Ministry of Justice,HMCTS,02/06/2015,532000-Tangible GBV - Additions,EZ999-Wales Region,ISG CONSTRUCTION LTD,3039100,"170,799.47 ",CIS Labour - Swansea Crown St Helen's Road - ISG Construction - Backlog capital maintenance required to comply with landlord obligations
Ministry of Justice,HMCTS,02/06/2015,532000-Tangible GBV - Additions,EZ999-Wales Region,ISG CONSTRUCTION LTD,3039100,"170,799.47 ",CIS labour Swansea Crown ISG Construction Repairs and upgrade works
Ministry of Justice,HMCTS,02/06/2015,532000-Tangible GBV - Additions,EZ999-Wales Region,ISG CONSTRUCTION LTD,3039100,"-34,159.89 ",CIS Labour - Swansea Crown St Helen's Road - ISG Construction - Backlog capital maintenance required to comply with landlord obligations
Ministry of Justice,HMCTS,23/06/2015,532000-Tangible GBV - Additions,FZ999-Midlands Region,HENRY BOOT CONSTRUCTION (U K) LTD,3060912,"12,459.26 ",CIS Labour  - Various West Midlands Sites - Henry Boot -  West Midlands Capital Works Programme
Ministry of Justice,HMCTS,19/06/2015,532000-Tangible GBV - Additions,FZ999-Midlands Region,SHEPHERD CONSTRUCTION LTD,3059560,"136,436.88 ",CIS Labour  - Midlands Estates - Shepherd Construction - Midlands Capital SD Works 14/15
Ministry of Justice,HMCTS,23/06/2015,532000-Tangible GBV - Additions,FZ999-Midlands Region,HENRY BOOT CONSTRUCTION (U K) LTD,3060912,"62,296.30 ",CIS Labour  - Various West Midlands Sites - Henry Boot -  West Midlands Capital Works Programme
Ministry of Justice,HMCTS,19/06/2015,532000-Tangible GBV - Additions,FZ999-Midlands Region,SHEPHERD CONSTRUCTION LTD,3059560,"27,287.38 ",CIS Labour  - Midlands Estates - Shepherd Construction - Midlands Capital SD Works 14/15
Ministry of Justice,HMCTS,23/06/2015,532000-Tangible GBV - Additions,FZ999-Midlands Region,HENRY BOOT CONSTRUCTION (U K) LTD,3060912,"50,449.66 ",CIS Labour  - Various West Midlands Sites - Henry Boot -  West Midlands Capital Works Programme
Ministry of Justice,HMCTS,23/06/2015,532000-Tangible GBV - Additions,FZ999-Midlands Region,HENRY BOOT CONSTRUCTION (U K) LTD,3060912,"10,089.93 ",CIS Labour  - Various West Midlands Sites - Henry Boot -  West Midlands Capital Works Programme
Ministry of Justice,HMCTS,19/06/2015,532000-Tangible GBV - Additions,FZ999-Midlands Region,SHEPHERD CONSTRUCTION LTD,3059560,-0.01 ,CIS Labour  - Midlands Estates - Shepherd Construction - Midlands Capital SD Works 14/15
Ministry of Justice,HMCTS,17/06/2015,532000-Tangible GBV - Additions,GZ999-North West Region,GALLIFORD TRY CONSTRUCTION (UK) LTD,3055320,"51,401.08 ",CIS Labour Liverpool QEII Galliford Try  Liverpool MC Integration Scheme Capital Works Programme 15-16
Ministry of Justice,HMCTS,12/06/2015,532000-Tangible GBV - Additions,GZ999-North West Region,GALLIFORD TRY CONSTRUCTION (UK) LTD,3050854,"595,619.46 ",CIS Labour Liverpool QEII Galliford Try  Liverpool MC Integration Scheme Capital Works Programme 15-16
Ministry of Justice,HMCTS,12/06/2015,532000-Tangible GBV - Additions,GZ999-North West Region,GALLIFORD TRY CONSTRUCTION (UK) LTD,3050854,"119,123.89 ",CIS Labour Liverpool QEII Galliford Try  Liverpool MC Integration Scheme Capital Works Programme 15-16
Ministry of Justice,HMCTS,16/06/2015,532000-Tangible GBV - Additions,GZ999-North West Region,GALLIFORD TRY CONSTRUCTION (UK) LTD,3053523,"25,603.79 ",CIS Labour - Manchester Crown - Miller Construction (UK) Ltd - Ventilation Works Phase 2
Ministry of Justice,HMCTS,16/06/2015,532000-Tangible GBV - Additions,GZ999-North West Region,GALLIFORD TRY CONSTRUCTION (UK) LTD,3053523,"128,018.97 ",CIS Labour - Manchester Crown - Miller Construction (UK) Ltd - Ventilation Works Phase 2
Ministry of Justice,HMCTS,17/06/2015,532000-Tangible GBV - Additions,GZ999-North West Region,GALLIFORD TRY CONSTRUCTION (UK) LTD,3055320,"257,005.41 ",CIS Labour Liverpool QEII Galliford Try  Liverpool MC Integration Scheme Capital Works Programme 15-16
Ministry of Justice,HMCTS,02/06/2015,532000-Tangible GBV - Additions,HZ999-North East Region,SHAYLOR GROUP PLC,3039979,"41,480.00 ",CIS LABOUR - Various - Shaylor Group PLC -  Capital Programme Works - South and West Yorkshire Area 14-15
Ministry of Justice,HMCTS,02/06/2015,532000-Tangible GBV - Additions,HZ999-North East Region,SHAYLOR GROUP PLC,3039979,"42,432.56 ",CIS LABOUR - Various - Shaylor Group PLC -  Capital Programme Works - South and West Yorkshire Area 14-15
Ministry of Justice,HMCTS,02/06/2015,532000-Tangible GBV - Additions,HZ999-North East Region,SHAYLOR GROUP PLC,3039979,"8,296.00 ",CIS LABOUR - Various - Shaylor Group PLC -  Capital Programme Works - South and West Yorkshire Area 14-15
Ministry of Justice,HMCTS,02/06/2015,532000-Tangible GBV - Additions,HZ999-North East Region,SHAYLOR GROUP PLC,3039979,"8,486.51 ",CIS LABOUR - Various - Shaylor Group PLC -  Capital Programme Works - South and West Yorkshire Area 14-15
Ministry of Justice,HMCTS,09/06/2015,610300-Debtors < 1 Year - Deposits & Advances,GZ999-North West Region,NEOPOST LTD,3045866,"104,334.00 ","weekly franking machine re-credits for HMCTS, MOJ and LAA"
Ministry of Justice,HMCTS,02/06/2015,610300-Debtors < 1 Year - Deposits & Advances,GZ999-North West Region,NEOPOST LTD,3039222,"141,975.00 ","weekly franking machine re-credits for HMCTS, MOJ and LAA"
Ministry of Justice,HMCTS,19/06/2015,610300-Debtors < 1 Year - Deposits & Advances,GZ999-North West Region,NEOPOST LTD,3058530,"144,439.00 ","weekly franking machine re-credits for HMCTS, MOJ and LAA"
Ministry of Justice,HMCTS,26/06/2015,610300-Debtors < 1 Year - Deposits & Advances,GZ999-North West Region,NEOPOST LTD,3065915,"129,090.00 ","weekly franking machine re-credits for HMCTS, MOJ and LAA"
Ministry of Justice,HMCTS,12/06/2015,610300-Debtors < 1 Year - Deposits & Advances,GZ999-North West Region,NEOPOST LTD,3051058,"141,200.00 ","weekly franking machine re-credits for HMCTS, MOJ and LAA"
Ministry of Justice,HMCTS,09/06/2015,610400-Debtors <1 year - Prepayments & Accrued Income,BZ999-London Region,CLSH MANAGEMENT LTD,3045457,"45,000.00 ",Rent invoice
Ministry of Justice,HMCTS,09/06/2015,610400-Debtors <1 year - Prepayments & Accrued Income,BZ999-London Region,CBRE LTD,3045433,"1,236,675.00 ",Rent invoice
Ministry of Justice,HMCTS,16/06/2015,610400-Debtors <1 year - Prepayments & Accrued Income,BZ999-London Region,BROADGATE ESTATES LTD,3053358,"2,616,550.00 ",Rent invoice
Ministry of Justice,HMCTS,19/06/2015,610400-Debtors <1 year - Prepayments & Accrued Income,BZ999-London Region,JAMES ANDREW RSW,3058252,"46,157.35 ",Rent invoice
Ministry of Justice,HMCTS,12/06/2015,610400-Debtors <1 year - Prepayments & Accrued Income,BZ999-London Region,BERKLEY ESTATES LONDON LTD,3050716,"83,809.53 ",Rent invoice
Ministry of Justice,HMCTS,26/06/2015,610400-Debtors <1 year - Prepayments & Accrued Income,BZ999-London Region,JOHN & SANDRA JOSEPH,3065809,"21,705.00 ",Rent invoice
Ministry of Justice,HMCTS,16/06/2015,610400-Debtors <1 year - Prepayments & Accrued Income,BZ999-London Region,BROADGATE ESTATES LTD,3053358,"523,310.00 ",Rent invoice
Ministry of Justice,HMCTS,26/06/2015,610400-Debtors <1 year - Prepayments & Accrued Income,BZ999-London Region,JOHN & SANDRA JOSEPH,3065809,"108,525.00 ",Rent invoice
Ministry of Justice,HMCTS,09/06/2015,610400-Debtors <1 year - Prepayments & Accrued Income,BZ999-London Region,CLSH MANAGEMENT LTD,3045457,"9,000.00 ",Rent invoice
Ministry of Justice,HMCTS,19/06/2015,610400-Debtors <1 year - Prepayments & Accrued Income,BZ999-London Region,JAMES ANDREW RSW,3058252,"230,786.75 ",Rent invoice
Ministry of Justice,HMCTS,12/06/2015,610400-Debtors <1 year - Prepayments & Accrued Income,BZ999-London Region,BERKLEY ESTATES LONDON LTD,3050716,"1,113,469.54 ",Rent invoice
Ministry of Justice,HMCTS,16/06/2015,610400-Debtors <1 year - Prepayments & Accrued Income,BZ999-London Region,EDDISONS,3053490,"31,221.57 ",Rent invoice
Ministry of Justice,HMCTS,09/06/2015,610400-Debtors <1 year - Prepayments & Accrued Income,BZ999-London Region,CBRE LTD,3045433,"247,335.00 ",Rent invoice
Ministry of Justice,HMCTS,16/06/2015,610400-Debtors <1 year - Prepayments & Accrued Income,BZ999-London Region,EDDISONS,3053490,"6,244.31 ",Rent invoice
Ministry of Justice,HMCTS,19/06/2015,610400-Debtors <1 year - Prepayments & Accrued Income,CZ999-South East Region,I ELLINSON & CO,3058248,"3,168.55 ",Rent invoice
Ministry of Justice,HMCTS,19/06/2015,610400-Debtors <1 year - Prepayments & Accrued Income,CZ999-South East Region,I ELLINSON & CO,3058248,0.20 ,Rent invoice
Ministry of Justice,HMCTS,19/06/2015,610400-Debtors <1 year - Prepayments & Accrued Income,CZ999-South East Region,DTZ DEBENHAM TIE LEUNG,3058140,"-2,750.04 ",Rent invoice
Ministry of Justice,HMCTS,12/06/2015,610400-Debtors <1 year - Prepayments & Accrued Income,CZ999-South East Region,AYLESBURY CONSERVATIVES,3050695,"-8,556.62 ",Rent invoice
Ministry of Justice,HMCTS,12/06/2015,610400-Debtors <1 year - Prepayments & Accrued Income,CZ999-South East Region,AFFINITY COMMERCIAL LLP,3050676,"337,918.75 ",Rent invoice
Ministry of Justice,HMCTS,19/06/2015,610400-Debtors <1 year - Prepayments & Accrued Income,CZ999-South East Region,DTZ DEBENHAM TIE LEUNG,3058140,"13,750.00 ",Rent invoice
Ministry of Justice,HMCTS,19/06/2015,610400-Debtors <1 year - Prepayments & Accrued Income,CZ999-South East Region,GDPP,3058177,"59,125.00 ",Rent invoice
Ministry of Justice,HMCTS,16/06/2015,610400-Debtors <1 year - Prepayments & Accrued Income,CZ999-South East Region,CBGA ROBSON LLP,3053391,"38,417.50 ",Rent invoice
Ministry of Justice,HMCTS,12/06/2015,610400-Debtors <1 year - Prepayments & Accrued Income,CZ999-South East Region,MERCHANT PLACE PROPERTY PARTNERSHIP 36,3051024,"49,806.20 ",Rent invoice
Ministry of Justice,HMCTS,26/06/2015,610400-Debtors <1 year - Prepayments & Accrued Income,CZ999-South East Region,RAINHAM PROPERTIES LTD,3066768,"37,500.00 ",Rent invoice
Ministry of Justice,HMCTS,12/06/2015,610400-Debtors <1 year - Prepayments & Accrued Income,CZ999-South East Region,COLLIERS INTERNATIONAL,3050778,"189,256.00 ",Rent invoice
Ministry of Justice,HMCTS,19/06/2015,610400-Debtors <1 year - Prepayments & Accrued Income,CZ999-South East Region,GOOD HARVEST GROUP LTD,3058185,"8,216.00 ",Rent invoice
Ministry of Justice,HMCTS,12/06/2015,610400-Debtors <1 year - Prepayments & Accrued Income,CZ999-South East Region,AFFINITY COMMERCIAL LLP,3050676,"67,583.75 ",Rent invoice
Ministry of Justice,HMCTS,19/06/2015,610400-Debtors <1 year - Prepayments & Accrued Income,CZ999-South East Region,DTZ DEBENHAM TIE LEUNG,3058140,"-13,750.20 ",Rent invoice
Ministry of Justice,HMCTS,12/06/2015,610400-Debtors <1 year - Prepayments & Accrued Income,CZ999-South East Region,COLLIERS INTERNATIONAL,3050778,"37,851.20 ",Rent invoice
Ministry of Justice,HMCTS,16/06/2015,610400-Debtors <1 year - Prepayments & Accrued Income,CZ999-South East Region,CBGA ROBSON LLP,3053391,"7,683.50 ",Rent invoice
Ministry of Justice,HMCTS,26/06/2015,610400-Debtors <1 year - Prepayments & Accrued Income,CZ999-South East Region,MA READING LTD,3065868,"120,576.30 ",Rent invoice
Ministry of Justice,HMCTS,17/06/2015,610400-Debtors <1 year - Prepayments & Accrued Income,CZ999-South East Region,SUFFOLKLIFE,3057196,"32,593.00 ",Rent invoice
Ministry of Justice,HMCTS,10/06/2015,610400-Debtors <1 year - Prepayments & Accrued Income,CZ999-South East Region,OSPREY HOUSE (MANAGEMENT) LTD,3049077,"17,946.20 ",Rent invoice
Ministry of Justice,HMCTS,19/06/2015,610400-Debtors <1 year - Prepayments & Accrued Income,CZ999-South East Region,I ELLINSON & CO,3058248,"-15,842.75 ",Rent invoice
Ministry of Justice,HMCTS,12/06/2015,610400-Debtors <1 year - Prepayments & Accrued Income,CZ999-South East Region,MERCHANT PLACE PROPERTY PARTNERSHIP 36,3051024,"249,031.00 ",Rent invoice
Ministry of Justice,HMCTS,10/06/2015,610400-Debtors <1 year - Prepayments & Accrued Income,CZ999-South East Region,OSPREY HOUSE (MANAGEMENT) LTD,3049077,"89,731.00 ",Rent invoice
Ministry of Justice,HMCTS,19/06/2015,610400-Debtors <1 year - Prepayments & Accrued Income,CZ999-South East Region,I ELLINSON & CO,3058248,"15,842.75 ",Rent invoice
Ministry of Justice,HMCTS,12/06/2015,610400-Debtors <1 year - Prepayments & Accrued Income,CZ999-South East Region,AYLESBURY CONSERVATIVES,3050695,"42,783.12 ",Rent invoice
Ministry of Justice,HMCTS,12/06/2015,610400-Debtors <1 year - Prepayments & Accrued Income,CZ999-South East Region,AYLESBURY CONSERVATIVES,3050695,"-42,783.12 ",Rent invoice
Ministry of Justice,HMCTS,12/06/2015,610400-Debtors <1 year - Prepayments & Accrued Income,CZ999-South East Region,AYLESBURY CONSERVATIVES,3050695,"42,783.12 ",Rent invoice
Ministry of Justice,HMCTS,19/06/2015,610400-Debtors <1 year - Prepayments & Accrued Income,CZ999-South East Region,GDPP,3058177,"11,825.00 ",Rent invoice
Ministry of Justice,HMCTS,19/06/2015,610400-Debtors <1 year - Prepayments & Accrued Income,CZ999-South East Region,DTZ DEBENHAM TIE LEUNG,3058140,"2,750.04 ",Rent invoice
Ministry of Justice,HMCTS,19/06/2015,610400-Debtors <1 year - Prepayments & Accrued Income,CZ999-South East Region,I ELLINSON & CO,3058248,"15,843.75 ",Rent invoice
Ministry of Justice,HMCTS,19/06/2015,610400-Debtors <1 year - Prepayments & Accrued Income,CZ999-South East Region,DTZ DEBENHAM TIE LEUNG,3058140,"2,750.00 ",Rent invoice
Ministry of Justice,HMCTS,19/06/2015,610400-Debtors <1 year - Prepayments & Accrued Income,CZ999-South East Region,DTZ DEBENHAM TIE LEUNG,3058140,"13,750.20 ",Rent invoice
Ministry of Justice,HMCTS,19/06/2015,610400-Debtors <1 year - Prepayments & Accrued Income,CZ999-South East Region,GOOD HARVEST GROUP LTD,3058185,"41,080.00 ",Rent invoice
Ministry of Justice,HMCTS,12/06/2015,610400-Debtors <1 year - Prepayments & Accrued Income,CZ999-South East Region,AYLESBURY CONSERVATIVES,3050695,"8,556.62 ",Rent invoice
Ministry of Justice,HMCTS,19/06/2015,610400-Debtors <1 year - Prepayments & Accrued Income,DZ999-South West Region,SWANSTON HOLDINGS PLC,3059597,"-5,300.04 ",Rent invoice
Ministry of Justice,HMCTS,19/06/2015,610400-Debtors <1 year - Prepayments & Accrued Income,DZ999-South West Region,SWANSTON HOLDINGS PLC,3059597,"26,500.00 ",Rent invoice
Ministry of Justice,HMCTS,09/06/2015,610400-Debtors <1 year - Prepayments & Accrued Income,DZ999-South West Region,RATCLIFFES,3046831,"77,613.75 ",Rent invoice
Ministry of Justice,HMCTS,19/06/2015,610400-Debtors <1 year - Prepayments & Accrued Income,DZ999-South West Region,SWANSTON HOLDINGS PLC,3059597,"-26,500.20 ",Rent invoice
Ministry of Justice,HMCTS,09/06/2015,610400-Debtors <1 year - Prepayments & Accrued Income,DZ999-South West Region,RATCLIFFES,3046831,"15,522.75 ",Rent invoice
Ministry of Justice,HMCTS,26/06/2015,610400-Debtors <1 year - Prepayments & Accrued Income,DZ999-South West Region,WORKMAN,3066892,"76,381.25 ",Rent invoice
Ministry of Justice,HMCTS,16/06/2015,610400-Debtors <1 year - Prepayments & Accrued Income,DZ999-South West Region,CLSH MANAGEMENT LTD,3053409,"42,594.92 ",Rent invoice
Ministry of Justice,HMCTS,12/06/2015,610400-Debtors <1 year - Prepayments & Accrued Income,DZ999-South West Region,LONDONDERRY ADMINISTRATIVE SERVICES,3050991,"6,187.50 ",Rent invoice
Ministry of Justice,HMCTS,26/06/2015,610400-Debtors <1 year - Prepayments & Accrued Income,DZ999-South West Region,WORKMAN,3066892,"15,276.25 ",Rent invoice
Ministry of Justice,HMCTS,12/06/2015,610400-Debtors <1 year - Prepayments & Accrued Income,DZ999-South West Region,LONDONDERRY ADMINISTRATIVE SERVICES,3050991,"30,937.50 ",Rent invoice
Ministry of Justice,HMCTS,19/06/2015,610400-Debtors <1 year - Prepayments & Accrued Income,DZ999-South West Region,SWANSTON HOLDINGS PLC,3059597,"5,300.00 ",Rent invoice
Ministry of Justice,HMCTS,19/06/2015,610400-Debtors <1 year - Prepayments & Accrued Income,DZ999-South West Region,SWANSTON HOLDINGS PLC,3059597,"5,300.04 ",Rent invoice
Ministry of Justice,HMCTS,19/06/2015,610400-Debtors <1 year - Prepayments & Accrued Income,DZ999-South West Region,SWANSTON HOLDINGS PLC,3059597,"26,500.20 ",Rent invoice
Ministry of Justice,HMCTS,12/06/2015,610400-Debtors <1 year - Prepayments & Accrued Income,EZ999-Wales Region,SAVILLS (UK) LTD,3051880,"14,234.03 ",Rent invoice
Ministry of Justice,HMCTS,16/06/2015,610400-Debtors <1 year - Prepayments & Accrued Income,EZ999-Wales Region,CBRE LTD,3053394,"13,662.50 ",Rent invoice
Ministry of Justice,HMCTS,26/06/2015,610400-Debtors <1 year - Prepayments & Accrued Income,EZ999-Wales Region,NINE ASSET MANAGEMENT LTD,3065917,"60,686.50 ",Rent invoice
Ministry of Justice,HMCTS,16/06/2015,610400-Debtors <1 year - Prepayments & Accrued Income,EZ999-Wales Region,CBRE LTD,3053394,"2,732.50 ",Rent invoice
Ministry of Justice,HMCTS,26/06/2015,610400-Debtors <1 year - Prepayments & Accrued Income,EZ999-Wales Region,CANADA LIFE LTD,3065655,"253,051.87 ",Rent invoice
Ministry of Justice,HMCTS,09/06/2015,610400-Debtors <1 year - Prepayments & Accrued Income,EZ999-Wales Region,SCOTTS PROPERTY LLP,3046886,"6,750.00 ",Rent invoice
Ministry of Justice,HMCTS,12/06/2015,610400-Debtors <1 year - Prepayments & Accrued Income,EZ999-Wales Region,VINE PROPERTY MANAGEMENT,3051941,"4,420.00 ",Rent invoice
Ministry of Justice,HMCTS,26/06/2015,610400-Debtors <1 year - Prepayments & Accrued Income,EZ999-Wales Region,NINE ASSET MANAGEMENT LTD,3065917,"12,137.30 ",Rent invoice
Ministry of Justice,HMCTS,12/06/2015,610400-Debtors <1 year - Prepayments & Accrued Income,EZ999-Wales Region,SAVILLS (UK) LTD,3051880,"71,170.16 ",Rent invoice
Ministry of Justice,HMCTS,12/06/2015,610400-Debtors <1 year - Prepayments & Accrued Income,EZ999-Wales Region,VINE PROPERTY MANAGEMENT,3051941,"5,080.00 ",Rent invoice
Ministry of Justice,HMCTS,12/06/2015,610400-Debtors <1 year - Prepayments & Accrued Income,EZ999-Wales Region,VINE PROPERTY MANAGEMENT,3051941,"22,100.00 ",Rent invoice
Ministry of Justice,HMCTS,12/06/2015,610400-Debtors <1 year - Prepayments & Accrued Income,EZ999-Wales Region,VINE PROPERTY MANAGEMENT,3051941,"25,400.00 ",Rent invoice
Ministry of Justice,HMCTS,09/06/2015,610400-Debtors <1 year - Prepayments & Accrued Income,EZ999-Wales Region,SCOTTS PROPERTY LLP,3046886,"33,750.00 ",Rent invoice
Ministry of Justice,HMCTS,09/06/2015,610400-Debtors <1 year - Prepayments & Accrued Income,FZ999-Midlands Region,JONES LANG LASALLE LTD,3045716,"1,054,275.00 ",Rent invoice
Ministry of Justice,HMCTS,09/06/2015,610400-Debtors <1 year - Prepayments & Accrued Income,FZ999-Midlands Region,JONES LANG LASALLE LTD,3045717,"42,762.91 ",Rent invoice
Ministry of Justice,HMCTS,09/06/2015,610400-Debtors <1 year - Prepayments & Accrued Income,FZ999-Midlands Region,JONES LANG LASALLE LTD,3045716,"210,855.00 ",Rent invoice
Ministry of Justice,HMCTS,09/06/2015,610400-Debtors <1 year - Prepayments & Accrued Income,FZ999-Midlands Region,JONES LANG LASALLE LTD,3045717,"213,814.55 ",Rent invoice
Ministry of Justice,HMCTS,19/06/2015,610400-Debtors <1 year - Prepayments & Accrued Income,FZ999-Midlands Region,BOND WOLFE ASSETS LTD,3058036,"33,905.70 ",Rent invoice
Ministry of Justice,HMCTS,16/06/2015,610400-Debtors <1 year - Prepayments & Accrued Income,GZ999-North West Region,CRYSTAL 5 LTD (HW),3053442,600.00 ,Rent invoice
Ministry of Justice,HMCTS,19/06/2015,610400-Debtors <1 year - Prepayments & Accrued Income,GZ999-North West Region,CORK STREET PROPERTIES LTD,3058106,"2,171,284.00 ",Rent invoice
Ministry of Justice,HMCTS,30/06/2015,610400-Debtors <1 year - Prepayments & Accrued Income,GZ999-North West Region,LONDON & CAPITAL PROPERTIES LTD,3068317,"587,833.70 ",Rent invoice
Ministry of Justice,HMCTS,16/06/2015,610400-Debtors <1 year - Prepayments & Accrued Income,GZ999-North West Region,CRYSTAL 5 LTD (HW),3053442,120.00 ,Rent invoice
Ministry of Justice,HMCTS,12/06/2015,610400-Debtors <1 year - Prepayments & Accrued Income,GZ999-North West Region,SAVILLS (UK) LTD,3051880,"21,880.75 ",Rent invoice
Ministry of Justice,HMCTS,26/06/2015,610400-Debtors <1 year - Prepayments & Accrued Income,GZ999-North West Region,OAKLAWN,3065924,"32,182.65 ",Rent invoice
Ministry of Justice,HMCTS,05/06/2015,610400-Debtors <1 year - Prepayments & Accrued Income,GZ999-North West Region,SPM (STRATEGIC PROPERTY MANAGEMENT),3044107,"11,350.00 ",Rent invoice
Ministry of Justice,HMCTS,05/06/2015,610400-Debtors <1 year - Prepayments & Accrued Income,GZ999-North West Region,LAMBERT SMITH HAMPTON GROUP LTD,3043076,"3,550.00 ",Rent invoice
Ministry of Justice,HMCTS,05/06/2015,610400-Debtors <1 year - Prepayments & Accrued Income,GZ999-North West Region,LAMBERT SMITH HAMPTON GROUP LTD,3043076,"17,750.00 ",Rent invoice
Ministry of Justice,HMCTS,12/06/2015,610400-Debtors <1 year - Prepayments & Accrued Income,GZ999-North West Region,SAVILLS (UK) LTD,3051880,"109,403.75 ",Rent invoice
Ministry of Justice,HMCTS,19/06/2015,610400-Debtors <1 year - Prepayments & Accrued Income,GZ999-North West Region,CORK STREET PROPERTIES LTD,3058106,"434,256.80 ",Rent invoice
Ministry of Justice,HMCTS,05/06/2015,610400-Debtors <1 year - Prepayments & Accrued Income,GZ999-North West Region,SPM (STRATEGIC PROPERTY MANAGEMENT),3044107,"56,750.00 ",Rent invoice
Ministry of Justice,HMCTS,23/06/2015,610400-Debtors <1 year - Prepayments & Accrued Income,HZ999-North East Region,SANDERSON WEATHERALL,313836,"4,061.25 ",Rent invoice
Ministry of Justice,HMCTS,12/06/2015,610400-Debtors <1 year - Prepayments & Accrued Income,HZ999-North East Region,M J MAPP LTD,3051002,"13,250.00 ",Rent invoice
Ministry of Justice,HMCTS,16/06/2015,610400-Debtors <1 year - Prepayments & Accrued Income,HZ999-North East Region,MPS2 LTD,3053684,"7,975.00 ",Rent invoice
Ministry of Justice,HMCTS,10/06/2015,610400-Debtors <1 year - Prepayments & Accrued Income,HZ999-North East Region,WSB PROPERTY CONSULTANTS LLP,3049696,"53,133.26 ",Rent invoice
Ministry of Justice,HMCTS,16/06/2015,610400-Debtors <1 year - Prepayments & Accrued Income,HZ999-North East Region,COLENSO PROPERTY SERVICES LLP,3053415,"5,850.00 ",Rent invoice
Ministry of Justice,HMCTS,16/06/2015,610400-Debtors <1 year - Prepayments & Accrued Income,HZ999-North East Region,COLENSO PROPERTY SERVICES LLP,3053415,"29,250.00 ",Rent invoice
Ministry of Justice,HMCTS,12/06/2015,610400-Debtors <1 year - Prepayments & Accrued Income,HZ999-North East Region,M J MAPP LTD,3051002,"66,250.00 ",Rent invoice
Ministry of Justice,HMCTS,16/06/2015,610400-Debtors <1 year - Prepayments & Accrued Income,HZ999-North East Region,MPS2 LTD,3053684,"39,875.00 ",Rent invoice
Ministry of Justice,HMCTS,23/06/2015,610400-Debtors <1 year - Prepayments & Accrued Income,HZ999-North East Region,SANDERSON WEATHERALL,313836,"20,306.25 ",Rent invoice
Ministry of Justice,HMCTS,16/06/2015,610400-Debtors <1 year - Prepayments & Accrued Income,BZ999-London Region,DTZ DEBENHAM TIE LEUNG,3053481,"11,225.11 ",Service Charge invoice
Ministry of Justice,HMCTS,16/06/2015,610400-Debtors <1 year - Prepayments & Accrued Income,BZ999-London Region,BROADGATE ESTATES LTD,3053358,"58,895.55 ",Service Charge invoice
Ministry of Justice,HMCTS,16/06/2015,610400-Debtors <1 year - Prepayments & Accrued Income,BZ999-London Region,BROADGATE ESTATES LTD,3053358,"294,477.77 ",Service Charge invoice
Ministry of Justice,HMCTS,16/06/2015,610400-Debtors <1 year - Prepayments & Accrued Income,BZ999-London Region,DTZ DEBENHAM TIE LEUNG,3053481,"56,125.55 ",Service Charge invoice
Ministry of Justice,HMCTS,24/06/2015,610400-Debtors <1 year - Prepayments & Accrued Income,BZ999-London Region,DTZ DEBENHAM TIE LEUNG,3062628,"58,502.46 ",Service Charge invoice
Ministry of Justice,HMCTS,24/06/2015,610400-Debtors <1 year - Prepayments & Accrued Income,BZ999-London Region,DTZ DEBENHAM TIE LEUNG,3062628,"11,700.49 ",Service Charge invoice
Ministry of Justice,HMCTS,12/06/2015,610400-Debtors <1 year - Prepayments & Accrued Income,CZ999-South East Region,COLLIERS INTERNATIONAL,3050778,"8,991.55 ",Service Charge invoice
Ministry of Justice,HMCTS,19/06/2015,610400-Debtors <1 year - Prepayments & Accrued Income,CZ999-South East Region,DTZ DEBENHAM TIE LEUNG,3058140,"11,910.42 ",Service Charge invoice
Ministry of Justice,HMCTS,19/06/2015,610400-Debtors <1 year - Prepayments & Accrued Income,CZ999-South East Region,I ELLINSON & CO,3058248,"16,790.53 ",Service Charge invoice
Ministry of Justice,HMCTS,19/06/2015,610400-Debtors <1 year - Prepayments & Accrued Income,CZ999-South East Region,DTZ DEBENHAM TIE LEUNG,3058140,"2,382.08 ",Service Charge invoice
Ministry of Justice,HMCTS,09/06/2015,610400-Debtors <1 year - Prepayments & Accrued Income,CZ999-South East Region,OSPREY HOUSE (MANAGEMENT) LTD,3046770,"44,150.00 ",Service Charge invoice
Ministry of Justice,HMCTS,16/06/2015,610400-Debtors <1 year - Prepayments & Accrued Income,CZ999-South East Region,CBGA ROBSON LLP,3053391,"5,143.38 ",Service Charge invoice
Ministry of Justice,HMCTS,12/06/2015,610400-Debtors <1 year - Prepayments & Accrued Income,CZ999-South East Region,COLLIERS INTERNATIONAL,3050778,"44,957.75 ",Service Charge invoice
Ministry of Justice,HMCTS,16/06/2015,610400-Debtors <1 year - Prepayments & Accrued Income,CZ999-South East Region,CBGA ROBSON LLP,3053391,"25,716.89 ",Service Charge invoice
Ministry of Justice,HMCTS,19/06/2015,610400-Debtors <1 year - Prepayments & Accrued Income,CZ999-South East Region,I ELLINSON & CO,3058248,"3,358.11 ",Service Charge invoice
Ministry of Justice,HMCTS,09/06/2015,610400-Debtors <1 year - Prepayments & Accrued Income,CZ999-South East Region,OSPREY HOUSE (MANAGEMENT) LTD,3046770,"8,830.00 ",Service Charge invoice
Ministry of Justice,HMCTS,12/06/2015,610400-Debtors <1 year - Prepayments & Accrued Income,DZ999-South West Region,LONDONDERRY ADMINISTRATIVE SERVICES,3050991,306.97 ,Service Charge invoice
Ministry of Justice,HMCTS,12/06/2015,610400-Debtors <1 year - Prepayments & Accrued Income,DZ999-South West Region,LONDONDERRY ADMINISTRATIVE SERVICES,3050991,61.39 ,Service Charge invoice
Ministry of Justice,HMCTS,12/06/2015,610400-Debtors <1 year - Prepayments & Accrued Income,EZ999-Wales Region,NORTH WALES POLICE AUTHORITY,3051064,"5,647.42 ",Service Charge invoice
Ministry of Justice,HMCTS,16/06/2015,610400-Debtors <1 year - Prepayments & Accrued Income,EZ999-Wales Region,CBRE LTD,3053394,"11,795.00 ",Service Charge invoice
Ministry of Justice,HMCTS,26/06/2015,610400-Debtors <1 year - Prepayments & Accrued Income,EZ999-Wales Region,NINE ASSET MANAGEMENT LTD,3065917,"4,339.92 ",Service Charge invoice
Ministry of Justice,HMCTS,26/06/2015,610400-Debtors <1 year - Prepayments & Accrued Income,EZ999-Wales Region,NINE ASSET MANAGEMENT LTD,3065917,"21,699.59 ",Service Charge invoice
Ministry of Justice,HMCTS,12/06/2015,610400-Debtors <1 year - Prepayments & Accrued Income,EZ999-Wales Region,NORTH WALES POLICE AUTHORITY,3051064,"28,237.10 ",Service Charge invoice
Ministry of Justice,HMCTS,16/06/2015,610400-Debtors <1 year - Prepayments & Accrued Income,EZ999-Wales Region,CBRE LTD,3053394,"2,359.00 ",Service Charge invoice
Ministry of Justice,HMCTS,12/06/2015,610400-Debtors <1 year - Prepayments & Accrued Income,EZ999-Wales Region,FLINTSHIRE COUNTY COUNCIL,3050843,"63,932.98 ",Service Charge invoice
Ministry of Justice,HMCTS,09/06/2015,610400-Debtors <1 year - Prepayments & Accrued Income,FZ999-Midlands Region,JONES LANG LASALLE LTD,3045716,"12,782.87 ",Service Charge invoice
Ministry of Justice,HMCTS,19/06/2015,610400-Debtors <1 year - Prepayments & Accrued Income,FZ999-Midlands Region,BOND WOLFE ASSETS LTD,3058036,"13,399.05 ",Service Charge invoice
Ministry of Justice,HMCTS,17/06/2015,610400-Debtors <1 year - Prepayments & Accrued Income,FZ999-Midlands Region,WEST MERCIA POLICE & CRIME COMMISSIONER,3057355,"612,780.80 ",Service Charge invoice
Ministry of Justice,HMCTS,19/06/2015,610400-Debtors <1 year - Prepayments & Accrued Income,FZ999-Midlands Region,WEST MERCIA POLICE & CRIME COMMISSIONER,3059640,"1,341,422.17 ",Service Charge invoice
Ministry of Justice,HMCTS,09/06/2015,610400-Debtors <1 year - Prepayments & Accrued Income,FZ999-Midlands Region,JONES LANG LASALLE LTD,3045716,"63,912.84 ",Service Charge invoice
Ministry of Justice,HMCTS,16/06/2015,610400-Debtors <1 year - Prepayments & Accrued Income,GZ999-North West Region,CBRE LTD,3053393,"4,749.70 ",Service Charge invoice
Ministry of Justice,HMCTS,23/06/2015,610400-Debtors <1 year - Prepayments & Accrued Income,GZ999-North West Region,LANCASHIRE POLICE AUTHORITY,3060988,"57,162.32 ",Service Charge invoice
Ministry of Justice,HMCTS,16/06/2015,610400-Debtors <1 year - Prepayments & Accrued Income,GZ999-North West Region,CRYSTAL 5 LTD (HW),3053442,"6,670.93 ",Service Charge invoice
Ministry of Justice,HMCTS,19/06/2015,610400-Debtors <1 year - Prepayments & Accrued Income,GZ999-North West Region,CBRE LTD,3058079,"29,116.75 ",Service Charge invoice
Ministry of Justice,HMCTS,19/06/2015,610400-Debtors <1 year - Prepayments & Accrued Income,GZ999-North West Region,LANCASHIRE COUNTY COUNCIL,3058286,"107,352.39 ",Service Charge invoice
Ministry of Justice,HMCTS,16/06/2015,610400-Debtors <1 year - Prepayments & Accrued Income,GZ999-North West Region,CBRE LTD,3053393,"35,873.40 ",Service Charge invoice
Ministry of Justice,HMCTS,19/06/2015,610400-Debtors <1 year - Prepayments & Accrued Income,GZ999-North West Region,CBRE LTD,3058079,"5,823.35 ",Service Charge invoice
Ministry of Justice,HMCTS,23/06/2015,610400-Debtors <1 year - Prepayments & Accrued Income,GZ999-North West Region,LANCASHIRE POLICE AUTHORITY,3060988,"48,690.45 ",Service Charge invoice
Ministry of Justice,HMCTS,16/06/2015,610400-Debtors <1 year - Prepayments & Accrued Income,GZ999-North West Region,CRYSTAL 5 LTD (HW),3053442,"63,775.75 ",Service Charge invoice
Ministry of Justice,HMCTS,23/06/2015,610400-Debtors <1 year - Prepayments & Accrued Income,GZ999-North West Region,LANCASHIRE POLICE AUTHORITY,3060988,"38,349.18 ",Service Charge invoice
Ministry of Justice,HMCTS,19/06/2015,610400-Debtors <1 year - Prepayments & Accrued Income,GZ999-North West Region,CBRE LTD,3058078,"29,852.25 ",Service Charge invoice
Ministry of Justice,HMCTS,19/06/2015,610400-Debtors <1 year - Prepayments & Accrued Income,GZ999-North West Region,CBRE LTD,3058078,"5,970.45 ",Service Charge invoice
Ministry of Justice,HMCTS,05/06/2015,610400-Debtors <1 year - Prepayments & Accrued Income,GZ999-North West Region,LAMBERT SMITH HAMPTON GROUP LTD,3043076,"1,511.54 ",Service Charge invoice
Ministry of Justice,HMCTS,16/06/2015,610400-Debtors <1 year - Prepayments & Accrued Income,GZ999-North West Region,CRYSTAL 5 LTD (HW),3053442,"33,354.62 ",Service Charge invoice
Ministry of Justice,HMCTS,05/06/2015,610400-Debtors <1 year - Prepayments & Accrued Income,GZ999-North West Region,LAMBERT SMITH HAMPTON GROUP LTD,3043076,"7,557.68 ",Service Charge invoice
Ministry of Justice,HMCTS,16/06/2015,610400-Debtors <1 year - Prepayments & Accrued Income,GZ999-North West Region,CBRE LTD,3053393,"23,748.50 ",Service Charge invoice
Ministry of Justice,HMCTS,16/06/2015,610400-Debtors <1 year - Prepayments & Accrued Income,GZ999-North West Region,CRYSTAL 5 LTD (HW),3053442,"12,755.15 ",Service Charge invoice
Ministry of Justice,HMCTS,16/06/2015,610400-Debtors <1 year - Prepayments & Accrued Income,HZ999-North East Region,ES GROUP LTD,3053500,"6,408.67 ",Service Charge invoice
Ministry of Justice,HMCTS,12/06/2015,610400-Debtors <1 year - Prepayments & Accrued Income,HZ999-North East Region,M J MAPP LTD,3051002,"23,986.50 ",Service Charge invoice
Ministry of Justice,HMCTS,12/06/2015,610400-Debtors <1 year - Prepayments & Accrued Income,HZ999-North East Region,M J MAPP LTD,3051002,"4,797.30 ",Service Charge invoice
Ministry of Justice,HMCTS,16/06/2015,610400-Debtors <1 year - Prepayments & Accrued Income,HZ999-North East Region,ES GROUP LTD,3053500,"32,043.36 ",Service Charge invoice
Ministry of Justice,HMCTS,23/06/2015,610400-Debtors <1 year - Prepayments & Accrued Income,HZ999-North East Region,SANDERSON WEATHERALL,313836,993.30 ,Service Charge invoice
Ministry of Justice,HMCTS,23/06/2015,610400-Debtors <1 year - Prepayments & Accrued Income,HZ999-North East Region,SANDERSON WEATHERALL,313836,"4,966.50 ",Service Charge invoice
Ministry of Justice,HMCTS,23/06/2015,610400-Debtors <1 year - Prepayments & Accrued Income,AG999-HQ - Estates,SALFORD CITY COUNCIL,3062108,"2,908.70 ",Rates Invoice
Ministry of Justice,HMCTS,23/06/2015,610400-Debtors <1 year - Prepayments & Accrued Income,AG999-HQ - Estates,ST ALBANS CITY & DISTRICT COUNCIL,3062151,"2,514.30 ",Rates Invoice
Ministry of Justice,HMCTS,23/06/2015,610400-Debtors <1 year - Prepayments & Accrued Income,BZ999-London Region,CITY OF LONDON,3060732,"381,029.00 ",Rates Invoice
Ministry of Justice,HMCTS,23/06/2015,610400-Debtors <1 year - Prepayments & Accrued Income,BZ999-London Region,LONDON BOROUGH OF NEWHAM,3061022,"34,627.50 ",Rates Invoice
Ministry of Justice,HMCTS,23/06/2015,610400-Debtors <1 year - Prepayments & Accrued Income,BZ999-London Region,LONDON BOROUGH OF HARROW,3061015,"33,938.26 ",Rates Invoice
Ministry of Justice,HMCTS,23/06/2015,610400-Debtors <1 year - Prepayments & Accrued Income,BZ999-London Region,LONDON BOROUGH OF RICHMOND UPON THAMES,3061024,"14,877.00 ",Rates Invoice
Ministry of Justice,HMCTS,23/06/2015,610400-Debtors <1 year - Prepayments & Accrued Income,BZ999-London Region,LONDON BOROUGH OF BARNET,3061005,"14,364.00 ",Rates Invoice
Ministry of Justice,HMCTS,23/06/2015,610400-Debtors <1 year - Prepayments & Accrued Income,BZ999-London Region,LONDON BOROUGH OF WALTHAM FOREST,3061027,"15,505.43 ",Rates Invoice
Ministry of Justice,HMCTS,23/06/2015,610400-Debtors <1 year - Prepayments & Accrued Income,BZ999-London Region,LONDON BOROUGH OF HARINGEY,3061014,"8,515.80 ",Rates Invoice
Ministry of Justice,HMCTS,23/06/2015,610400-Debtors <1 year - Prepayments & Accrued Income,BZ999-London Region,NEWCASTLE CITY COUNCIL,3061121,"4,486.30 ",Rates Invoice
Ministry of Justice,HMCTS,23/06/2015,610400-Debtors <1 year - Prepayments & Accrued Income,BZ999-London Region,LONDON BOROUGH OF HAMMERSMITH & FULHAM,3061013,"52,839.00 ",Rates Invoice
Ministry of Justice,HMCTS,23/06/2015,610400-Debtors <1 year - Prepayments & Accrued Income,BZ999-London Region,LONDON BOROUGH OF SOUTHWARK,3061025,"95,418.00 ",Rates Invoice
Ministry of Justice,HMCTS,23/06/2015,610400-Debtors <1 year - Prepayments & Accrued Income,BZ999-London Region,LONDON BOROUGH OF CROYDON,3061010,"98,738.39 ",RATES ADJUSTMENT
Ministry of Justice,HMCTS,23/06/2015,610400-Debtors <1 year - Prepayments & Accrued Income,BZ999-London Region,LONDON BOROUGH OF ISLINGTON,3061019,"55,917.00 ",Rates Invoice
Ministry of Justice,HMCTS,23/06/2015,610400-Debtors <1 year - Prepayments & Accrued Income,BZ999-London Region,LONDON BOROUGH OF HAVERING,3061016,"5,489.10 ",Rates Invoice
Ministry of Justice,HMCTS,23/06/2015,610400-Debtors <1 year - Prepayments & Accrued Income,BZ999-London Region,LONDON BOROUGH OF CROYDON,3061010,"14,093.39 ",Rates Invoice
Ministry of Justice,HMCTS,23/06/2015,610400-Debtors <1 year - Prepayments & Accrued Income,BZ999-London Region,LONDON BOROUGH OF REDBRIDGE,3061023,"50,530.50 ",Rates Invoice
Ministry of Justice,HMCTS,23/06/2015,610400-Debtors <1 year - Prepayments & Accrued Income,BZ999-London Region,LONDON BOROUGH OF CROYDON,3061010,"14,107.50 ",Rates Invoice
Ministry of Justice,HMCTS,23/06/2015,610400-Debtors <1 year - Prepayments & Accrued Income,BZ999-London Region,ROYAL BOROUGH OF KINGSTON UPON THAMES,3062098,"99,009.00 ",Rates Invoice
Ministry of Justice,HMCTS,23/06/2015,610400-Debtors <1 year - Prepayments & Accrued Income,BZ999-London Region,LONDON BOROUGH OF EALING,3061011,"5,104.35 ",Rates Invoice
Ministry of Justice,HMCTS,23/06/2015,610400-Debtors <1 year - Prepayments & Accrued Income,BZ999-London Region,LONDON BOROUGH OF BROMLEY,3061008,"14,598.76 ",Rates Invoice
Ministry of Justice,HMCTS,23/06/2015,610400-Debtors <1 year - Prepayments & Accrued Income,BZ999-London Region,LONDON BOROUGH OF HOUNSLOW,3061018,"4,052.70 ",Rates Invoice
Ministry of Justice,HMCTS,23/06/2015,610400-Debtors <1 year - Prepayments & Accrued Income,BZ999-London Region,LONDON BOROUGH OF SOUTHWARK,3061025,"117,990.00 ",Rates Invoice
Ministry of Justice,HMCTS,23/06/2015,610400-Debtors <1 year - Prepayments & Accrued Income,BZ999-London Region,GREENWICH COUNCIL,3060884,"5,643.00 ",Rates Invoice
Ministry of Justice,HMCTS,23/06/2015,610400-Debtors <1 year - Prepayments & Accrued Income,BZ999-London Region,LONDON BOROUGH OF TOWER HAMLETS.,3061026,"46,170.00 ",Rates Invoice
Ministry of Justice,HMCTS,23/06/2015,610400-Debtors <1 year - Prepayments & Accrued Income,BZ999-London Region,LONDON BOROUGH OF BROMLEY,3061008,"8,464.50 ",Rates Invoice
Ministry of Justice,HMCTS,23/06/2015,610400-Debtors <1 year - Prepayments & Accrued Income,BZ999-London Region,CITY OF LONDON,3060732,"8,582.20 ",Rates Invoice
Ministry of Justice,HMCTS,23/06/2015,610400-Debtors <1 year - Prepayments & Accrued Income,BZ999-London Region,LONDON BOROUGH OF HILLINGDON,3061017,"7,182.00 ",Rates Invoice
Ministry of Justice,HMCTS,23/06/2015,610400-Debtors <1 year - Prepayments & Accrued Income,BZ999-London Region,LONDON BOROUGH OF SOUTHWARK,3061025,"33,601.50 ",Rates Invoice
Ministry of Justice,HMCTS,23/06/2015,610400-Debtors <1 year - Prepayments & Accrued Income,BZ999-London Region,LONDON BOROUGH OF ISLINGTON,3061019,"25,393.50 ",Rates Invoice
Ministry of Justice,HMCTS,23/06/2015,610400-Debtors <1 year - Prepayments & Accrued Income,BZ999-London Region,LONDON BOROUGH OF HAVERING,3061016,"7,335.90 ",Rates Invoice
Ministry of Justice,HMCTS,23/06/2015,610400-Debtors <1 year - Prepayments & Accrued Income,BZ999-London Region,LONDON BOROUGH OF REDBRIDGE,3061023,"16,416.00 ",Rates Invoice
Ministry of Justice,HMCTS,23/06/2015,610400-Debtors <1 year - Prepayments & Accrued Income,BZ999-London Region,LONDON BOROUGH OF HARINGEY,3061014,"61,045.67 ",Rates Invoice
Ministry of Justice,HMCTS,23/06/2015,610400-Debtors <1 year - Prepayments & Accrued Income,BZ999-London Region,ROYAL BOROUGH OF KINGSTON UPON THAMES,3062098,"8,977.50 ",Rates Invoice
Ministry of Justice,HMCTS,23/06/2015,610400-Debtors <1 year - Prepayments & Accrued Income,BZ999-London Region,LONDON BOROUGH OF HOUNSLOW,3061018,"58,482.00 ",Rates Invoice
Ministry of Justice,HMCTS,23/06/2015,610400-Debtors <1 year - Prepayments & Accrued Income,BZ999-London Region,LONDON BOROUGH OF LAMBETH,3061020,"5,053.05 ",Rates Invoice
Ministry of Justice,HMCTS,23/06/2015,610400-Debtors <1 year - Prepayments & Accrued Income,BZ999-London Region,LONDON BOROUGH OF CROYDON,3061010,"77,463.00 ",Rates Invoice
Ministry of Justice,HMCTS,23/06/2015,610400-Debtors <1 year - Prepayments & Accrued Income,BZ999-London Region,LONDON BOROUGH OF CROYDON,3061010,"34,114.50 ",Rates Invoice
Ministry of Justice,HMCTS,23/06/2015,610400-Debtors <1 year - Prepayments & Accrued Income,BZ999-London Region,CITY OF WESTMINSTER,3060733,"75,411.00 ",Rates Invoice
Ministry of Justice,HMCTS,23/06/2015,610400-Debtors <1 year - Prepayments & Accrued Income,BZ999-London Region,LONDON BOROUGH OF MERTON,3061021,"23,238.90 ",Rates Invoice
Ministry of Justice,HMCTS,23/06/2015,610400-Debtors <1 year - Prepayments & Accrued Income,BZ999-London Region,LONDON BOROUGH OF BARNET,3061005,"23,341.50 ",Rates Invoice
Ministry of Justice,HMCTS,23/06/2015,610400-Debtors <1 year - Prepayments & Accrued Income,BZ999-London Region,LONDON BOROUGH OF HILLINGDON,3061017,"12,465.90 ",Rates Invoice
Ministry of Justice,HMCTS,23/06/2015,610400-Debtors <1 year - Prepayments & Accrued Income,BZ999-London Region,WANDSWORTH BOROUGH COUNCIL,3062221,"10,625.87 ",Rates Invoice
Ministry of Justice,HMCTS,23/06/2015,610400-Debtors <1 year - Prepayments & Accrued Income,BZ999-London Region,CITY OF WESTMINSTER,3060733,"370,899.00 ",Rates Invoice
Ministry of Justice,HMCTS,23/06/2015,610400-Debtors <1 year - Prepayments & Accrued Income,BZ999-London Region,LONDON BOROUGH OF ENFIELD,3061012,"4,334.85 ",Rates Invoice
Ministry of Justice,HMCTS,23/06/2015,610400-Debtors <1 year - Prepayments & Accrued Income,BZ999-London Region,WANDSWORTH BOROUGH COUNCIL,3062221,"9,244.58 ",Rates Invoice
Ministry of Justice,HMCTS,23/06/2015,610400-Debtors <1 year - Prepayments & Accrued Income,BZ999-London Region,LONDON BOROUGH OF SOUTHWARK,3061025,"49,761.00 ",Rates Invoice
Ministry of Justice,HMCTS,23/06/2015,610400-Debtors <1 year - Prepayments & Accrued Income,BZ999-London Region,LONDON BOROUGH OF BEXLEY,3061006,"13,722.75 ",Rates Invoice
Ministry of Justice,HMCTS,23/06/2015,610400-Debtors <1 year - Prepayments & Accrued Income,BZ999-London Region,LONDON BOROUGH OF BRENT,3061007,"4,847.85 ",Rates Invoice
Ministry of Justice,HMCTS,23/06/2015,610400-Debtors <1 year - Prepayments & Accrued Income,BZ999-London Region,LONDON BOROUGH OF NEWHAM,3061022,"6,771.60 ",Rates Invoice
Ministry of Justice,HMCTS,23/06/2015,610400-Debtors <1 year - Prepayments & Accrued Income,BZ999-London Region,LONDON BOROUGH OF CAMDEN,3061009,"174,420.00 ",Rates Invoice
Ministry of Justice,HMCTS,23/06/2015,610400-Debtors <1 year - Prepayments & Accrued Income,BZ999-London Region,LONDON BOROUGH OF BRENT,3061007,"40,527.00 ",Rates Invoice
Ministry of Justice,HMCTS,23/06/2015,610400-Debtors <1 year - Prepayments & Accrued Income,BZ999-London Region,LONDON BOROUGH OF HOUNSLOW,3061018,"5,181.30 ",Rates Invoice
Ministry of Justice,HMCTS,23/06/2015,610400-Debtors <1 year - Prepayments & Accrued Income,CZ999-South East Region,COLCHESTER BOROUGH COUNCIL,3060740,"29,194.02 ",Rates Invoice
Ministry of Justice,HMCTS,23/06/2015,610400-Debtors <1 year - Prepayments & Accrued Income,CZ999-South East Region,WORTHING BOROUGH COUNCIL,3062260,"10,402.30 ",Rates Invoice
Ministry of Justice,HMCTS,23/06/2015,610400-Debtors <1 year - Prepayments & Accrued Income,CZ999-South East Region,MAIDSTONE BOROUGH COUNCIL,3061035,"3,426.35 ",Rates Invoice
Ministry of Justice,HMCTS,23/06/2015,610400-Debtors <1 year - Prepayments & Accrued Income,CZ999-South East Region,CAMBRIDGE CITY COUNCIL,3060699,"18,364.25 ",Rates Invoice
Ministry of Justice,HMCTS,23/06/2015,610400-Debtors <1 year - Prepayments & Accrued Income,CZ999-South East Region,CANTERBURY CITY COUNCIL,3060704,"3,602.00 ",Rates Invoice
Ministry of Justice,HMCTS,23/06/2015,610400-Debtors <1 year - Prepayments & Accrued Income,CZ999-South East Region,LEWES DISTRICT COUNCIL,3060997,"11,733.40 ",Rates Invoice
Ministry of Justice,HMCTS,23/06/2015,610400-Debtors <1 year - Prepayments & Accrued Income,CZ999-South East Region,TUNBRIDGE WELLS BOROUGH COUNCIL,3062198,"10,007.90 ",Rates Invoice
Ministry of Justice,HMCTS,23/06/2015,610400-Debtors <1 year - Prepayments & Accrued Income,CZ999-South East Region,ST EDMUNDSBURY BOROUGH COUNCIL,3062152,"41,905.00 ",Rates Invoice
Ministry of Justice,HMCTS,23/06/2015,610400-Debtors <1 year - Prepayments & Accrued Income,CZ999-South East Region,CHICHESTER DISTRICT COUNCIL,3060725,"9,219.10 ",Rates Invoice
Ministry of Justice,HMCTS,23/06/2015,610400-Debtors <1 year - Prepayments & Accrued Income,CZ999-South East Region,COLCHESTER BOROUGH COUNCIL,3060740,"5,666.37 ",Rates Invoice
Ministry of Justice,HMCTS,23/06/2015,610400-Debtors <1 year - Prepayments & Accrued Income,CZ999-South East Region,BRIGHTON & HOVE CITY COUNCIL,3060671,"9,613.50 ",Rates Invoice
Ministry of Justice,HMCTS,23/06/2015,610400-Debtors <1 year - Prepayments & Accrued Income,CZ999-South East Region,THANET DISTRICT COUNCIL,3062179,"7,296.40 ",Rates Invoice
Ministry of Justice,HMCTS,23/06/2015,610400-Debtors <1 year - Prepayments & Accrued Income,CZ999-South East Region,BEDFORD BOROUGH COUNCIL,3060636,"12,078.50 ",Rates Invoice
Ministry of Justice,HMCTS,23/06/2015,610400-Debtors <1 year - Prepayments & Accrued Income,CZ999-South East Region,DARTFORD BOROUGH COUNCIL,3060782,"3,598.90 ",Rates Invoice
Ministry of Justice,HMCTS,23/06/2015,610400-Debtors <1 year - Prepayments & Accrued Income,CZ999-South East Region,MEDWAY COUNCIL,3061055,"14,297.00 ",Rates Invoice
Ministry of Justice,HMCTS,23/06/2015,610400-Debtors <1 year - Prepayments & Accrued Income,CZ999-South East Region,MILTON KEYNES COUNCIL,3061084,"5,866.70 ",Rates Invoice
Ministry of Justice,HMCTS,23/06/2015,610400-Debtors <1 year - Prepayments & Accrued Income,CZ999-South East Region,AYLESBURY VALE DISTRICT COUNCIL,3060619,"9,931.19 ",Rates Invoice
Ministry of Justice,HMCTS,23/06/2015,610400-Debtors <1 year - Prepayments & Accrued Income,CZ999-South East Region,CHELMSFORD BOROUGH COUNCIL,3060721,"32,291.50 ",Rates Invoice
Ministry of Justice,HMCTS,23/06/2015,610400-Debtors <1 year - Prepayments & Accrued Income,CZ999-South East Region,AYLESBURY VALE DISTRICT COUNCIL,3060619,"3,993.30 ",Rates Invoice
Ministry of Justice,HMCTS,23/06/2015,610400-Debtors <1 year - Prepayments & Accrued Income,CZ999-South East Region,SHEPWAY DISTRICT COUNCIL,3062125,"6,902.00 ",Rates Invoice
Ministry of Justice,HMCTS,23/06/2015,610400-Debtors <1 year - Prepayments & Accrued Income,CZ999-South East Region,BRACKNELL FOREST COUNCIL,3060663,"3,894.70 ",Rates Invoice
Ministry of Justice,HMCTS,23/06/2015,610400-Debtors <1 year - Prepayments & Accrued Income,CZ999-South East Region,SOUTHEND-ON-SEA BOROUGH COUNCIL,3062148,"17,008.50 ",Rates Invoice
Ministry of Justice,HMCTS,23/06/2015,610400-Debtors <1 year - Prepayments & Accrued Income,CZ999-South East Region,ST ALBANS CITY & DISTRICT COUNCIL,3062151,"13,311.00 ",Rates Invoice
Ministry of Justice,HMCTS,23/06/2015,610400-Debtors <1 year - Prepayments & Accrued Income,CZ999-South East Region,WATFORD BOROUGH COUNCIL,3062226,"7,542.90 ",Rates Invoice
Ministry of Justice,HMCTS,23/06/2015,610400-Debtors <1 year - Prepayments & Accrued Income,CZ999-South East Region,HUNTINGDONSHIRE DISTRICT COUNCIL,3060937,"26,868.50 ",Rates Invoice
Ministry of Justice,HMCTS,23/06/2015,610400-Debtors <1 year - Prepayments & Accrued Income,CZ999-South East Region,WYCOMBE DISTRICT COUNCIL,3062263,"15,738.14 ",Rates Invoice
Ministry of Justice,HMCTS,23/06/2015,610400-Debtors <1 year - Prepayments & Accrued Income,CZ999-South East Region,BRIGHTON & HOVE CITY COUNCIL,3060671,"20,459.50 ",Rates Invoice
Ministry of Justice,HMCTS,23/06/2015,610400-Debtors <1 year - Prepayments & Accrued Income,CZ999-South East Region,WATFORD BOROUGH COUNCIL,3062226,"4,017.95 ",Rates Invoice
Ministry of Justice,HMCTS,23/06/2015,610400-Debtors <1 year - Prepayments & Accrued Income,CZ999-South East Region,SPELTHORNE BOROUGH COUNCIL,3062150,"16,145.75 ",Rates Invoice
Ministry of Justice,HMCTS,23/06/2015,610400-Debtors <1 year - Prepayments & Accrued Income,CZ999-South East Region,SLOUGH BOROUGH COUNCIL,3062131,"2,662.20 ",Rates Invoice
Ministry of Justice,HMCTS,23/06/2015,610400-Debtors <1 year - Prepayments & Accrued Income,CZ999-South East Region,CHILTERN DISTRICT COUNCIL,3060727,"3,944.00 ",Rates Invoice
Ministry of Justice,HMCTS,23/06/2015,610400-Debtors <1 year - Prepayments & Accrued Income,CZ999-South East Region,SEVENOAKS DISTRICT COUNCIL,3062119,"4,683.50 ",Rates Invoice
Ministry of Justice,HMCTS,23/06/2015,610400-Debtors <1 year - Prepayments & Accrued Income,CZ999-South East Region,GREAT YARMOUTH BOROUGH COUNCIL,3060879,"11,634.80 ",Rates Invoice
Ministry of Justice,HMCTS,23/06/2015,610400-Debtors <1 year - Prepayments & Accrued Income,CZ999-South East Region,LEWES DISTRICT COUNCIL,3060997,"10,846.00 ",Rates Invoice
Ministry of Justice,HMCTS,23/06/2015,610400-Debtors <1 year - Prepayments & Accrued Income,CZ999-South East Region,STEVENAGE BOROUGH COUNCIL,3062159,"5,373.70 ",Rates Invoice
Ministry of Justice,HMCTS,23/06/2015,610400-Debtors <1 year - Prepayments & Accrued Income,CZ999-South East Region,DARTFORD BOROUGH COUNCIL,3060782,"6,902.00 ",Rates Invoice
Ministry of Justice,HMCTS,23/06/2015,610400-Debtors <1 year - Prepayments & Accrued Income,CZ999-South East Region,MOLE VALLEY DISTRICT COUNCIL,3061091,"4,510.95 ",Rates Invoice
Ministry of Justice,HMCTS,23/06/2015,610400-Debtors <1 year - Prepayments & Accrued Income,CZ999-South East Region,EPSOM & EWELL BOROUGH COUNCIL,3060830,"5,817.40 ",Rates Invoice
Ministry of Justice,HMCTS,23/06/2015,610400-Debtors <1 year - Prepayments & Accrued Income,CZ999-South East Region,DOVER DISTRICT COUNCIL,3060800,"12,226.40 ",Rates Invoice
Ministry of Justice,HMCTS,23/06/2015,610400-Debtors <1 year - Prepayments & Accrued Income,CZ999-South East Region,NORWICH CITY COUNCIL,3061136,"31,552.00 ",Rates Invoice
Ministry of Justice,HMCTS,23/06/2015,610400-Debtors <1 year - Prepayments & Accrued Income,CZ999-South East Region,IPSWICH BOROUGH COUNCIL,3060946,"11,043.20 ",Rates Invoice
Ministry of Justice,HMCTS,23/06/2015,610400-Debtors <1 year - Prepayments & Accrued Income,CZ999-South East Region,BOROUGH COUNCIL OF KINGS LYNN & WEST NORFOLK,3060652,"3,574.25 ",Rates Invoice
Ministry of Justice,HMCTS,23/06/2015,610400-Debtors <1 year - Prepayments & Accrued Income,CZ999-South East Region,EASTBOURNE BOROUGH COUNCIL,3060819,"6,507.60 ",Rates Invoice
Ministry of Justice,HMCTS,23/06/2015,610400-Debtors <1 year - Prepayments & Accrued Income,CZ999-South East Region,BOROUGH COUNCIL OF KINGS LYNN & WEST NORFOLK,3060652,"6,310.40 ",Rates Invoice
Ministry of Justice,HMCTS,23/06/2015,610400-Debtors <1 year - Prepayments & Accrued Income,CZ999-South East Region,CHICHESTER DISTRICT COUNCIL,3060725,"5,225.80 ",Rates Invoice
Ministry of Justice,HMCTS,23/06/2015,610400-Debtors <1 year - Prepayments & Accrued Income,CZ999-South East Region,GUILDFORD BOROUGH COUNCIL,3060890,"18,450.10 ",Rates Invoice
Ministry of Justice,HMCTS,23/06/2015,610400-Debtors <1 year - Prepayments & Accrued Income,CZ999-South East Region,ROYAL BOROUGH OF WINDSOR AND MAIDENHEAD,3062099,"6,316.96 ",Rates Invoice
Ministry of Justice,HMCTS,23/06/2015,610400-Debtors <1 year - Prepayments & Accrued Income,CZ999-South East Region,BRIGHTON & HOVE CITY COUNCIL,3060671,"11,832.00 ",Rates Invoice
Ministry of Justice,HMCTS,23/06/2015,610400-Debtors <1 year - Prepayments & Accrued Income,CZ999-South East Region,IPSWICH BOROUGH COUNCIL,3060946,"4,634.20 ",Rates Invoice
Ministry of Justice,HMCTS,23/06/2015,610400-Debtors <1 year - Prepayments & Accrued Income,CZ999-South East Region,EAST HERTFORDSHIRE DISTRICT COUNCIL,3060816,"5,472.30 ",Rates Invoice
Ministry of Justice,HMCTS,23/06/2015,610400-Debtors <1 year - Prepayments & Accrued Income,CZ999-South East Region,CHELMSFORD BOROUGH COUNCIL,3060721,"21,445.50 ",Rates Invoice
Ministry of Justice,HMCTS,23/06/2015,610400-Debtors <1 year - Prepayments & Accrued Income,CZ999-South East Region,CAMBRIDGE CITY COUNCIL,3060699,"27,608.00 ",Rates Invoice
Ministry of Justice,HMCTS,23/06/2015,610400-Debtors <1 year - Prepayments & Accrued Income,CZ999-South East Region,READING BOROUGH COUNCIL,3062072,"20,459.50 ",Rates Invoice
Ministry of Justice,HMCTS,23/06/2015,610400-Debtors <1 year - Prepayments & Accrued Income,CZ999-South East Region,MAIDSTONE BOROUGH COUNCIL,3061035,"4,486.30 ",Rates Invoice
Ministry of Justice,HMCTS,23/06/2015,610400-Debtors <1 year - Prepayments & Accrued Income,CZ999-South East Region,TUNBRIDGE WELLS BOROUGH COUNCIL,3062198,"2,933.35 ",Rates Invoice
Ministry of Justice,HMCTS,23/06/2015,610400-Debtors <1 year - Prepayments & Accrued Income,CZ999-South East Region,READING BOROUGH COUNCIL,3062072,"46,095.50 ",Rates Invoice
Ministry of Justice,HMCTS,23/06/2015,610400-Debtors <1 year - Prepayments & Accrued Income,CZ999-South East Region,CRAWLEY BOROUGH COUNCIL,3060766,"6,310.40 ",Rates Invoice
Ministry of Justice,HMCTS,23/06/2015,610400-Debtors <1 year - Prepayments & Accrued Income,CZ999-South East Region,WEST BERKSHIRE COUNCIL,3062231,"4,577.47 ",Rates Invoice
Ministry of Justice,HMCTS,23/06/2015,610400-Debtors <1 year - Prepayments & Accrued Income,CZ999-South East Region,BASILDON BOROUGH COUNCIL,3060628,"37,961.00 ",Rates Invoice
Ministry of Justice,HMCTS,23/06/2015,610400-Debtors <1 year - Prepayments & Accrued Income,CZ999-South East Region,CHELMSFORD BOROUGH COUNCIL,3060721,"30,319.50 ",Rates Invoice
Ministry of Justice,HMCTS,23/06/2015,610400-Debtors <1 year - Prepayments & Accrued Income,CZ999-South East Region,MAIDSTONE BOROUGH COUNCIL,3061035,"3,549.60 ",Rates Invoice
Ministry of Justice,HMCTS,23/06/2015,610400-Debtors <1 year - Prepayments & Accrued Income,CZ999-South East Region,STEVENAGE BOROUGH COUNCIL,3062159,"5,669.50 ",Rates Invoice
Ministry of Justice,HMCTS,23/06/2015,610400-Debtors <1 year - Prepayments & Accrued Income,CZ999-South East Region,CANTERBURY CITY COUNCIL,3060704,"41,658.50 ",Rates Invoice
Ministry of Justice,HMCTS,23/06/2015,610400-Debtors <1 year - Prepayments & Accrued Income,CZ999-South East Region,BOROUGH COUNCIL OF KINGS LYNN & WEST NORFOLK,3060652,"3,697.50 ",Rates Invoice
Ministry of Justice,HMCTS,23/06/2015,610400-Debtors <1 year - Prepayments & Accrued Income,CZ999-South East Region,LUTON BOROUGH COUNCIL,3061031,"15,406.25 ",Rates Invoice
Ministry of Justice,HMCTS,23/06/2015,610400-Debtors <1 year - Prepayments & Accrued Income,CZ999-South East Region,HASTINGS BOROUGH COUNCIL,3060906,"17,378.25 ",Rates Invoice
Ministry of Justice,HMCTS,23/06/2015,610400-Debtors <1 year - Prepayments & Accrued Income,CZ999-South East Region,HARLOW COUNCIL,3060901,"3,845.40 ",Rates Invoice
Ministry of Justice,HMCTS,23/06/2015,610400-Debtors <1 year - Prepayments & Accrued Income,CZ999-South East Region,HORSHAM DISTRICT COUNCIL,3060929,"9,021.90 ",Rates Invoice
Ministry of Justice,HMCTS,23/06/2015,610400-Debtors <1 year - Prepayments & Accrued Income,CZ999-South East Region,ST ALBANS CITY & DISTRICT COUNCIL,3062151,"32,784.50 ",Rates Invoice
Ministry of Justice,HMCTS,23/06/2015,610400-Debtors <1 year - Prepayments & Accrued Income,CZ999-South East Region,OXFORD CITY COUNCIL,3062025,"10,303.70 ",Rates Invoice
Ministry of Justice,HMCTS,23/06/2015,610400-Debtors <1 year - Prepayments & Accrued Income,CZ999-South East Region,NORWICH CITY COUNCIL,3061136,"17,624.75 ",Rates Invoice
Ministry of Justice,HMCTS,23/06/2015,610400-Debtors <1 year - Prepayments & Accrued Income,CZ999-South East Region,ST EDMUNDSBURY BOROUGH COUNCIL,3062152,"7,493.60 ",Rates Invoice
Ministry of Justice,HMCTS,23/06/2015,610400-Debtors <1 year - Prepayments & Accrued Income,CZ999-South East Region,SLOUGH BOROUGH COUNCIL,3062131,"4,165.53 ",Rates Invoice
Ministry of Justice,HMCTS,23/06/2015,610400-Debtors <1 year - Prepayments & Accrued Income,CZ999-South East Region,REIGATE & BANSTEAD BOROUGH COUNCIL,3062077,"11,585.50 ",Rates Invoice
Ministry of Justice,HMCTS,23/06/2015,610400-Debtors <1 year - Prepayments & Accrued Income,CZ999-South East Region,GUILDFORD BOROUGH COUNCIL,3060890,"16,825.75 ",Rates Invoice
Ministry of Justice,HMCTS,23/06/2015,610400-Debtors <1 year - Prepayments & Accrued Income,CZ999-South East Region,OXFORD CITY COUNCIL,3062025,"28,840.50 ",Rates Invoice
Ministry of Justice,HMCTS,23/06/2015,610400-Debtors <1 year - Prepayments & Accrued Income,CZ999-South East Region,BRIGHTON & HOVE CITY COUNCIL,3060671,"10,500.90 ",Rates Invoice
Ministry of Justice,HMCTS,23/06/2015,610400-Debtors <1 year - Prepayments & Accrued Income,CZ999-South East Region,BASILDON BOROUGH COUNCIL,3060628,"8,331.70 ",Rates Invoice
Ministry of Justice,HMCTS,23/06/2015,610400-Debtors <1 year - Prepayments & Accrued Income,CZ999-South East Region,MAIDSTONE BOROUGH COUNCIL,3061035,"56,202.00 ",Rates Invoice
Ministry of Justice,HMCTS,23/06/2015,610400-Debtors <1 year - Prepayments & Accrued Income,CZ999-South East Region,WAVENEY DISTRICT COUNCIL,3062227,"11,536.20 ",Rates Invoice
Ministry of Justice,HMCTS,23/06/2015,610400-Debtors <1 year - Prepayments & Accrued Income,CZ999-South East Region,READING BOROUGH COUNCIL,3062072,"6,951.30 ",Rates Invoice
Ministry of Justice,HMCTS,23/06/2015,610400-Debtors <1 year - Prepayments & Accrued Income,CZ999-South East Region,MILTON KEYNES COUNCIL,3061084,"21,568.75 ",Rates Invoice
Ministry of Justice,HMCTS,23/06/2015,610400-Debtors <1 year - Prepayments & Accrued Income,DZ999-South West Region,BASINGSTOKE & DEANE BOROUGH COUNCIL,3060629,"9,712.10 ",Rates Invoice
Ministry of Justice,HMCTS,10/06/2015,610400-Debtors <1 year - Prepayments & Accrued Income,DZ999-South West Region,PLYMOUTH CITY COUNCIL,3049147,"10,451.60 ",Rates Invoice
Ministry of Justice,HMCTS,23/06/2015,610400-Debtors <1 year - Prepayments & Accrued Income,DZ999-South West Region,BOURNEMOUTH BOROUGH COUNCIL,3060659,"42,644.50 ",Rates Invoice
Ministry of Justice,HMCTS,23/06/2015,610400-Debtors <1 year - Prepayments & Accrued Income,DZ999-South West Region,RUSHMOOR BOROUGH COUNCIL,3062103,"4,215.15 ",Rates Invoice
Ministry of Justice,HMCTS,23/06/2015,610400-Debtors <1 year - Prepayments & Accrued Income,DZ999-South West Region,SOUTH GLOUCESTERSHIRE COUNCIL,3062137,"10,895.30 ",Rates Invoice
Ministry of Justice,HMCTS,23/06/2015,610400-Debtors <1 year - Prepayments & Accrued Income,DZ999-South West Region,BRISTOL CITY COUNCIL,3060673,"51,765.00 ",Rates Invoice
Ministry of Justice,HMCTS,23/06/2015,610400-Debtors <1 year - Prepayments & Accrued Income,DZ999-South West Region,EXETER CITY COUNCIL,3060836,"46,095.50 ",Rates Invoice
Ministry of Justice,HMCTS,23/06/2015,610400-Debtors <1 year - Prepayments & Accrued Income,DZ999-South West Region,CORNWALL COUNCIL - CARRICK DIVISION,3060753,"8,972.60 ",Rates Invoice
Ministry of Justice,HMCTS,23/06/2015,610400-Debtors <1 year - Prepayments & Accrued Income,DZ999-South West Region,PLYMOUTH CITY COUNCIL,3062055,"10,451.60 ",Rates Invoice
Ministry of Justice,HMCTS,23/06/2015,610400-Debtors <1 year - Prepayments & Accrued Income,DZ999-South West Region,SWINDON BOROUGH COUNCIL,3062170,"10,353.00 ",Rates Invoice
Ministry of Justice,HMCTS,23/06/2015,610400-Debtors <1 year - Prepayments & Accrued Income,DZ999-South West Region,SOUTHAMPTON CITY COUNCIL,3062147,"42,891.00 ",Rates Invoice
Ministry of Justice,HMCTS,23/06/2015,610400-Debtors <1 year - Prepayments & Accrued Income,DZ999-South West Region,PLYMOUTH CITY COUNCIL,3062055,"14,198.40 ",Rates Invoice
Ministry of Justice,HMCTS,23/06/2015,610400-Debtors <1 year - Prepayments & Accrued Income,DZ999-South West Region,SOUTHAMPTON CITY COUNCIL,3062147,"35,249.50 ",Rates Invoice
Ministry of Justice,HMCTS,23/06/2015,610400-Debtors <1 year - Prepayments & Accrued Income,DZ999-South West Region,TORBAY COUNCIL,3062190,"5,324.40 ",Rates Invoice
Ministry of Justice,HMCTS,23/06/2015,610400-Debtors <1 year - Prepayments & Accrued Income,DZ999-South West Region,BRISTOL CITY COUNCIL,3060673,"50,286.00 ",Rates Invoice
Ministry of Justice,HMCTS,10/06/2015,610400-Debtors <1 year - Prepayments & Accrued Income,DZ999-South West Region,NORTH SOMERSET COUNCIL,3048349,"37,714.50 ",Rates Invoice
Ministry of Justice,HMCTS,23/06/2015,610400-Debtors <1 year - Prepayments & Accrued Income,DZ999-South West Region,BOURNEMOUTH BOROUGH COUNCIL,3060659,"10,353.00 ",Rates Invoice
Ministry of Justice,HMCTS,23/06/2015,610400-Debtors <1 year - Prepayments & Accrued Income,DZ999-South West Region,WINCHESTER CITY COUNCIL,3062248,"4,387.70 ",Rates Invoice
Ministry of Justice,HMCTS,23/06/2015,610400-Debtors <1 year - Prepayments & Accrued Income,DZ999-South West Region,WINCHESTER CITY COUNCIL,3062248,"34,510.00 ",Rates Invoice
Ministry of Justice,HMCTS,23/06/2015,610400-Debtors <1 year - Prepayments & Accrued Income,DZ999-South West Region,PORTSMOUTH CITY COUNCIL,3062057,"11,536.20 ",Rates Invoice
Ministry of Justice,HMCTS,23/06/2015,610400-Debtors <1 year - Prepayments & Accrued Income,DZ999-South West Region,SOUTH SOMERSET DISTRICT COUNCIL,3062144,"5,127.20 ",Rates Invoice
Ministry of Justice,HMCTS,23/06/2015,610400-Debtors <1 year - Prepayments & Accrued Income,DZ999-South West Region,SALFORD CITY COUNCIL,3062108,"10,895.30 ",Rates Invoice
Ministry of Justice,HMCTS,23/06/2015,610400-Debtors <1 year - Prepayments & Accrued Income,DZ999-South West Region,TAUNTON DEANE BOROUGH COUNCIL,3062173,"10,846.00 ",Rates Invoice
Ministry of Justice,HMCTS,23/06/2015,610400-Debtors <1 year - Prepayments & Accrued Income,DZ999-South West Region,CORNWALL COUNCIL - NORTH CORNWALL DIVISION,3060754,"7,888.00 ",Rates Invoice
Ministry of Justice,HMCTS,15/06/2015,610400-Debtors <1 year - Prepayments & Accrued Income,DZ999-South West Region,TEIGNBRIDGE DISTRICT COUNCIL,310963,"3,034.98 ",Rates Invoice
Ministry of Justice,HMCTS,23/06/2015,610400-Debtors <1 year - Prepayments & Accrued Income,DZ999-South West Region,TORBAY COUNCIL,3062190,"3,204.50 ",Rates Invoice
Ministry of Justice,HMCTS,23/06/2015,610400-Debtors <1 year - Prepayments & Accrued Income,DZ999-South West Region,BOROUGH OF POOLE,3060656,"11,388.30 ",Rates Invoice
Ministry of Justice,HMCTS,23/06/2015,610400-Debtors <1 year - Prepayments & Accrued Income,DZ999-South West Region,WEYMOUTH & PORTLAND BOROUGH COUNCIL,3062234,"7,690.80 ",Rates Invoice
Ministry of Justice,HMCTS,23/06/2015,610400-Debtors <1 year - Prepayments & Accrued Income,DZ999-South West Region,EAST HAMPSHIRE DISTRICT COUNCIL,3060815,"3,039.35 ",Rates Invoice
Ministry of Justice,HMCTS,23/06/2015,610400-Debtors <1 year - Prepayments & Accrued Income,DZ999-South West Region,SOUTH SOMERSET DISTRICT COUNCIL,3062144,"5,620.20 ",Rates Invoice
Ministry of Justice,HMCTS,10/06/2015,610400-Debtors <1 year - Prepayments & Accrued Income,DZ999-South West Region,PLYMOUTH CITY COUNCIL,3049147,"14,198.40 ",Rates Invoice
Ministry of Justice,HMCTS,23/06/2015,610400-Debtors <1 year - Prepayments & Accrued Income,DZ999-South West Region,NEW FOREST DISTRICT COUNCIL,3061120,"2,588.25 ",Rates Invoice
Ministry of Justice,HMCTS,23/06/2015,610400-Debtors <1 year - Prepayments & Accrued Income,DZ999-South West Region,EXETER CITY COUNCIL,3060836,"3,303.10 ",Rates Invoice
Ministry of Justice,HMCTS,23/06/2015,610400-Debtors <1 year - Prepayments & Accrued Income,DZ999-South West Region,ISLE OF WIGHT COUNCIL,3060951,"19,966.50 ",Rates Invoice
Ministry of Justice,HMCTS,23/06/2015,610400-Debtors <1 year - Prepayments & Accrued Income,DZ999-South West Region,TEST VALLEY BOROUGH COUNCIL,3062178,"6,063.90 ",Rates Invoice
Ministry of Justice,HMCTS,23/06/2015,610400-Debtors <1 year - Prepayments & Accrued Income,DZ999-South West Region,CORNWALL COUNCIL - CARRICK DIVISION,3060753,"17,319.00 ",Rates Invoice
Ministry of Justice,HMCTS,23/06/2015,610400-Debtors <1 year - Prepayments & Accrued Income,DZ999-South West Region,NORTH SOMERSET COUNCIL,3061132,"37,714.50 ",Rates Invoice
Ministry of Justice,HMCTS,23/06/2015,610400-Debtors <1 year - Prepayments & Accrued Income,DZ999-South West Region,NORTH DEVON DISTRICT COUNCIL,3061129,"3,672.85 ",Rates Invoice
Ministry of Justice,HMCTS,23/06/2015,610400-Debtors <1 year - Prepayments & Accrued Income,DZ999-South West Region,TAUNTON DEANE BOROUGH COUNCIL,3062173,"8,233.10 ",Rates Invoice
Ministry of Justice,HMCTS,15/06/2015,610400-Debtors <1 year - Prepayments & Accrued Income,DZ999-South West Region,TEIGNBRIDGE DISTRICT COUNCIL,310963,"3,031.95 ",Rates Invoice
Ministry of Justice,HMCTS,23/06/2015,610400-Debtors <1 year - Prepayments & Accrued Income,DZ999-South West Region,BRISTOL CITY COUNCIL,3060673,"66,555.00 ",Rates Invoice
Ministry of Justice,HMCTS,23/06/2015,610400-Debtors <1 year - Prepayments & Accrued Income,DZ999-South West Region,PORTSMOUTH CITY COUNCIL,3062057,"21,695.88 ",Rates Invoice
Ministry of Justice,HMCTS,23/06/2015,610400-Debtors <1 year - Prepayments & Accrued Income,DZ999-South West Region,WILTSHIRE COUNTY COUNCIL,3062247,"16,022.50 ",Rates Invoice
Ministry of Justice,HMCTS,23/06/2015,610400-Debtors <1 year - Prepayments & Accrued Income,DZ999-South West Region,FAREHAM BOROUGH COUNCIL,3060837,"13,311.00 ",Rates Invoice
Ministry of Justice,HMCTS,23/06/2015,610400-Debtors <1 year - Prepayments & Accrued Income,DZ999-South West Region,TEIGNBRIDGE DISTRICT COUNCIL,313840,"3,031.95 ",Rates Invoice
Ministry of Justice,HMCTS,23/06/2015,610400-Debtors <1 year - Prepayments & Accrued Income,DZ999-South West Region,GLOUCESTER CITY COUNCIL,3060870,"4,437.00 ",Rates Invoice
Ministry of Justice,HMCTS,23/06/2015,610400-Debtors <1 year - Prepayments & Accrued Income,EZ999-Wales Region,NEWPORT CITY COUNCIL,3061123,"4,217.50 ",Rates Invoice
Ministry of Justice,HMCTS,23/06/2015,610400-Debtors <1 year - Prepayments & Accrued Income,EZ999-Wales Region,CITY & COUNTY OF SWANSEA,3060730,"8,531.40 ",Rates Invoice
Ministry of Justice,HMCTS,23/06/2015,610400-Debtors <1 year - Prepayments & Accrued Income,EZ999-Wales Region,NEWPORT CITY COUNCIL,3061123,"16,267.50 ",Rates Invoice
Ministry of Justice,HMCTS,23/06/2015,610400-Debtors <1 year - Prepayments & Accrued Income,EZ999-Wales Region,NEWPORT CITY COUNCIL,3061123,"30,094.94 ",Rates Invoice
Ministry of Justice,HMCTS,23/06/2015,610400-Debtors <1 year - Prepayments & Accrued Income,EZ999-Wales Region,RHONDDA CYNON TAFF,3062081,"8,049.40 ",Rates Invoice
Ministry of Justice,HMCTS,23/06/2015,610400-Debtors <1 year - Prepayments & Accrued Income,EZ999-Wales Region,FLINTSHIRE COUNTY COUNCIL,3060847,"10,989.60 ",Rates Invoice
Ministry of Justice,HMCTS,23/06/2015,610400-Debtors <1 year - Prepayments & Accrued Income,EZ999-Wales Region,CYNGOR GWYNEDD COUNCIL,3060776,"20,412.70 ",Rates Invoice
Ministry of Justice,HMCTS,23/06/2015,610400-Debtors <1 year - Prepayments & Accrued Income,EZ999-Wales Region,CARDIFF COUNTY COUNCIL,3060707,"38,319.00 ",Rates Invoice
Ministry of Justice,HMCTS,23/06/2015,610400-Debtors <1 year - Prepayments & Accrued Income,EZ999-Wales Region,CARDIFF COUNTY COUNCIL,3060707,"16,267.50 ",Rates Invoice
Ministry of Justice,HMCTS,23/06/2015,610400-Debtors <1 year - Prepayments & Accrued Income,EZ999-Wales Region,CAERPHILLY COUNTY BOROUGH COUNCIL,3060696,"4,651.30 ",Rates Invoice
Ministry of Justice,HMCTS,23/06/2015,610400-Debtors <1 year - Prepayments & Accrued Income,EZ999-Wales Region,MERTHYR TYDFIL COUNTY BOROUGH COUNCIL,3061059,"19,762.00 ",Rates Invoice
Ministry of Justice,HMCTS,23/06/2015,610400-Debtors <1 year - Prepayments & Accrued Income,EZ999-Wales Region,CARDIFF COUNTY COUNCIL,3060707,"23,859.00 ",Rates Invoice
Ministry of Justice,HMCTS,23/06/2015,610400-Debtors <1 year - Prepayments & Accrued Income,EZ999-Wales Region,NEATH PORT TALBOT C.B.C.,3061117,"8,965.20 ",Rates Invoice
Ministry of Justice,HMCTS,23/06/2015,610400-Debtors <1 year - Prepayments & Accrued Income,EZ999-Wales Region,NEATH PORT TALBOT C.B.C.,3061117,"3,856.00 ",Rates Invoice
Ministry of Justice,HMCTS,23/06/2015,610400-Debtors <1 year - Prepayments & Accrued Income,EZ999-Wales Region,CITY & COUNTY OF SWANSEA,3060730,"8,627.80 ",Rates Invoice
Ministry of Justice,HMCTS,23/06/2015,610400-Debtors <1 year - Prepayments & Accrued Income,EZ999-Wales Region,CARMARTHENSHIRE COUNTY COUNCIL,3060709,"5,832.20 ",Rates Invoice
Ministry of Justice,HMCTS,23/06/2015,610400-Debtors <1 year - Prepayments & Accrued Income,EZ999-Wales Region,CITY & COUNTY OF SWANSEA,3060730,"3,398.10 ",Rates Invoice
Ministry of Justice,HMCTS,23/06/2015,610400-Debtors <1 year - Prepayments & Accrued Income,EZ999-Wales Region,RHONDDA CYNON TAFF,3062081,"5,832.20 ",Rates Invoice
Ministry of Justice,HMCTS,23/06/2015,610400-Debtors <1 year - Prepayments & Accrued Income,EZ999-Wales Region,NEWPORT CITY COUNCIL,3061123,"6,844.40 ",Rates Invoice
Ministry of Justice,HMCTS,23/06/2015,610400-Debtors <1 year - Prepayments & Accrued Income,EZ999-Wales Region,CONWY COUNTY BOROUGH COUNCIL,3060745,"7,856.60 ",Rates Invoice
Ministry of Justice,HMCTS,23/06/2015,610400-Debtors <1 year - Prepayments & Accrued Income,EZ999-Wales Region,PEMBROKESHIRE COUNTY COUNCIL,3062042,"5,591.20 ",Rates Invoice
Ministry of Justice,HMCTS,23/06/2015,610400-Debtors <1 year - Prepayments & Accrued Income,EZ999-Wales Region,POWYS COUNTY COUNCIL,3062061,"5,543.00 ",Rates Invoice
Ministry of Justice,HMCTS,23/06/2015,610400-Debtors <1 year - Prepayments & Accrued Income,EZ999-Wales Region,WREXHAM COUNTY BOROUGH COUNCIL,3062261,"7,278.20 ",Rates Invoice
Ministry of Justice,HMCTS,23/06/2015,610400-Debtors <1 year - Prepayments & Accrued Income,EZ999-Wales Region,CEREDIGION COUNTY COUNCIL,3060714,"7,471.00 ",Rates Invoice
Ministry of Justice,HMCTS,23/06/2015,610400-Debtors <1 year - Prepayments & Accrued Income,EZ999-Wales Region,BRIDGEND COUNTY BOROUGH COUNCIL,3060670,"8,820.60 ",Rates Invoice
Ministry of Justice,HMCTS,23/06/2015,610400-Debtors <1 year - Prepayments & Accrued Income,EZ999-Wales Region,CITY & COUNTY OF SWANSEA,3060730,"17,954.50 ",Rates Invoice
Ministry of Justice,HMCTS,23/06/2015,610400-Debtors <1 year - Prepayments & Accrued Income,EZ999-Wales Region,CAERPHILLY COUNTY BOROUGH COUNCIL,3060696,"3,108.90 ",Rates Invoice
Ministry of Justice,HMCTS,23/06/2015,610400-Debtors <1 year - Prepayments & Accrued Income,EZ999-Wales Region,TORFAEN COUNTY BOROUGH COUNCIL,3062191,"3,819.85 ",Rates Invoice
Ministry of Justice,HMCTS,23/06/2015,610400-Debtors <1 year - Prepayments & Accrued Income,FZ999-Midlands Region,BOROUGH OF TELFORD & WREKIN,3060657,"4,658.85 ",Rates Invoice
Ministry of Justice,HMCTS,23/06/2015,610400-Debtors <1 year - Prepayments & Accrued Income,FZ999-Midlands Region,BIRMINGHAM CITY COUNCIL,3060645,"161,211.00 ",Rates Invoice
Ministry of Justice,HMCTS,23/06/2015,610400-Debtors <1 year - Prepayments & Accrued Income,FZ999-Midlands Region,WALSALL COUNCIL,3062219,"12,818.00 ",Rates Invoice
Ministry of Justice,HMCTS,23/06/2015,610400-Debtors <1 year - Prepayments & Accrued Income,FZ999-Midlands Region,BIRMINGHAM CITY COUNCIL,3060645,"48,067.50 ",Rates Invoice
Ministry of Justice,HMCTS,23/06/2015,610400-Debtors <1 year - Prepayments & Accrued Income,FZ999-Midlands Region,DUDLEY METROPOLITAN BOROUGH COUNCIL,3060804,"9,219.10 ",Rates Invoice
Ministry of Justice,HMCTS,23/06/2015,610400-Debtors <1 year - Prepayments & Accrued Income,FZ999-Midlands Region,BIRMINGHAM CITY COUNCIL,3060645,"8,134.50 ",Rates Invoice
Ministry of Justice,HMCTS,23/06/2015,610400-Debtors <1 year - Prepayments & Accrued Income,FZ999-Midlands Region,NEWCASTLE UNDER LYME BOROUGH COUNCIL,3061122,"7,099.20 ",Rates Invoice
Ministry of Justice,HMCTS,23/06/2015,610400-Debtors <1 year - Prepayments & Accrued Income,FZ999-Midlands Region,NOTTINGHAM CITY COUNCIL,3061137,"76,415.00 ",Rates Invoice
Ministry of Justice,HMCTS,15/06/2015,610400-Debtors <1 year - Prepayments & Accrued Income,FZ999-Midlands Region,CITY OF STOKE ON TRENT,310962,"34,544.51 ",Rates Invoice
Ministry of Justice,HMCTS,23/06/2015,610400-Debtors <1 year - Prepayments & Accrued Income,FZ999-Midlands Region,SHROPSHIRE COUNCIL,3062128,"8,381.00 ",Rates Invoice
Ministry of Justice,HMCTS,23/06/2015,610400-Debtors <1 year - Prepayments & Accrued Income,FZ999-Midlands Region,LINCOLN CITY COUNCIL,3061001,"32,291.50 ",Rates Invoice
Ministry of Justice,HMCTS,23/06/2015,610400-Debtors <1 year - Prepayments & Accrued Income,FZ999-Midlands Region,WORCESTER CITY COUNCIL,3062258,"13,804.00 ",Rates Invoice
Ministry of Justice,HMCTS,23/06/2015,610400-Debtors <1 year - Prepayments & Accrued Income,FZ999-Midlands Region,WALSALL COUNCIL,3062219,"6,261.10 ",Rates Invoice
Ministry of Justice,HMCTS,23/06/2015,610400-Debtors <1 year - Prepayments & Accrued Income,FZ999-Midlands Region,NEWCASTLE UNDER LYME BOROUGH COUNCIL,3061122,"2,711.50 ",Rates Invoice
Ministry of Justice,HMCTS,15/06/2015,610400-Debtors <1 year - Prepayments & Accrued Income,FZ999-Midlands Region,WYRE FOREST DISTRICT COUNCIL,310964,"19,473.50 ",Rates Invoice
Ministry of Justice,HMCTS,23/06/2015,610400-Debtors <1 year - Prepayments & Accrued Income,FZ999-Midlands Region,DERBY CITY COUNCIL,3060793,"31,059.00 ",Rates Invoice
Ministry of Justice,HMCTS,23/06/2015,610400-Debtors <1 year - Prepayments & Accrued Income,FZ999-Midlands Region,NORTHAMPTON BOROUGH COUNCIL,3061134,"5,866.70 ",Rates Invoice
Ministry of Justice,HMCTS,23/06/2015,610400-Debtors <1 year - Prepayments & Accrued Income,FZ999-Midlands Region,WOLVERHAMPTON CITY COUNCIL,3062253,"38,454.00 ",Rates Invoice
Ministry of Justice,HMCTS,23/06/2015,610400-Debtors <1 year - Prepayments & Accrued Income,FZ999-Midlands Region,SHROPSHIRE COUNCIL,3062128,"6,409.00 ",Rates Invoice
